Unique Ref No,Vendor Name,Subj Mapping 1,Subj Mapping 2,Subjective  Desc,Line Amount,Capital/Revenue,GL Posting Date,Directorate
WC51-0001,1ST HAND CARE LTD,Third Party Payments,Private Contractor Fees,73372-DOMICILIARY CARE,"12,259.86",Revenue,09/12/2014,Social Care & Inclusion
WC51-0002,247 CARS (WILLENHALL) LIMITED,Transport,Hire,52000-WITH DRIVER-HIRE OF VEHICLES,288.00,Revenue,29/12/2014,Childrens
WC51-0003,247 CARS (WILLENHALL) LIMITED,Transport,Hire,52000-WITH DRIVER-HIRE OF VEHICLES,296.00,Revenue,29/12/2014,Childrens
WC51-0004,247 CARS (WILLENHALL) LIMITED,Transport,Hire,52000-WITH DRIVER-HIRE OF VEHICLES,320.00,Revenue,29/12/2014,Childrens
WC51-0005,247 CARS (WILLENHALL) LIMITED,Transport,Hire,52000-WITH DRIVER-HIRE OF VEHICLES,320.00,Revenue,29/12/2014,Childrens
WC51-0006,247 CARS (WILLENHALL) LIMITED,Transport,Hire,52000-WITH DRIVER-HIRE OF VEHICLES,336.00,Revenue,29/12/2014,Childrens
WC51-0007,247 CARS (WILLENHALL) LIMITED,Transport,Hire,52000-WITH DRIVER-HIRE OF VEHICLES,400.00,Revenue,29/12/2014,Childrens
WC51-0008,247 CARS (WILLENHALL) LIMITED,Transport,Hire,52000-WITH DRIVER-HIRE OF VEHICLES,432.00,Revenue,29/12/2014,Childrens
WC51-0009,247 CARS (WILLENHALL) LIMITED,Transport,Hire,52000-WITH DRIVER-HIRE OF VEHICLES,560.00,Revenue,29/12/2014,Childrens
WC51-0010,247 CARS (WILLENHALL) LIMITED,Transport,Hire,52000-WITH DRIVER-HIRE OF VEHICLES,592.00,Revenue,29/12/2014,Childrens
WC51-0011,247 CARS (WILLENHALL) LIMITED,Transport,Hire,52000-WITH DRIVER-HIRE OF VEHICLES,592.00,Revenue,29/12/2014,Childrens
WC51-0012,247 CARS (WILLENHALL) LIMITED,Transport,Hire,52000-WITH DRIVER-HIRE OF VEHICLES,680.00,Revenue,29/12/2014,Childrens
WC51-0013,247 CARS (WILLENHALL) LIMITED,Transport,Hire,52000-WITH DRIVER-HIRE OF VEHICLES,720.00,Revenue,29/12/2014,Childrens
WC51-0014,247 CARS (WILLENHALL) LIMITED,Transport,Hire,52000-WITH DRIVER-HIRE OF VEHICLES,720.00,Revenue,29/12/2014,Childrens
WC51-0015,247 CARS (WILLENHALL) LIMITED,Transport,Hire,52000-WITH DRIVER-HIRE OF VEHICLES,992.00,Revenue,29/12/2014,Childrens
WC51-0016,247 CARS (WILLENHALL) LIMITED,Transport,Hire,52000-WITH DRIVER-HIRE OF VEHICLES,"1,000.00",Revenue,29/12/2014,Childrens
WC51-0017,247 CARS (WILLENHALL) LIMITED,Transport,Hire,52000-WITH DRIVER-HIRE OF VEHICLES,"1,000.00",Revenue,29/12/2014,Childrens
WC51-0018,247 CARS (WILLENHALL) LIMITED,Transport,Hire,52000-WITH DRIVER-HIRE OF VEHICLES,"1,526.40",Revenue,29/12/2014,Childrens
WC51-0019,A D T FIRE AND SECURITY PLC,Supplies & Services,"Equip,Furniture & Materials",60008-MAINTENANCE-FURNITURE & EQUIPMENT,351.26,Revenue,02/12/2014,Neighbourhood Services
WC51-0020,A F BLAKEMORE & SON LTD,Supplies & Services,Provisions,61006-FRUIT & VEGETABLES OTHER-PROVISIONS,154.54,Revenue,17/12/2014,Social Care & Inclusion
WC51-0021,A F BLAKEMORE & SON LTD,Supplies & Services,Provisions,61305-CATERING,287.53,Revenue,01/12/2014,Social Care & Inclusion
WC51-0022,A F BLAKEMORE & SON LTD,Supplies & Services,Provisions,61008-CONFECTIONERY/SNACKS-PROVISIONS,341.91,Revenue,09/12/2014,Neighbourhood Services
WC51-0023,A F BLAKEMORE & SON LTD,Supplies & Services,Provisions,61018-DRINKS-PROVISIONS,347.50,Revenue,23/12/2014,Neighbourhood Services
WC51-0024,A F BLAKEMORE & SON LTD,Supplies & Services,Provisions,61016-FOOD AND BEVERAGES-PROVISIONS,450.54,Revenue,17/12/2014,Social Care & Inclusion
WC51-0025,A F BLAKEMORE & SON LTD,Supplies & Services,Provisions,61305-CATERING,497.68,Revenue,01/12/2014,Social Care & Inclusion
WC51-0026,A F BLAKEMORE & SON LTD,Supplies & Services,Provisions,61016-FOOD AND BEVERAGES-PROVISIONS,560.91,Revenue,30/12/2014,Social Care & Inclusion
WC51-0027,REDACTED,Third Party Payments,Private Contractor Fees,74006-HOLIDAY/CHRISTMAS ALLOWANCE-FOSTER CARERS-OTH AGENCY PROVISION,333.92,Revenue,18/12/2014,Childrens
WC51-0028,A KARIMS CHUCKERY PHARMACY,Supplies & Services,Services,63000-PROFESSIONAL FEES AND SERVICES,23.69,Revenue,01/12/2014,Neighbourhood Services
WC51-0029,A KARIMS CHUCKERY PHARMACY,Supplies & Services,Services,63000-PROFESSIONAL FEES AND SERVICES,47.38,Revenue,09/12/2014,Neighbourhood Services
WC51-0030,A KARIMS CHUCKERY PHARMACY,Supplies & Services,Services,63000-PROFESSIONAL FEES AND SERVICES,50.00,Revenue,09/12/2014,Neighbourhood Services
WC51-0031,A KARIMS CHUCKERY PHARMACY,Supplies & Services,Services,63000-PROFESSIONAL FEES AND SERVICES,55.00,Revenue,01/12/2014,Neighbourhood Services
WC51-0032,A KARIMS CHUCKERY PHARMACY,Supplies & Services,Services,63000-PROFESSIONAL FEES AND SERVICES,"1,135.51",Revenue,01/12/2014,Neighbourhood Services
WC51-0033,A KARIMS CHUCKERY PHARMACY,Supplies & Services,Services,63000-PROFESSIONAL FEES AND SERVICES,"1,471.34",Revenue,09/12/2014,Neighbourhood Services
WC51-0034,REDACTED,Supplies & Services,Other Supplies & Services,62515-MISCELLANEOUS SUPPLIES,896.24,Revenue,08/12/2014,Childrens
WC51-0035,REDACTED,Third Party Payments,Private Contractor Fees,74006-HOLIDAY/CHRISTMAS ALLOWANCE-FOSTER CARERS-OTH AGENCY PROVISION,968.32,Revenue,08/12/2014,Childrens
WC51-0036,AAA BEE JAY TRAVEL,Transport,Hire,52000-WITH DRIVER-HIRE OF VEHICLES,950.00,Revenue,16/12/2014,Childrens
WC51-0037,AAA BEE JAY TRAVEL,Transport,Hire,52000-WITH DRIVER-HIRE OF VEHICLES,"2,580.00",Revenue,16/12/2014,Childrens
WC51-0038,REDACTED,Transfer Payments,Transfer Payments,76422-DIRECT PAYMENTS TO SOCIAL SERVICES CLIENTS,431.55,Revenue,08/12/2014,Childrens
WC51-0039,ABACUS FOSTERING LTD,Third Party Payments,Private Contractor Fees,74037-INDEPENDENT FOSTER CARE-OTH AGENCY PROVISION,"3,428.57",Revenue,12/12/2014,Childrens
WC51-0040,ABACUS FOSTERING LTD,Third Party Payments,Private Contractor Fees,74037-INDEPENDENT FOSTER CARE-OTH AGENCY PROVISION,"3,542.86",Revenue,12/12/2014,Childrens
WC51-0041,ABACUS FOSTERING LTD,Third Party Payments,Private Contractor Fees,74037-INDEPENDENT FOSTER CARE-OTH AGENCY PROVISION,"3,542.86",Revenue,17/12/2014,Childrens
WC51-0042,ABACUS FOSTERING LTD,Third Party Payments,Private Contractor Fees,74037-INDEPENDENT FOSTER CARE-OTH AGENCY PROVISION,"3,728.57",Revenue,02/12/2014,Childrens
WC51-0043,ABACUS FOSTERING LTD,Third Party Payments,Private Contractor Fees,74037-INDEPENDENT FOSTER CARE-OTH AGENCY PROVISION,"3,852.86",Revenue,16/12/2014,Childrens
WC51-0044,ABACUS FOSTERING LTD,Third Party Payments,Private Contractor Fees,74037-INDEPENDENT FOSTER CARE-OTH AGENCY PROVISION,"5,600.00",Revenue,12/12/2014,Childrens
WC51-0045,REDACTED,Third Party Payments,Private Contractor Fees,74006-HOLIDAY/CHRISTMAS ALLOWANCE-FOSTER CARERS-OTH AGENCY PROVISION,639.40,Revenue,18/12/2014,Childrens
WC51-0046,ABBEY COURT NURSING & RESIDEN,Third Party Payments,Private Contractor Fees,73373-RESIDENTIAL & NURSING CARE PLACEMENTS,"1,494.00",Revenue,19/12/2014,Social Care & Inclusion
WC51-0047,ABBEY HEALTHCARE HOMES LTD,Third Party Payments,Private Contractor Fees,73373-RESIDENTIAL & NURSING CARE PLACEMENTS,"1,661.88",Revenue,02/12/2014,Social Care & Inclusion
WC51-0048,ABBEY HEALTHCARE HOMES LTD,Third Party Payments,Private Contractor Fees,73373-RESIDENTIAL & NURSING CARE PLACEMENTS,"1,661.88",Revenue,02/12/2014,Social Care & Inclusion
WC51-0049,ABBEY HEALTHCARE HOMES LTD,Third Party Payments,Private Contractor Fees,73373-RESIDENTIAL & NURSING CARE PLACEMENTS,"1,661.88",Revenue,02/12/2014,Social Care & Inclusion
WC51-0050,ABBEY HEALTHCARE HOMES LTD,Third Party Payments,Private Contractor Fees,73373-RESIDENTIAL & NURSING CARE PLACEMENTS,"1,661.88",Revenue,02/12/2014,Social Care & Inclusion
WC51-0051,ABBEY HEALTHCARE HOMES LTD,Third Party Payments,Private Contractor Fees,73373-RESIDENTIAL & NURSING CARE PLACEMENTS,"2,243.60",Revenue,10/12/2014,Social Care & Inclusion
WC51-0052,ABBEYMERE CARE CENTRE,Third Party Payments,Private Contractor Fees,73373-RESIDENTIAL & NURSING CARE PLACEMENTS,"1,528.87",Revenue,17/12/2014,Social Care & Inclusion
WC51-0053,ABC DAY NURSERY (WILLENHALL) LIMITED,Third Party Payments,Grants to Other Orgs,66505-OTHER-GRANTS TO OTHER ORGS,"13,483.20",Revenue,01/12/2014,Childrens
WC51-0054,ABC DAY NURSERY (WILLENHALL) LIMITED,Third Party Payments,Grants to Other Orgs,66505-OTHER-GRANTS TO OTHER ORGS,"17,841.55",Revenue,19/12/2014,Childrens
WC51-0055,ABC FOSTERING,Third Party Payments,Private Contractor Fees,74037-INDEPENDENT FOSTER CARE-OTH AGENCY PROVISION,"2,980.34",Revenue,17/12/2014,Childrens
WC51-0056,ABC FOSTERING,Third Party Payments,Private Contractor Fees,74037-INDEPENDENT FOSTER CARE-OTH AGENCY PROVISION,"3,137.20",Revenue,17/12/2014,Childrens
WC51-0057,ABC TEACHERS LIMITED,Employees,Agency,34305-AGENCY STAFF-EMPLOYEES,"2,000.00",Revenue,01/12/2014,Childrens
WC51-0058,REDACTED,Transfer Payments,Transfer Payments,76422-DIRECT PAYMENTS TO SOCIAL SERVICES CLIENTS,"2,947.49",Revenue,08/12/2014,Social Care & Inclusion
WC51-0059,ABLEWELL CARS,Transport,Hire,52000-WITH DRIVER-HIRE OF VEHICLES,300.00,Revenue,08/12/2014,Childrens
WC51-0060,ABLEWELL CARS,Transport,Hire,52000-WITH DRIVER-HIRE OF VEHICLES,300.00,Revenue,16/12/2014,Childrens
WC51-0061,ABLEWELL CARS,Transport,Hire,52000-WITH DRIVER-HIRE OF VEHICLES,302.00,Revenue,08/12/2014,Childrens
WC51-0062,ABLEWELL CARS,Transport,Hire,52000-WITH DRIVER-HIRE OF VEHICLES,302.00,Revenue,16/12/2014,Childrens
WC51-0063,ABLEWELL CARS,Transport,Hire,52000-WITH DRIVER-HIRE OF VEHICLES,330.00,Revenue,08/12/2014,Childrens
WC51-0064,ABLEWELL CARS,Transport,Hire,52000-WITH DRIVER-HIRE OF VEHICLES,330.00,Revenue,08/12/2014,Childrens
WC51-0065,ABLEWELL CARS,Transport,Hire,52000-WITH DRIVER-HIRE OF VEHICLES,330.00,Revenue,16/12/2014,Childrens
WC51-0066,ABLEWELL CARS,Transport,Hire,52000-WITH DRIVER-HIRE OF VEHICLES,330.00,Revenue,16/12/2014,Childrens
WC51-0067,ABLEWELL CARS,Transport,Hire,52000-WITH DRIVER-HIRE OF VEHICLES,530.00,Revenue,08/12/2014,Childrens
WC51-0068,ABLEWELL CARS,Transport,Hire,52000-WITH DRIVER-HIRE OF VEHICLES,530.00,Revenue,16/12/2014,Childrens
WC51-0069,ABU BAKR NURSERY,Third Party Payments,Grants to Other Orgs,66505-OTHER-GRANTS TO OTHER ORGS,343.80,Revenue,15/12/2014,Childrens
WC51-0070,ABU BAKR NURSERY,Third Party Payments,Grants to Other Orgs,66505-OTHER-GRANTS TO OTHER ORGS,"7,892.46",Revenue,01/12/2014,Childrens
WC51-0071,ABU BAKR NURSERY,Third Party Payments,Grants to Other Orgs,66505-OTHER-GRANTS TO OTHER ORGS,"16,064.99",Revenue,19/12/2014,Childrens
WC51-0072,ACCORD HOUSING ASSOCIATION LTD#135,Third Party Payments,Private Contractor Fees,73372-DOMICILIARY CARE,321.76,Revenue,22/12/2014,Social Care & Inclusion
WC51-0073,ACCORD HOUSING ASSOCIATION LTD#135,Third Party Payments,Private Contractor Fees,73372-DOMICILIARY CARE,354.28,Revenue,11/12/2014,Social Care & Inclusion
WC51-0074,ACCORD HOUSING ASSOCIATION LTD#135,Third Party Payments,Private Contractor Fees,73374-SUPPORTED & OTHER ACCOMMODATION,411.20,Revenue,22/12/2014,Social Care & Inclusion
WC51-0075,ACCORD HOUSING ASSOCIATION LTD#135,Third Party Payments,Private Contractor Fees,73372-DOMICILIARY CARE,411.92,Revenue,22/12/2014,Social Care & Inclusion
WC51-0076,ACCORD HOUSING ASSOCIATION LTD#135,Third Party Payments,Private Contractor Fees,73367-BLOCK SUBSIDY-SUPPORTING PEOPLE,430.96,Revenue,16/12/2014,Social Care & Inclusion
WC51-0077,ACCORD HOUSING ASSOCIATION LTD#135,Third Party Payments,Private Contractor Fees,73374-SUPPORTED & OTHER ACCOMMODATION,434.00,Revenue,16/12/2014,Social Care & Inclusion
WC51-0078,ACCORD HOUSING ASSOCIATION LTD#135,Third Party Payments,Private Contractor Fees,73374-SUPPORTED & OTHER ACCOMMODATION,434.00,Revenue,16/12/2014,Social Care & Inclusion
WC51-0079,ACCORD HOUSING ASSOCIATION LTD#135,Third Party Payments,Private Contractor Fees,73372-DOMICILIARY CARE,463.60,Revenue,22/12/2014,Social Care & Inclusion
WC51-0080,ACCORD HOUSING ASSOCIATION LTD#135,Third Party Payments,Private Contractor Fees,73372-DOMICILIARY CARE,492.40,Revenue,11/12/2014,Social Care & Inclusion
WC51-0081,ACCORD HOUSING ASSOCIATION LTD#135,Third Party Payments,Private Contractor Fees,73372-DOMICILIARY CARE,502.20,Revenue,02/12/2014,Social Care & Inclusion
WC51-0082,ACCORD HOUSING ASSOCIATION LTD#135,Third Party Payments,Private Contractor Fees,73372-DOMICILIARY CARE,502.20,Revenue,22/12/2014,Social Care & Inclusion
WC51-0083,ACCORD HOUSING ASSOCIATION LTD#135,Third Party Payments,Private Contractor Fees,73372-DOMICILIARY CARE,502.32,Revenue,22/12/2014,Social Care & Inclusion
WC51-0084,ACCORD HOUSING ASSOCIATION LTD#135,Third Party Payments,Private Contractor Fees,73372-DOMICILIARY CARE,531.32,Revenue,22/12/2014,Social Care & Inclusion
WC51-0085,ACCORD HOUSING ASSOCIATION LTD#135,Third Party Payments,Private Contractor Fees,73372-DOMICILIARY CARE,592.80,Revenue,22/12/2014,Social Care & Inclusion
WC51-0086,ACCORD HOUSING ASSOCIATION LTD#135,Third Party Payments,Private Contractor Fees,73372-DOMICILIARY CARE,595.44,Revenue,11/12/2014,Social Care & Inclusion
WC51-0087,ACCORD HOUSING ASSOCIATION LTD#135,Third Party Payments,Private Contractor Fees,73372-DOMICILIARY CARE,618.00,Revenue,22/12/2014,Social Care & Inclusion
WC51-0088,ACCORD HOUSING ASSOCIATION LTD#135,Third Party Payments,Private Contractor Fees,73372-DOMICILIARY CARE,627.75,Revenue,02/12/2014,Social Care & Inclusion
WC51-0089,ACCORD HOUSING ASSOCIATION LTD#135,Third Party Payments,Private Contractor Fees,73374-SUPPORTED & OTHER ACCOMMODATION,655.34,Revenue,16/12/2014,Social Care & Inclusion
WC51-0090,ACCORD HOUSING ASSOCIATION LTD#135,Third Party Payments,Private Contractor Fees,73372-DOMICILIARY CARE,656.88,Revenue,11/12/2014,Social Care & Inclusion
WC51-0091,ACCORD HOUSING ASSOCIATION LTD#135,Third Party Payments,Private Contractor Fees,73374-SUPPORTED & OTHER ACCOMMODATION,657.08,Revenue,22/12/2014,Social Care & Inclusion
WC51-0092,ACCORD HOUSING ASSOCIATION LTD#135,Third Party Payments,Private Contractor Fees,73372-DOMICILIARY CARE,697.64,Revenue,02/12/2014,Social Care & Inclusion
WC51-0093,ACCORD HOUSING ASSOCIATION LTD#135,Third Party Payments,Private Contractor Fees,73372-DOMICILIARY CARE,721.28,Revenue,08/12/2014,Social Care & Inclusion
WC51-0094,ACCORD HOUSING ASSOCIATION LTD#135,Third Party Payments,Private Contractor Fees,73372-DOMICILIARY CARE,721.28,Revenue,11/12/2014,Social Care & Inclusion
WC51-0095,ACCORD HOUSING ASSOCIATION LTD#135,Third Party Payments,Private Contractor Fees,73372-DOMICILIARY CARE,721.28,Revenue,22/12/2014,Social Care & Inclusion
WC51-0096,ACCORD HOUSING ASSOCIATION LTD#135,Third Party Payments,Private Contractor Fees,73372-DOMICILIARY CARE,750.24,Revenue,10/12/2014,Social Care & Inclusion
WC51-0097,ACCORD HOUSING ASSOCIATION LTD#135,Third Party Payments,Private Contractor Fees,73372-DOMICILIARY CARE,750.24,Revenue,22/12/2014,Social Care & Inclusion
WC51-0098,ACCORD HOUSING ASSOCIATION LTD#135,Third Party Payments,Private Contractor Fees,73372-DOMICILIARY CARE,775.76,Revenue,11/12/2014,Social Care & Inclusion
WC51-0099,ACCORD HOUSING ASSOCIATION LTD#135,Third Party Payments,Private Contractor Fees,73372-DOMICILIARY CARE,785.68,Revenue,10/12/2014,Social Care & Inclusion
WC51-0100,ACCORD HOUSING ASSOCIATION LTD#135,Third Party Payments,Private Contractor Fees,73372-DOMICILIARY CARE,785.68,Revenue,22/12/2014,Social Care & Inclusion
WC51-0101,ACCORD HOUSING ASSOCIATION LTD#135,Third Party Payments,Private Contractor Fees,73372-DOMICILIARY CARE,785.68,Revenue,22/12/2014,Social Care & Inclusion
WC51-0102,ACCORD HOUSING ASSOCIATION LTD#135,Third Party Payments,Private Contractor Fees,73372-DOMICILIARY CARE,811.20,Revenue,11/12/2014,Social Care & Inclusion
WC51-0103,ACCORD HOUSING ASSOCIATION LTD#135,Third Party Payments,Private Contractor Fees,73372-DOMICILIARY CARE,878.85,Revenue,02/12/2014,Social Care & Inclusion
WC51-0104,ACCORD HOUSING ASSOCIATION LTD#135,Premises,Rent,43001-RENTS-OTHER,"1,000.00",Revenue,02/12/2014,Resources
WC51-0105,ACCORD HOUSING ASSOCIATION LTD#135,Third Party Payments,Private Contractor Fees,73372-DOMICILIARY CARE,"1,133.20",Revenue,22/12/2014,Social Care & Inclusion
WC51-0106,ACCORD HOUSING ASSOCIATION LTD#135,Third Party Payments,Private Contractor Fees,73372-DOMICILIARY CARE,"1,144.04",Revenue,02/12/2014,Social Care & Inclusion
WC51-0107,ACCORD HOUSING ASSOCIATION LTD#135,Third Party Payments,Private Contractor Fees,73372-DOMICILIARY CARE,"1,159.20",Revenue,11/12/2014,Social Care & Inclusion
WC51-0108,ACCORD HOUSING ASSOCIATION LTD#135,Third Party Payments,Private Contractor Fees,73372-DOMICILIARY CARE,"1,183.96",Revenue,22/12/2014,Social Care & Inclusion
WC51-0109,ACCORD HOUSING ASSOCIATION LTD#135,Third Party Payments,Private Contractor Fees,73372-DOMICILIARY CARE,"1,197.80",Revenue,08/12/2014,Social Care & Inclusion
WC51-0110,ACCORD HOUSING ASSOCIATION LTD#135,Third Party Payments,Private Contractor Fees,73372-DOMICILIARY CARE,"1,262.24",Revenue,12/12/2014,Social Care & Inclusion
WC51-0111,ACCORD HOUSING ASSOCIATION LTD#135,Third Party Payments,Private Contractor Fees,73372-DOMICILIARY CARE,"1,493.84",Revenue,22/12/2014,Social Care & Inclusion
WC51-0112,ACCORD HOUSING ASSOCIATION LTD#135,Third Party Payments,Private Contractor Fees,73372-DOMICILIARY CARE,"1,500.48",Revenue,10/12/2014,Social Care & Inclusion
WC51-0113,ACCORD HOUSING ASSOCIATION LTD#135,Third Party Payments,Private Contractor Fees,73372-DOMICILIARY CARE,"1,538.68",Revenue,22/12/2014,Social Care & Inclusion
WC51-0114,ACCORD HOUSING ASSOCIATION LTD#135,Third Party Payments,Private Contractor Fees,73372-DOMICILIARY CARE,"1,571.36",Revenue,10/12/2014,Social Care & Inclusion
WC51-0115,ACCORD HOUSING ASSOCIATION LTD#135,Third Party Payments,Private Contractor Fees,73372-DOMICILIARY CARE,"1,584.00",Revenue,17/12/2014,Social Care & Inclusion
WC51-0116,ACCORD HOUSING ASSOCIATION LTD#135,Third Party Payments,Private Contractor Fees,73372-DOMICILIARY CARE,"1,663.64",Revenue,02/12/2014,Social Care & Inclusion
WC51-0117,ACCORD HOUSING ASSOCIATION LTD#135,Third Party Payments,Private Contractor Fees,73372-DOMICILIARY CARE,"1,725.68",Revenue,12/12/2014,Social Care & Inclusion
WC51-0118,ACCORD HOUSING ASSOCIATION LTD#135,Third Party Payments,Private Contractor Fees,73372-DOMICILIARY CARE,"1,923.35",Revenue,02/12/2014,Social Care & Inclusion
WC51-0119,ACCORD HOUSING ASSOCIATION LTD#135,Third Party Payments,Private Contractor Fees,73372-DOMICILIARY CARE,"1,980.00",Revenue,17/12/2014,Social Care & Inclusion
WC51-0120,ACCORD HOUSING ASSOCIATION LTD#135,Third Party Payments,Private Contractor Fees,73372-DOMICILIARY CARE,"2,288.08",Revenue,12/12/2014,Social Care & Inclusion
WC51-0121,ACCORD HOUSING ASSOCIATION LTD#135,Third Party Payments,Private Contractor Fees,73372-DOMICILIARY CARE,"2,408.32",Revenue,09/12/2014,Social Care & Inclusion
WC51-0122,ACCORD HOUSING ASSOCIATION LTD#135,Third Party Payments,Private Contractor Fees,73372-DOMICILIARY CARE,"2,772.00",Revenue,17/12/2014,Social Care & Inclusion
WC51-0123,ACCORD HOUSING ASSOCIATION LTD#135,Third Party Payments,Private Contractor Fees,73373-RESIDENTIAL & NURSING CARE PLACEMENTS,"4,490.79",Revenue,17/12/2014,Social Care & Inclusion
WC51-0124,ACCORD HOUSING ASSOCIATION LTD#135,Third Party Payments,Private Contractor Fees,73373-RESIDENTIAL & NURSING CARE PLACEMENTS,"4,490.79",Revenue,17/12/2014,Social Care & Inclusion
WC51-0125,ACCORD HOUSING ASSOCIATION LTD#135,Third Party Payments,Private Contractor Fees,73373-RESIDENTIAL & NURSING CARE PLACEMENTS,"4,490.79",Revenue,17/12/2014,Social Care & Inclusion
WC51-0126,ACCORD HOUSING ASSOCIATION LTD#135,Third Party Payments,Private Contractor Fees,73373-RESIDENTIAL & NURSING CARE PLACEMENTS,"4,490.79",Revenue,17/12/2014,Social Care & Inclusion
WC51-0127,ACCORD HOUSING ASSOCIATION LTD#135,Third Party Payments,Private Contractor Fees,73373-RESIDENTIAL & NURSING CARE PLACEMENTS,"4,640.48",Revenue,17/12/2014,Social Care & Inclusion
WC51-0128,ACCORD HOUSING ASSOCIATION LTD#135,Third Party Payments,Private Contractor Fees,73373-RESIDENTIAL & NURSING CARE PLACEMENTS,"6,267.69",Revenue,17/12/2014,Social Care & Inclusion
WC51-0129,ACCORD HOUSING ASSOCIATION LTD#135,Third Party Payments,Private Contractor Fees,73373-RESIDENTIAL & NURSING CARE PLACEMENTS,"6,267.69",Revenue,17/12/2014,Social Care & Inclusion
WC51-0130,ACCORD HOUSING ASSOCIATION LTD#135,Third Party Payments,Private Contractor Fees,73373-RESIDENTIAL & NURSING CARE PLACEMENTS,"6,267.69",Revenue,17/12/2014,Social Care & Inclusion
WC51-0131,ACCORD HOUSING ASSOCIATION LTD#135,Third Party Payments,Private Contractor Fees,73373-RESIDENTIAL & NURSING CARE PLACEMENTS,"6,476.61",Revenue,17/12/2014,Social Care & Inclusion
WC51-0132,ACCORD HOUSING ASSOCIATION LTD#135,Third Party Payments,Private Contractor Fees,73365-BLOCK GROSS-SUPPORTING PEOPLE,"7,518.50",Revenue,03/12/2014,Social Care & Inclusion
WC51-0133,ACCORD HOUSING ASSOCIATION LTD#135,Third Party Payments,Private Contractor Fees,73365-BLOCK GROSS-SUPPORTING PEOPLE,"7,518.50",Revenue,03/12/2014,Social Care & Inclusion
WC51-0134,ACCORD HOUSING ASSOCIATION LTD#135,Third Party Payments,Private Contractor Fees,73374-SUPPORTED & OTHER ACCOMMODATION,"27,531.00",Revenue,08/12/2014,Social Care & Inclusion
WC51-0135,ACCORD HOUSING ASSOCIATION LTD#135,Third Party Payments,Private Contractor Fees,73365-BLOCK GROSS-SUPPORTING PEOPLE,"46,500.00",Revenue,03/12/2014,Social Care & Inclusion
WC51-0136,ACE CARE AGENCY,Third Party Payments,Private Contractor Fees,73372-DOMICILIARY CARE,323.76,Revenue,04/12/2014,Social Care & Inclusion
WC51-0137,ACE CARE AGENCY,Third Party Payments,Private Contractor Fees,73372-DOMICILIARY CARE,519.40,Revenue,04/12/2014,Social Care & Inclusion
WC51-0138,ACE CARE AGENCY,Third Party Payments,Private Contractor Fees,73372-DOMICILIARY CARE,647.52,Revenue,04/12/2014,Social Care & Inclusion
WC51-0139,ACE CARE AGENCY,Third Party Payments,Private Contractor Fees,73372-DOMICILIARY CARE,939.68,Revenue,08/12/2014,Social Care & Inclusion
WC51-0140,ACE CARE AGENCY,Third Party Payments,Private Contractor Fees,73372-DOMICILIARY CARE,950.28,Revenue,04/12/2014,Social Care & Inclusion
WC51-0141,ACE RADIO CARS,Transport,Hire,52000-WITH DRIVER-HIRE OF VEHICLES,"1,854.78",Revenue,15/12/2014,Childrens
WC51-0142,ACEPAY LTD (COTTAGE NUR HOME),Third Party Payments,Private Contractor Fees,73373-RESIDENTIAL & NURSING CARE PLACEMENTS,417.26,Revenue,10/12/2014,Social Care & Inclusion
WC51-0143,ACEPAY LTD (COTTAGE NUR HOME),Third Party Payments,Private Contractor Fees,73373-RESIDENTIAL & NURSING CARE PLACEMENTS,"1,933.16",Revenue,10/12/2014,Social Care & Inclusion
WC51-0144,ACEPAY LTD (COTTAGE NUR HOME),Third Party Payments,Private Contractor Fees,73373-RESIDENTIAL & NURSING CARE PLACEMENTS,"1,933.16",Revenue,10/12/2014,Social Care & Inclusion
WC51-0145,ACEPAY LTD (COTTAGE NUR HOME),Third Party Payments,Private Contractor Fees,73373-RESIDENTIAL & NURSING CARE PLACEMENTS,"1,933.16",Revenue,10/12/2014,Social Care & Inclusion
WC51-0146,ACEPAY LTD (COTTAGE NUR HOME),Third Party Payments,Private Contractor Fees,73373-RESIDENTIAL & NURSING CARE PLACEMENTS,"1,933.16",Revenue,10/12/2014,Social Care & Inclusion
WC51-0147,ACEPAY LTD (COTTAGE NUR HOME),Third Party Payments,Private Contractor Fees,73373-RESIDENTIAL & NURSING CARE PLACEMENTS,"1,933.16",Revenue,10/12/2014,Social Care & Inclusion
WC51-0148,ACEPAY LTD (COTTAGE NUR HOME),Third Party Payments,Private Contractor Fees,73373-RESIDENTIAL & NURSING CARE PLACEMENTS,"1,933.16",Revenue,10/12/2014,Social Care & Inclusion
WC51-0149,ACEPAY LTD (COTTAGE NUR HOME),Third Party Payments,Private Contractor Fees,73373-RESIDENTIAL & NURSING CARE PLACEMENTS,"1,933.16",Revenue,10/12/2014,Social Care & Inclusion
WC51-0150,ACEPAY LTD (COTTAGE NUR HOME),Third Party Payments,Private Contractor Fees,73373-RESIDENTIAL & NURSING CARE PLACEMENTS,"1,933.16",Revenue,10/12/2014,Social Care & Inclusion
WC51-0151,ACEPAY LTD (COTTAGE NUR HOME),Third Party Payments,Private Contractor Fees,73373-RESIDENTIAL & NURSING CARE PLACEMENTS,"1,933.16",Revenue,10/12/2014,Social Care & Inclusion
WC51-0152,ACEPAY LTD (COTTAGE NUR HOME),Third Party Payments,Private Contractor Fees,73373-RESIDENTIAL & NURSING CARE PLACEMENTS,"1,933.16",Revenue,10/12/2014,Social Care & Inclusion
WC51-0153,ACEPAY LTD (COTTAGE NUR HOME),Third Party Payments,Private Contractor Fees,73373-RESIDENTIAL & NURSING CARE PLACEMENTS,"1,933.16",Revenue,10/12/2014,Social Care & Inclusion
WC51-0154,ACEPAY LTD (COTTAGE NUR HOME),Third Party Payments,Private Contractor Fees,73373-RESIDENTIAL & NURSING CARE PLACEMENTS,"1,933.16",Revenue,10/12/2014,Social Care & Inclusion
WC51-0155,ACEPAY LTD (COTTAGE NUR HOME),Third Party Payments,Private Contractor Fees,73373-RESIDENTIAL & NURSING CARE PLACEMENTS,"1,933.16",Revenue,10/12/2014,Social Care & Inclusion
WC51-0156,ACEPAY LTD (COTTAGE NUR HOME),Third Party Payments,Private Contractor Fees,73373-RESIDENTIAL & NURSING CARE PLACEMENTS,"1,933.16",Revenue,10/12/2014,Social Care & Inclusion
WC51-0157,ACEPAY LTD (COTTAGE NUR HOME),Third Party Payments,Private Contractor Fees,73373-RESIDENTIAL & NURSING CARE PLACEMENTS,"1,933.16",Revenue,10/12/2014,Social Care & Inclusion
WC51-0158,ACEPAY LTD (COTTAGE NUR HOME),Third Party Payments,Private Contractor Fees,73373-RESIDENTIAL & NURSING CARE PLACEMENTS,"1,979.20",Revenue,10/12/2014,Social Care & Inclusion
WC51-0159,ACEPAY LTD (COTTAGE NUR HOME),Third Party Payments,Private Contractor Fees,73373-RESIDENTIAL & NURSING CARE PLACEMENTS,"1,979.20",Revenue,10/12/2014,Social Care & Inclusion
WC51-0160,ACEPAY LTD (COTTAGE NUR HOME),Third Party Payments,Private Contractor Fees,73373-RESIDENTIAL & NURSING CARE PLACEMENTS,"1,979.20",Revenue,10/12/2014,Social Care & Inclusion
WC51-0161,ACEPAY LTD (COTTAGE NUR HOME),Third Party Payments,Private Contractor Fees,73373-RESIDENTIAL & NURSING CARE PLACEMENTS,"1,979.20",Revenue,10/12/2014,Social Care & Inclusion
WC51-0162,ACEPAY LTD (COTTAGE NUR HOME),Third Party Payments,Private Contractor Fees,73373-RESIDENTIAL & NURSING CARE PLACEMENTS,"1,979.20",Revenue,10/12/2014,Social Care & Inclusion
WC51-0163,ACEPAY LTD (COTTAGE NUR HOME),Third Party Payments,Private Contractor Fees,73373-RESIDENTIAL & NURSING CARE PLACEMENTS,"1,979.20",Revenue,10/12/2014,Social Care & Inclusion
WC51-0164,ACEPAY LTD (COTTAGE NUR HOME),Third Party Payments,Private Contractor Fees,73373-RESIDENTIAL & NURSING CARE PLACEMENTS,"2,002.20",Revenue,10/12/2014,Social Care & Inclusion
WC51-0165,ACEPAY LTD (COTTAGE NUR HOME),Third Party Payments,Private Contractor Fees,73373-RESIDENTIAL & NURSING CARE PLACEMENTS,"2,372.32",Revenue,10/12/2014,Social Care & Inclusion
WC51-0166,ACEPAY LTD (COTTAGE NUR HOME),Third Party Payments,Private Contractor Fees,73373-RESIDENTIAL & NURSING CARE PLACEMENTS,"2,372.32",Revenue,10/12/2014,Social Care & Inclusion
WC51-0167,ACEPAY LTD (COTTAGE NUR HOME),Third Party Payments,Private Contractor Fees,73373-RESIDENTIAL & NURSING CARE PLACEMENTS,"5,605.08",Revenue,10/12/2014,Social Care & Inclusion
WC51-0168,ACORN CARE LTD,Third Party Payments,Private Contractor Fees,73373-RESIDENTIAL & NURSING CARE PLACEMENTS,"14,840.32",Revenue,17/12/2014,Social Care & Inclusion
WC51-0169,ACORN FOSTERING SERVICES LTD,Third Party Payments,Private Contractor Fees,74037-INDEPENDENT FOSTER CARE-OTH AGENCY PROVISION,"3,492.86",Revenue,17/12/2014,Childrens
WC51-0170,ACTION DIGITAL MEDIA LTD,Supplies & Services,"Printing, Stationery & Office Exp",62000-EXTERNAL PRINTING SERVICES,909.96,Revenue,10/12/2014,Neighbourhood Services
WC51-0171,ACTION FOR CHILDREN,Third Party Payments,Private Contractor Fees,74037-INDEPENDENT FOSTER CARE-OTH AGENCY PROVISION,"3,518.85",Revenue,17/12/2014,Childrens
WC51-0172,ACTION FOR CHILDREN,Third Party Payments,Grants to Other Orgs,66502-TOP UP FUNDING -GRANTS TO SCHOOLS,"60,000.00",Revenue,01/12/2014,Childrens
WC51-0173,ACTION ON HEARING LOSS,Third Party Payments,Private Contractor Fees,73374-SUPPORTED & OTHER ACCOMMODATION,479.28,Revenue,08/12/2014,Social Care & Inclusion
WC51-0174,ACTION ON HEARING LOSS,Third Party Payments,Private Contractor Fees,73374-SUPPORTED & OTHER ACCOMMODATION,479.28,Revenue,09/12/2014,Social Care & Inclusion
WC51-0175,REDACTED,Transfer Payments,Transfer Payments,76422-DIRECT PAYMENTS TO SOCIAL SERVICES CLIENTS,609.50,Revenue,08/12/2014,Childrens
WC51-0176,REDACTED,Transfer Payments,Transfer Payments,76422-DIRECT PAYMENTS TO SOCIAL SERVICES CLIENTS,"1,443.00",Revenue,08/12/2014,Social Care & Inclusion
WC51-0177,REDACTED,Transfer Payments,Transfer Payments,76422-DIRECT PAYMENTS TO SOCIAL SERVICES CLIENTS,"1,559.44",Revenue,08/12/2014,Social Care & Inclusion
WC51-0178,ADMIRAL SELF STORAGE LTD,Supplies & Services,Services,63000-PROFESSIONAL FEES AND SERVICES,419.32,Revenue,01/12/2014,Resources
WC51-0179,ADMIRAL SELF STORAGE LTD,Supplies & Services,Services,63000-PROFESSIONAL FEES AND SERVICES,419.32,Revenue,23/12/2014,Resources
WC51-0180,REDACTED,Third Party Payments,Private Contractor Fees,74006-HOLIDAY/CHRISTMAS ALLOWANCE-FOSTER CARERS-OTH AGENCY PROVISION,681.52,Revenue,18/12/2014,Childrens
WC51-0181,ADS ELECTRICAL & HIGHWAY SERVICES LTD,Supplies & Services,Services,63000-PROFESSIONAL FEES AND SERVICES,"1,945.00",Revenue,12/12/2014,Neighbourhood Services
WC51-0182,ADS ELECTRICAL & HIGHWAY SERVICES LTD,Supplies & Services,"Equip,Furniture & Materials",60534-VEHICLE TESTING STATION-MATERIALS,"3,835.00",Revenue,12/12/2014,Neighbourhood Services
WC51-0183,ADS ELECTRICAL & HIGHWAY SERVICES LTD,Supplies & Services,Services,63000-PROFESSIONAL FEES AND SERVICES,"9,945.00",Revenue,12/12/2014,Neighbourhood Services
WC51-0184,ADVANCE HEALTH CARE (UK) LTD,Employees,Agency,34305-AGENCY STAFF-EMPLOYEES,"5,525.00",Revenue,17/12/2014,Social Care & Inclusion
WC51-0185,ADVANCE HEALTH CARE (UK) LTD,Third Party Payments,Private Contractor Fees,73372-DOMICILIARY CARE,"21,970.94",Revenue,09/12/2014,Social Care & Inclusion
WC51-0186,ADVANCED CONTRACTS (MIDLANDS) LTD,Premises,Premises-Repairs & Maintenance,"40000-REPAIRS,ALTERATIONS & MAINTENANCE-PREM",430.80,Revenue,08/12/2014,Regeneration
WC51-0187,ADVANCED CONTRACTS (MIDLANDS) LTD,Third Party Payments,Private Contractor Fees,73025-PROFESSIONAL SERVICES-PRIV CONTRACTOR & OTHER AGENCIES,696.00,Revenue,01/12/2014,Regeneration
WC51-0188,ADVANCED CONTRACTS (MIDLANDS) LTD,Premises,Premises-Repairs & Maintenance,"40000-REPAIRS,ALTERATIONS & MAINTENANCE-PREM",698.80,Revenue,10/12/2014,Regeneration
WC51-0189,ADVANCED CONTRACTS (MIDLANDS) LTD,Premises,Premises-Repairs & Maintenance,"40000-REPAIRS,ALTERATIONS & MAINTENANCE-PREM","1,660.00",Revenue,05/12/2014,Regeneration
WC51-0190,ADVANCED CONTRACTS (MIDLANDS) LTD,Premises,Premises-Repairs & Maintenance,"40000-REPAIRS,ALTERATIONS & MAINTENANCE-PREM","1,788.60",Revenue,05/12/2014,Regeneration
WC51-0191,ADVANCED CONTRACTS (MIDLANDS) LTD,Premises,Premises-Repairs & Maintenance,"40000-REPAIRS,ALTERATIONS & MAINTENANCE-PREM","1,815.00",Revenue,02/12/2014,Regeneration
WC51-0192,ADVANCED CONTRACTS (MIDLANDS) LTD,Premises,Premises-Repairs & Maintenance,"40000-REPAIRS,ALTERATIONS & MAINTENANCE-PREM","1,945.00",Revenue,08/12/2014,Regeneration
WC51-0193,ADVANCED HEALTH AND CARE,Employees,Training,30030-EXTERNAL TRAINING,"1,300.00",Revenue,01/12/2014,Social Care & Inclusion
WC51-0194,ADVANCED HEALTH AND CARE,Employees,Training,30030-EXTERNAL TRAINING,"2,950.00",Revenue,01/12/2014,Social Care & Inclusion
WC51-0195,ADVENTURELAND DAY NURSERY,Third Party Payments,Grants to Other Orgs,66505-OTHER-GRANTS TO OTHER ORGS,"5,669.96",Revenue,01/12/2014,Childrens
WC51-0196,ADVENTURELAND DAY NURSERY,Third Party Payments,Grants to Other Orgs,66505-OTHER-GRANTS TO OTHER ORGS,"6,194.51",Revenue,19/12/2014,Childrens
WC51-0197,AGINCARE UK LTD,Third Party Payments,Private Contractor Fees,73372-DOMICILIARY CARE,"1,713.60",Revenue,09/12/2014,Social Care & Inclusion
WC51-0198,AGINCARE UK LTD,Third Party Payments,Private Contractor Fees,73372-DOMICILIARY CARE,"2,036.88",Revenue,08/12/2014,Social Care & Inclusion
WC51-0199,AIDSERVICE LTD,Supplies & Services,"Equip,Furniture & Materials",60013-DISABLED-EQUIPMENT,"1,343.00",Revenue,02/12/2014,Social Care & Inclusion
WC51-0200,REDACTED,Transfer Payments,Transfer Payments,76422-DIRECT PAYMENTS TO SOCIAL SERVICES CLIENTS,"2,352.50",Revenue,08/12/2014,Social Care & Inclusion
WC51-0201,REDACTED,Transfer Payments,Transfer Payments,76422-DIRECT PAYMENTS TO SOCIAL SERVICES CLIENTS,"1,170.65",Revenue,08/12/2014,Social Care & Inclusion
WC51-0202,REDACTED,Transfer Payments,Transfer Payments,76422-DIRECT PAYMENTS TO SOCIAL SERVICES CLIENTS,834.75,Revenue,08/12/2014,Social Care & Inclusion
WC51-0203,ALDERGROVE MANOR CARE HOME,Third Party Payments,Private Contractor Fees,73373-RESIDENTIAL & NURSING CARE PLACEMENTS,"1,784.48",Revenue,17/12/2014,Social Care & Inclusion
WC51-0204,ALDRIDGE & BARONS LIMITED,Transport,Car Allowances,53004-TAXIS-TRAVEL ALLOWANCES,252.08,Revenue,08/12/2014,Childrens
WC51-0205,ALDRIDGE & BARONS LIMITED,Transport,Car Allowances,53004-TAXIS-TRAVEL ALLOWANCES,330.00,Revenue,09/12/2014,Childrens
WC51-0206,ALDRIDGE & BARONS LIMITED,Transport,Hire,52001-HIRE OF VEHICLES,380.00,Revenue,10/12/2014,Social Care & Inclusion
WC51-0207,ALDRIDGE & BARONS LIMITED,Transport,Hire,52001-HIRE OF VEHICLES,540.00,Revenue,09/12/2014,Social Care & Inclusion
WC51-0208,ALDRIDGE & BARONS LIMITED,Transport,Hire,52001-HIRE OF VEHICLES,682.00,Revenue,09/12/2014,Social Care & Inclusion
WC51-0209,ALDRIDGE & BARONS LIMITED,Transport,Hire,52001-HIRE OF VEHICLES,770.00,Revenue,15/12/2014,Childrens
WC51-0210,ALDRIDGE & BARONS LIMITED,Transport,Hire,52001-HIRE OF VEHICLES,"1,012.00",Revenue,09/12/2014,Social Care & Inclusion
WC51-0211,ALDRIDGE & BARONS LIMITED,Transport,Hire,52001-HIRE OF VEHICLES,"1,054.39",Revenue,09/12/2014,Social Care & Inclusion
WC51-0212,ALDRIDGE & BARONS LIMITED,Transport,Hire,52001-HIRE OF VEHICLES,"1,238.52",Revenue,09/12/2014,Social Care & Inclusion
WC51-0213,ALDRIDGE & BARONS LIMITED,Transport,Hire,52001-HIRE OF VEHICLES,"1,323.00",Revenue,23/12/2014,Childrens
WC51-0214,ALDRIDGE & BARONS LIMITED,Transport,Hire,52000-WITH DRIVER-HIRE OF VEHICLES,"1,544.40",Revenue,11/12/2014,Childrens
WC51-0215,ALDRIDGE & BARONS LIMITED,Transport,Hire,52001-HIRE OF VEHICLES,"1,558.36",Revenue,10/12/2014,Social Care & Inclusion
WC51-0216,ALDRIDGE & BARONS LIMITED,Transport,Hire,52001-HIRE OF VEHICLES,"2,766.42",Revenue,09/12/2014,Social Care & Inclusion
WC51-0217,ALDRIDGE & BARONS LIMITED,Transport,Hire,52000-WITH DRIVER-HIRE OF VEHICLES,"3,034.20",Revenue,09/12/2014,Childrens
WC51-0218,ALDRIDGE & BARONS LIMITED,Transport,Hire,52000-WITH DRIVER-HIRE OF VEHICLES,"3,672.00",Revenue,23/12/2014,Childrens
WC51-0219,ALDRIDGE & BARONS LIMITED,Transport,Hire,52000-WITH DRIVER-HIRE OF VEHICLES,"4,524.00",Revenue,01/12/2014,Childrens
WC51-0220,ALDRIDGE SCHOOL A SCIENCE COLLEGE.,Third Party Payments,Grants to Other Orgs,66502-TOP UP FUNDING -GRANTS TO SCHOOLS,"6,503.81",Revenue,19/12/2014,Childrens
WC51-0221,ALERE LTD,Supplies & Services,Communications & Computing,63809-LICENCES-COMPUTER,"-1,065.00",Revenue,11/12/2014,Neighbourhood Services
WC51-0222,REDACTED,Transfer Payments,Transfer Payments,76422-DIRECT PAYMENTS TO SOCIAL SERVICES CLIENTS,"1,505.00",Revenue,08/12/2014,Social Care & Inclusion
WC51-0223,ALEXANDRA HOUSE CARE SERVICES LTD T/A STONEBRIDGE NURSING HOME,Third Party Payments,Private Contractor Fees,73373-RESIDENTIAL & NURSING CARE PLACEMENTS,"6,960.84",Revenue,02/12/2014,Social Care & Inclusion
WC51-0224,REDACTED,Transfer Payments,Transfer Payments,76422-DIRECT PAYMENTS TO SOCIAL SERVICES CLIENTS,728.33,Revenue,08/12/2014,Childrens
WC51-0225,REDACTED,Transfer Payments,Transfer Payments,76422-DIRECT PAYMENTS TO SOCIAL SERVICES CLIENTS,"1,067.50",Revenue,08/12/2014,Social Care & Inclusion
WC51-0226,REDACTED,Transfer Payments,Transfer Payments,76422-DIRECT PAYMENTS TO SOCIAL SERVICES CLIENTS,411.00,Revenue,08/12/2014,Social Care & Inclusion
WC51-0227,REDACTED,Third Party Payments,Private Contractor Fees,74006-HOLIDAY/CHRISTMAS ALLOWANCE-FOSTER CARERS-OTH AGENCY PROVISION,584.10,Revenue,08/12/2014,Childrens
WC51-0228,REDACTED,Supplies & Services,Other Supplies & Services,62515-MISCELLANEOUS SUPPLIES,"1,428.44",Revenue,08/12/2014,Childrens
WC51-0229,REDACTED,Third Party Payments,Private Contractor Fees,74006-HOLIDAY/CHRISTMAS ALLOWANCE-FOSTER CARERS-OTH AGENCY PROVISION,542.80,Revenue,18/12/2014,Childrens
WC51-0230,ALLSORTS OFFICE SUPPLIES LTD,Capital,Capital,01044-PURCHASE OF FURNITURE & EQUIPMENT,552.00,Capital,17/12/2014,Regeneration
WC51-0231,ALMA COURT,Third Party Payments,Private Contractor Fees,73373-RESIDENTIAL & NURSING CARE PLACEMENTS,"6,177.86",Revenue,17/12/2014,Social Care & Inclusion
WC51-0232,ALMA COURT,Third Party Payments,Private Contractor Fees,73373-RESIDENTIAL & NURSING CARE PLACEMENTS,"6,177.86",Revenue,19/12/2014,Social Care & Inclusion
WC51-0233,ALMOZENE NURSERY & CHILDRENS CENTRE,Third Party Payments,Grants to Other Orgs,66505-OTHER-GRANTS TO OTHER ORGS,"4,577.04",Revenue,01/12/2014,Childrens
WC51-0234,ALMOZENE NURSERY & CHILDRENS CENTRE,Third Party Payments,Grants to Other Orgs,66505-OTHER-GRANTS TO OTHER ORGS,"8,420.02",Revenue,19/12/2014,Childrens
WC51-0235,ALPHA HEALTH CARE LTD,Third Party Payments,Private Contractor Fees,73373-RESIDENTIAL & NURSING CARE PLACEMENTS,"-7,448.00",Revenue,02/12/2014,Social Care & Inclusion
WC51-0236,ALPHA HEALTH CARE LTD,Third Party Payments,Private Contractor Fees,73373-RESIDENTIAL & NURSING CARE PLACEMENTS,328.74,Revenue,10/12/2014,Social Care & Inclusion
WC51-0237,ALPHA HEALTH CARE LTD,Third Party Payments,Private Contractor Fees,73373-RESIDENTIAL & NURSING CARE PLACEMENTS,345.21,Revenue,02/12/2014,Social Care & Inclusion
WC51-0238,ALPHA HEALTH CARE LTD,Third Party Payments,Private Contractor Fees,73373-RESIDENTIAL & NURSING CARE PLACEMENTS,383.53,Revenue,10/12/2014,Social Care & Inclusion
WC51-0239,ALPHA HEALTH CARE LTD,Third Party Payments,Private Contractor Fees,73373-RESIDENTIAL & NURSING CARE PLACEMENTS,438.32,Revenue,02/12/2014,Social Care & Inclusion
WC51-0240,ALPHA HEALTH CARE LTD,Third Party Payments,Private Contractor Fees,73373-RESIDENTIAL & NURSING CARE PLACEMENTS,547.90,Revenue,10/12/2014,Social Care & Inclusion
WC51-0241,ALPHA HEALTH CARE LTD,Third Party Payments,Private Contractor Fees,73373-RESIDENTIAL & NURSING CARE PLACEMENTS,821.85,Revenue,10/12/2014,Social Care & Inclusion
WC51-0242,ALPHA HEALTH CARE LTD,Third Party Payments,Private Contractor Fees,73373-RESIDENTIAL & NURSING CARE PLACEMENTS,986.22,Revenue,02/12/2014,Social Care & Inclusion
WC51-0243,ALPHA HEALTH CARE LTD,Third Party Payments,Private Contractor Fees,73373-RESIDENTIAL & NURSING CARE PLACEMENTS,"1,375.60",Revenue,19/12/2014,Social Care & Inclusion
WC51-0244,ALPHA HEALTH CARE LTD,Third Party Payments,Private Contractor Fees,73373-RESIDENTIAL & NURSING CARE PLACEMENTS,"1,375.60",Revenue,19/12/2014,Social Care & Inclusion
WC51-0245,ALPHA HEALTH CARE LTD,Third Party Payments,Private Contractor Fees,73373-RESIDENTIAL & NURSING CARE PLACEMENTS,"1,382.00",Revenue,19/12/2014,Social Care & Inclusion
WC51-0246,ALPHA HEALTH CARE LTD,Third Party Payments,Private Contractor Fees,73373-RESIDENTIAL & NURSING CARE PLACEMENTS,"1,460.40",Revenue,19/12/2014,Social Care & Inclusion
WC51-0247,ALPHA HEALTH CARE LTD,Third Party Payments,Private Contractor Fees,73373-RESIDENTIAL & NURSING CARE PLACEMENTS,"1,470.60",Revenue,19/12/2014,Social Care & Inclusion
WC51-0248,ALPHA HEALTH CARE LTD,Third Party Payments,Private Contractor Fees,73373-RESIDENTIAL & NURSING CARE PLACEMENTS,"1,476.84",Revenue,19/12/2014,Social Care & Inclusion
WC51-0249,ALPHA HEALTH CARE LTD,Third Party Payments,Private Contractor Fees,73373-RESIDENTIAL & NURSING CARE PLACEMENTS,"1,476.84",Revenue,19/12/2014,Social Care & Inclusion
WC51-0250,ALPHA HEALTH CARE LTD,Third Party Payments,Private Contractor Fees,73373-RESIDENTIAL & NURSING CARE PLACEMENTS,"1,476.84",Revenue,19/12/2014,Social Care & Inclusion
WC51-0251,ALPHA HEALTH CARE LTD,Third Party Payments,Private Contractor Fees,73373-RESIDENTIAL & NURSING CARE PLACEMENTS,"1,489.60",Revenue,19/12/2014,Social Care & Inclusion
WC51-0252,ALPHA HEALTH CARE LTD,Third Party Payments,Private Contractor Fees,73373-RESIDENTIAL & NURSING CARE PLACEMENTS,"1,489.60",Revenue,19/12/2014,Social Care & Inclusion
WC51-0253,ALPHA HEALTH CARE LTD,Third Party Payments,Private Contractor Fees,73373-RESIDENTIAL & NURSING CARE PLACEMENTS,"1,489.60",Revenue,19/12/2014,Social Care & Inclusion
WC51-0254,ALPHA HEALTH CARE LTD,Third Party Payments,Private Contractor Fees,73373-RESIDENTIAL & NURSING CARE PLACEMENTS,"1,489.60",Revenue,19/12/2014,Social Care & Inclusion
WC51-0255,ALPHA HEALTH CARE LTD,Third Party Payments,Private Contractor Fees,73373-RESIDENTIAL & NURSING CARE PLACEMENTS,"1,489.60",Revenue,19/12/2014,Social Care & Inclusion
WC51-0256,ALPHA HEALTH CARE LTD,Third Party Payments,Private Contractor Fees,73373-RESIDENTIAL & NURSING CARE PLACEMENTS,"1,489.60",Revenue,19/12/2014,Social Care & Inclusion
WC51-0257,ALPHA HEALTH CARE LTD,Third Party Payments,Private Contractor Fees,73373-RESIDENTIAL & NURSING CARE PLACEMENTS,"1,489.60",Revenue,19/12/2014,Social Care & Inclusion
WC51-0258,ALPHA HEALTH CARE LTD,Third Party Payments,Private Contractor Fees,73373-RESIDENTIAL & NURSING CARE PLACEMENTS,"1,489.60",Revenue,19/12/2014,Social Care & Inclusion
WC51-0259,ALPHA HEALTH CARE LTD,Third Party Payments,Private Contractor Fees,73373-RESIDENTIAL & NURSING CARE PLACEMENTS,"1,489.60",Revenue,19/12/2014,Social Care & Inclusion
WC51-0260,ALPHA HEALTH CARE LTD,Third Party Payments,Private Contractor Fees,73373-RESIDENTIAL & NURSING CARE PLACEMENTS,"1,489.64",Revenue,19/12/2014,Social Care & Inclusion
WC51-0261,ALPHA HEALTH CARE LTD,Third Party Payments,Private Contractor Fees,73373-RESIDENTIAL & NURSING CARE PLACEMENTS,"1,494.00",Revenue,10/12/2014,Social Care & Inclusion
WC51-0262,ALPHA HEALTH CARE LTD,Third Party Payments,Private Contractor Fees,73373-RESIDENTIAL & NURSING CARE PLACEMENTS,"1,534.12",Revenue,19/12/2014,Social Care & Inclusion
WC51-0263,ALPHA HEALTH CARE LTD,Third Party Payments,Private Contractor Fees,73373-RESIDENTIAL & NURSING CARE PLACEMENTS,"1,534.12",Revenue,19/12/2014,Social Care & Inclusion
WC51-0264,ALPHA HEALTH CARE LTD,Third Party Payments,Private Contractor Fees,73373-RESIDENTIAL & NURSING CARE PLACEMENTS,"1,534.12",Revenue,19/12/2014,Social Care & Inclusion
WC51-0265,ALPHA HEALTH CARE LTD,Third Party Payments,Private Contractor Fees,73373-RESIDENTIAL & NURSING CARE PLACEMENTS,"1,534.12",Revenue,19/12/2014,Social Care & Inclusion
WC51-0266,ALPHA HEALTH CARE LTD,Third Party Payments,Private Contractor Fees,73373-RESIDENTIAL & NURSING CARE PLACEMENTS,"1,534.28",Revenue,19/12/2014,Social Care & Inclusion
WC51-0267,ALPHA HEALTH CARE LTD,Third Party Payments,Private Contractor Fees,73373-RESIDENTIAL & NURSING CARE PLACEMENTS,"1,590.32",Revenue,19/12/2014,Social Care & Inclusion
WC51-0268,ALPHA HEALTH CARE LTD,Third Party Payments,Private Contractor Fees,73373-RESIDENTIAL & NURSING CARE PLACEMENTS,"2,008.20",Revenue,19/12/2014,Social Care & Inclusion
WC51-0269,ALPHA HEALTH CARE LTD,Third Party Payments,Private Contractor Fees,73373-RESIDENTIAL & NURSING CARE PLACEMENTS,"2,109.44",Revenue,19/12/2014,Social Care & Inclusion
WC51-0270,ALPHA HEALTH CARE LTD,Third Party Payments,Private Contractor Fees,73373-RESIDENTIAL & NURSING CARE PLACEMENTS,"5,426.72",Revenue,19/12/2014,Social Care & Inclusion
WC51-0271,ALPHA HEALTH CARE LTD,Third Party Payments,Private Contractor Fees,73373-RESIDENTIAL & NURSING CARE PLACEMENTS,"5,600.00",Revenue,19/12/2014,Social Care & Inclusion
WC51-0272,ALPHA HEALTH CARE LTD,Third Party Payments,Private Contractor Fees,73373-RESIDENTIAL & NURSING CARE PLACEMENTS,"8,541.06",Revenue,02/12/2014,Social Care & Inclusion
WC51-0273,ALTODIGITAL NETWORKS LTD,Central,Internal Recharges,82012-PRINT & DESIGN CHARGES-INTERNAL,318.82,Revenue,01/12/2014,Childrens
WC51-0274,ALTODIGITAL NETWORKS LTD,Supplies & Services,"Equip,Furniture & Materials",60009-LEASING/HIRE/RENTAL-EQUIPMENT,339.25,Revenue,22/12/2014,Resources
WC51-0275,ALTODIGITAL NETWORKS LTD,Supplies & Services,"Equip,Furniture & Materials",60009-LEASING/HIRE/RENTAL-EQUIPMENT,739.05,Revenue,16/12/2014,Resources
WC51-0276,ALTODIGITAL NETWORKS LTD,Supplies & Services,"Equip,Furniture & Materials",60009-LEASING/HIRE/RENTAL-EQUIPMENT,777.31,Revenue,10/12/2014,Resources
WC51-0277,ALTODIGITAL NETWORKS LTD,Supplies & Services,"Equip,Furniture & Materials",60009-LEASING/HIRE/RENTAL-EQUIPMENT,794.56,Revenue,23/12/2014,Childrens
WC51-0278,ALTODIGITAL NETWORKS LTD,Supplies & Services,"Equip,Furniture & Materials",60009-LEASING/HIRE/RENTAL-EQUIPMENT,871.28,Revenue,22/12/2014,Resources
WC51-0279,ALTODIGITAL NETWORKS LTD,Supplies & Services,"Equip,Furniture & Materials",60009-LEASING/HIRE/RENTAL-EQUIPMENT,894.67,Revenue,02/12/2014,Social Care & Inclusion
WC51-0280,ALTODIGITAL NETWORKS LTD,Central,Internal Recharges,82012-PRINT & DESIGN CHARGES-INTERNAL,940.56,Revenue,16/12/2014,Childrens
WC51-0281,ALTODIGITAL NETWORKS LTD,Supplies & Services,"Equip,Furniture & Materials",60009-LEASING/HIRE/RENTAL-EQUIPMENT,"1,000.00",Revenue,16/12/2014,Resources
WC51-0282,ALTODIGITAL NETWORKS LTD,Supplies & Services,"Printing, Stationery & Office Exp",62001-STATIONERY & GENERAL SUPPLIES-OFFICE EXP,"1,449.77",Revenue,17/12/2014,Neighbourhood Services
WC51-0283,ALUMWELLIES NURSERY,Third Party Payments,Grants to Other Orgs,66505-OTHER-GRANTS TO OTHER ORGS,"1,823.26",Revenue,17/12/2014,Childrens
WC51-0284,ALUMWELLIES NURSERY,Third Party Payments,Grants to Other Orgs,66505-OTHER-GRANTS TO OTHER ORGS,"8,875.35",Revenue,01/12/2014,Childrens
WC51-0285,REDACTED,Third Party Payments,Private Contractor Fees,74006-HOLIDAY/CHRISTMAS ALLOWANCE-FOSTER CARERS-OTH AGENCY PROVISION,"1,493.76",Revenue,18/12/2014,Childrens
WC51-0286,REDACTED,Supplies & Services,Other Supplies & Services,62515-MISCELLANEOUS SUPPLIES,350.40,Revenue,08/12/2014,Childrens
WC51-0287,REDACTED,Third Party Payments,Private Contractor Fees,74006-HOLIDAY/CHRISTMAS ALLOWANCE-FOSTER CARERS-OTH AGENCY PROVISION,561.32,Revenue,08/12/2014,Childrens
WC51-0288,REDACTED,Transfer Payments,Transfer Payments,76422-DIRECT PAYMENTS TO SOCIAL SERVICES CLIENTS,818.13,Revenue,08/12/2014,Social Care & Inclusion
WC51-0289,REDACTED,Transfer Payments,Transfer Payments,76422-DIRECT PAYMENTS TO SOCIAL SERVICES CLIENTS,472.81,Revenue,08/12/2014,Childrens
WC51-0290,AMBERLEAF REMOVALS,Supplies & Services,Services,63000-PROFESSIONAL FEES AND SERVICES,250.00,Revenue,09/12/2014,Neighbourhood Services
WC51-0291,AMEY LG LIMITED,Supplies & Services,"Equip,Furniture & Materials",60008-MAINTENANCE-FURNITURE & EQUIPMENT,453.02,Revenue,08/12/2014,Social Care & Inclusion
WC51-0292,AMEY LG LIMITED,Third Party Payments,Private Contractor Fees,73025-PROFESSIONAL SERVICES-PRIV CONTRACTOR & OTHER AGENCIES,856.78,Revenue,12/12/2014,Neighbourhood Services
WC51-0293,AMEY LG LIMITED,Third Party Payments,Private Contractor Fees,73025-PROFESSIONAL SERVICES-PRIV CONTRACTOR & OTHER AGENCIES,"3,854.57",Revenue,02/12/2014,Neighbourhood Services
WC51-0294,AMEY LG LIMITED,Third Party Payments,Private Contractor Fees,73025-PROFESSIONAL SERVICES-PRIV CONTRACTOR & OTHER AGENCIES,"7,667.98",Revenue,11/12/2014,Neighbourhood Services
WC51-0295,AMG NURSING CARE SERVICES,Third Party Payments,Private Contractor Fees,73374-SUPPORTED & OTHER ACCOMMODATION,892.00,Revenue,02/12/2014,Social Care & Inclusion
WC51-0296,AMG NURSING CARE SERVICES,Supplies & Services,Services,63000-PROFESSIONAL FEES AND SERVICES,"1,451.84",Revenue,17/12/2014,Childrens
WC51-0297,AMG NURSING CARE SERVICES,Supplies & Services,Services,63000-PROFESSIONAL FEES AND SERVICES,"1,866.80",Revenue,01/12/2014,Childrens
WC51-0298,AMG NURSING CARE SERVICES,Supplies & Services,Services,63000-PROFESSIONAL FEES AND SERVICES,"2,229.76",Revenue,01/12/2014,Childrens
WC51-0299,AMG NURSING CARE SERVICES,Supplies & Services,Services,63000-PROFESSIONAL FEES AND SERVICES,"2,241.48",Revenue,15/12/2014,Childrens
WC51-0300,AMG NURSING CARE SERVICES,Third Party Payments,Private Contractor Fees,73372-DOMICILIARY CARE,"6,636.31",Revenue,02/12/2014,Social Care & Inclusion
WC51-0301,AMG NURSING CARE SERVICES,Third Party Payments,Private Contractor Fees,73372-DOMICILIARY CARE,"6,891.65",Revenue,02/12/2014,Social Care & Inclusion
WC51-0302,AMG NURSING CARE SERVICES,Third Party Payments,Private Contractor Fees,73372-DOMICILIARY CARE,"6,898.07",Revenue,02/12/2014,Social Care & Inclusion
WC51-0303,REDACTED,Transfer Payments,Transfer Payments,76422-DIRECT PAYMENTS TO SOCIAL SERVICES CLIENTS,"1,856.75",Revenue,08/12/2014,Social Care & Inclusion
WC51-0304,REDACTED,Transfer Payments,Transfer Payments,76422-DIRECT PAYMENTS TO SOCIAL SERVICES CLIENTS,450.00,Revenue,08/12/2014,Social Care & Inclusion
WC51-0305,REDACTED,Transfer Payments,Transfer Payments,76422-DIRECT PAYMENTS TO SOCIAL SERVICES CLIENTS,"1,114.05",Revenue,08/12/2014,Social Care & Inclusion
WC51-0306,REDACTED,Third Party Payments,Private Contractor Fees,74006-HOLIDAY/CHRISTMAS ALLOWANCE-FOSTER CARERS-OTH AGENCY PROVISION,417.56,Revenue,18/12/2014,Childrens
WC51-0307,REDACTED,Transfer Payments,Transfer Payments,76422-DIRECT PAYMENTS TO SOCIAL SERVICES CLIENTS,711.88,Revenue,08/12/2014,Social Care & Inclusion
WC51-0308,REDACTED,Supplies & Services,Other Supplies & Services,62515-MISCELLANEOUS SUPPLIES,438.00,Revenue,08/12/2014,Childrens
WC51-0309,REDACTED,Supplies & Services,Other Supplies & Services,62515-MISCELLANEOUS SUPPLIES,914.24,Revenue,08/12/2014,Childrens
WC51-0310,REDACTED,Third Party Payments,Private Contractor Fees,74006-HOLIDAY/CHRISTMAS ALLOWANCE-FOSTER CARERS-OTH AGENCY PROVISION,"1,358.73",Revenue,08/12/2014,Childrens
WC51-0311,REDACTED,Transfer Payments,Transfer Payments,76422-DIRECT PAYMENTS TO SOCIAL SERVICES CLIENTS,472.50,Revenue,08/12/2014,Social Care & Inclusion
WC51-0312,REDACTED,Third Party Payments,Private Contractor Fees,74006-HOLIDAY/CHRISTMAS ALLOWANCE-FOSTER CARERS-OTH AGENCY PROVISION,886.32,Revenue,08/12/2014,Childrens
WC51-0313,REDACTED,Supplies & Services,Other Supplies & Services,62515-MISCELLANEOUS SUPPLIES,896.24,Revenue,08/12/2014,Childrens
WC51-0314,ANGEL COURT RESIDENTIAL CARE HOME,Third Party Payments,Private Contractor Fees,73373-RESIDENTIAL & NURSING CARE PLACEMENTS,"1,643.70",Revenue,02/12/2014,Social Care & Inclusion
WC51-0315,ANGEL COURT RESIDENTIAL CARE HOME,Third Party Payments,Private Contractor Fees,73373-RESIDENTIAL & NURSING CARE PLACEMENTS,"1,797.34",Revenue,02/12/2014,Social Care & Inclusion
WC51-0316,REDACTED,Third Party Payments,Private Contractor Fees,74006-HOLIDAY/CHRISTMAS ALLOWANCE-FOSTER CARERS-OTH AGENCY PROVISION,"1,918.20",Revenue,18/12/2014,Childrens
WC51-0317,REDACTED,Third Party Payments,Private Contractor Fees,74006-HOLIDAY/CHRISTMAS ALLOWANCE-FOSTER CARERS-OTH AGENCY PROVISION,796.00,Revenue,18/12/2014,Childrens
WC51-0318,ANGLIA STAIRLIFTS LTD,Capital,Capital,01045-PRIVATE GRANTS,"1,800.00",Capital,01/12/2014,Resources
WC51-0319,ANGLIA STAIRLIFTS LTD,Capital,Capital,01006-SITE WORKS MAIN CONTRACTORS,"3,695.00",Capital,01/12/2014,Resources
WC51-0320,ANGLIA STAIRLIFTS LTD,Capital,Capital,01045-PRIVATE GRANTS,"4,765.00",Capital,03/12/2014,Resources
WC51-0321,ANGLIA STAIRLIFTS LTD,Capital,Capital,01045-PRIVATE GRANTS,"4,995.00",Capital,01/12/2014,Resources
WC51-0322,ANGLIA STAIRLIFTS LTD,Capital,Capital,01045-PRIVATE GRANTS,"5,230.00",Capital,03/12/2014,Resources
WC51-0323,ANIMAL ENTERPRISES (UK) LTD,Supplies & Services,Other Supplies & Services,83900-CIVIC EVENTS-OTHER DEMOCRACY COSTS,478.10,Revenue,18/12/2014,Childrens
WC51-0324,ANIMAL ENTERPRISES (UK) LTD,Supplies & Services,Other Supplies & Services,83900-CIVIC EVENTS-OTHER DEMOCRACY COSTS,802.90,Revenue,11/12/2014,Regeneration
WC51-0325,ANIMALMANIA,Supplies & Services,Other Supplies & Services,62515-MISCELLANEOUS SUPPLIES,275.00,Revenue,08/12/2014,Regeneration
WC51-0326,ANIMALMANIA,Supplies & Services,Other Supplies & Services,62515-MISCELLANEOUS SUPPLIES,275.00,Revenue,10/12/2014,Regeneration
WC51-0327,REDACTED,Supplies & Services,Other Supplies & Services,62515-MISCELLANEOUS SUPPLIES,"1,114.62",Revenue,08/12/2014,Childrens
WC51-0328,REDACTED,Third Party Payments,Private Contractor Fees,74006-HOLIDAY/CHRISTMAS ALLOWANCE-FOSTER CARERS-OTH AGENCY PROVISION,"1,378.30",Revenue,08/12/2014,Childrens
WC51-0329,REDACTED,Transfer Payments,Transfer Payments,76422-DIRECT PAYMENTS TO SOCIAL SERVICES CLIENTS,397.50,Revenue,08/12/2014,Social Care & Inclusion
WC51-0330,REDACTED,Supplies & Services,Services,63000-PROFESSIONAL FEES AND SERVICES,750.00,Revenue,12/12/2014,Neighbourhood Services
WC51-0331,REDACTED,Third Party Payments,Private Contractor Fees,73374-SUPPORTED & OTHER ACCOMMODATION,"1,178.14",Revenue,08/12/2014,Social Care & Inclusion
WC51-0332,REDACTED,Supplies & Services,Services,63000-PROFESSIONAL FEES AND SERVICES,385.00,Revenue,09/12/2014,Neighbourhood Services
WC51-0333,REDACTED,Transfer Payments,Transfer Payments,76422-DIRECT PAYMENTS TO SOCIAL SERVICES CLIENTS,782.28,Revenue,08/12/2014,Social Care & Inclusion
WC51-0334,REDACTED,Transfer Payments,Transfer Payments,76422-DIRECT PAYMENTS TO SOCIAL SERVICES CLIENTS,250.00,Revenue,08/12/2014,Social Care & Inclusion
WC51-0335,ANSON COURT RESIDENTIAL HOME,Third Party Payments,Private Contractor Fees,73373-RESIDENTIAL & NURSING CARE PLACEMENTS,"1,532.52",Revenue,17/12/2014,Social Care & Inclusion
WC51-0336,ANSON COURT RESIDENTIAL HOME,Third Party Payments,Private Contractor Fees,73373-RESIDENTIAL & NURSING CARE PLACEMENTS,"1,534.12",Revenue,10/12/2014,Social Care & Inclusion
WC51-0337,ANSON COURT RESIDENTIAL HOME,Third Party Payments,Private Contractor Fees,73373-RESIDENTIAL & NURSING CARE PLACEMENTS,"1,534.12",Revenue,17/12/2014,Social Care & Inclusion
WC51-0338,ANSON COURT RESIDENTIAL HOME,Third Party Payments,Private Contractor Fees,73373-RESIDENTIAL & NURSING CARE PLACEMENTS,"1,534.12",Revenue,17/12/2014,Social Care & Inclusion
WC51-0339,ANSON COURT RESIDENTIAL HOME,Third Party Payments,Private Contractor Fees,73373-RESIDENTIAL & NURSING CARE PLACEMENTS,"1,534.12",Revenue,17/12/2014,Social Care & Inclusion
WC51-0340,ANSON COURT RESIDENTIAL HOME,Third Party Payments,Private Contractor Fees,73373-RESIDENTIAL & NURSING CARE PLACEMENTS,"1,534.12",Revenue,17/12/2014,Social Care & Inclusion
WC51-0341,ANSON COURT RESIDENTIAL HOME,Third Party Payments,Private Contractor Fees,73373-RESIDENTIAL & NURSING CARE PLACEMENTS,"1,534.12",Revenue,17/12/2014,Social Care & Inclusion
WC51-0342,ANSON COURT RESIDENTIAL HOME,Third Party Payments,Private Contractor Fees,73373-RESIDENTIAL & NURSING CARE PLACEMENTS,"1,534.12",Revenue,17/12/2014,Social Care & Inclusion
WC51-0343,ANSON COURT RESIDENTIAL HOME,Third Party Payments,Private Contractor Fees,73373-RESIDENTIAL & NURSING CARE PLACEMENTS,"1,534.12",Revenue,17/12/2014,Social Care & Inclusion
WC51-0344,ANSON COURT RESIDENTIAL HOME,Third Party Payments,Private Contractor Fees,73373-RESIDENTIAL & NURSING CARE PLACEMENTS,"1,534.12",Revenue,17/12/2014,Social Care & Inclusion
WC51-0345,ANSON COURT RESIDENTIAL HOME,Third Party Payments,Private Contractor Fees,73373-RESIDENTIAL & NURSING CARE PLACEMENTS,"1,534.12",Revenue,17/12/2014,Social Care & Inclusion
WC51-0346,ANSON COURT RESIDENTIAL HOME,Third Party Payments,Private Contractor Fees,73373-RESIDENTIAL & NURSING CARE PLACEMENTS,"1,534.72",Revenue,17/12/2014,Social Care & Inclusion
WC51-0347,ANSON COURT RESIDENTIAL HOME,Third Party Payments,Private Contractor Fees,73373-RESIDENTIAL & NURSING CARE PLACEMENTS,"1,612.92",Revenue,17/12/2014,Social Care & Inclusion
WC51-0348,ANSON COURT RESIDENTIAL HOME,Third Party Payments,Private Contractor Fees,73373-RESIDENTIAL & NURSING CARE PLACEMENTS,"1,614.12",Revenue,17/12/2014,Social Care & Inclusion
WC51-0349,ANSON COURT RESIDENTIAL HOME,Third Party Payments,Private Contractor Fees,73373-RESIDENTIAL & NURSING CARE PLACEMENTS,"1,614.72",Revenue,17/12/2014,Social Care & Inclusion
WC51-0350,ANSON COURT RESIDENTIAL HOME,Third Party Payments,Private Contractor Fees,73373-RESIDENTIAL & NURSING CARE PLACEMENTS,"1,614.72",Revenue,17/12/2014,Social Care & Inclusion
WC51-0351,ANSON COURT RESIDENTIAL HOME,Third Party Payments,Private Contractor Fees,73373-RESIDENTIAL & NURSING CARE PLACEMENTS,"2,355.97",Revenue,10/12/2014,Social Care & Inclusion
WC51-0352,ANSON COURT RESIDENTIAL HOME,Third Party Payments,Private Contractor Fees,73373-RESIDENTIAL & NURSING CARE PLACEMENTS,"2,958.66",Revenue,19/12/2014,Social Care & Inclusion
WC51-0353,ANSON COURT RESIDENTIAL HOME,Third Party Payments,Private Contractor Fees,73373-RESIDENTIAL & NURSING CARE PLACEMENTS,"3,516.48",Revenue,17/12/2014,Social Care & Inclusion
WC51-0354,REDACTED,Third Party Payments,Private Contractor Fees,74006-HOLIDAY/CHRISTMAS ALLOWANCE-FOSTER CARERS-OTH AGENCY PROVISION,"1,364.56",Revenue,18/12/2014,Childrens
WC51-0355,REDACTED,Third Party Payments,Private Contractor Fees,74006-HOLIDAY/CHRISTMAS ALLOWANCE-FOSTER CARERS-OTH AGENCY PROVISION,561.32,Revenue,18/12/2014,Childrens
WC51-0356,APCOA PARKING SERVICES (UK) LTD,Third Party Payments,Private Contractor Fees,73025-PROFESSIONAL SERVICES-PRIV CONTRACTOR & OTHER AGENCIES,"39,287.85",Revenue,11/12/2014,Neighbourhood Services
WC51-0357,APCOA PARKING SERVICES (UK) LTD,Third Party Payments,Private Contractor Fees,73025-PROFESSIONAL SERVICES-PRIV CONTRACTOR & OTHER AGENCIES,"40,168.40",Revenue,16/12/2014,Neighbourhood Services
WC51-0358,APPLE TRANSCRIPTION LIMITED,Third Party Payments,Private Contractor Fees,73014-LEGAL FEES-PRIV CONTRACTOR FEES,595.00,Revenue,02/12/2014,Childrens
WC51-0359,APSE 001,Employees,Training,30030-EXTERNAL TRAINING,996.00,Revenue,08/12/2014,Neighbourhood Services
WC51-0360,AQUA INSTALL,Supplies & Services,"Equip,Furniture & Materials",60008-MAINTENANCE-FURNITURE & EQUIPMENT,260.00,Revenue,23/12/2014,Childrens
WC51-0361,AQUA INSTALL,Supplies & Services,"Equip,Furniture & Materials",60008-MAINTENANCE-FURNITURE & EQUIPMENT,260.00,Revenue,23/12/2014,Childrens
WC51-0362,ARBORETUM NURSING HOME.,Third Party Payments,Private Contractor Fees,73373-RESIDENTIAL & NURSING CARE PLACEMENTS,414.25,Revenue,10/12/2014,Social Care & Inclusion
WC51-0363,ARBORETUM NURSING HOME.,Third Party Payments,Private Contractor Fees,73373-RESIDENTIAL & NURSING CARE PLACEMENTS,"1,518.91",Revenue,10/12/2014,Social Care & Inclusion
WC51-0364,ARBORETUM NURSING HOME.,Third Party Payments,Private Contractor Fees,73373-RESIDENTIAL & NURSING CARE PLACEMENTS,"1,933.16",Revenue,10/12/2014,Social Care & Inclusion
WC51-0365,ARBORETUM NURSING HOME.,Third Party Payments,Private Contractor Fees,73373-RESIDENTIAL & NURSING CARE PLACEMENTS,"1,990.16",Revenue,10/12/2014,Social Care & Inclusion
WC51-0366,ARBORETUM NURSING HOME.,Third Party Payments,Private Contractor Fees,73373-RESIDENTIAL & NURSING CARE PLACEMENTS,"2,416.45",Revenue,10/12/2014,Social Care & Inclusion
WC51-0367,ARBORETUM NURSING HOME.,Third Party Payments,Private Contractor Fees,73373-RESIDENTIAL & NURSING CARE PLACEMENTS,"2,416.45",Revenue,17/12/2014,Social Care & Inclusion
WC51-0368,ARBORETUM NURSING HOME.,Third Party Payments,Private Contractor Fees,73373-RESIDENTIAL & NURSING CARE PLACEMENTS,"2,416.45",Revenue,17/12/2014,Social Care & Inclusion
WC51-0369,ARBORETUM NURSING HOME.,Third Party Payments,Private Contractor Fees,73373-RESIDENTIAL & NURSING CARE PLACEMENTS,"2,416.45",Revenue,17/12/2014,Social Care & Inclusion
WC51-0370,ARBORETUM NURSING HOME.,Third Party Payments,Private Contractor Fees,73373-RESIDENTIAL & NURSING CARE PLACEMENTS,"2,416.45",Revenue,17/12/2014,Social Care & Inclusion
WC51-0371,ARBORETUM NURSING HOME.,Third Party Payments,Private Contractor Fees,73373-RESIDENTIAL & NURSING CARE PLACEMENTS,"2,488.45",Revenue,19/12/2014,Social Care & Inclusion
WC51-0372,ARCO GROUP,Supplies & Services,"Equip,Furniture & Materials",60500-GENERAL MATERIALS,"2,500.00",Revenue,16/12/2014,Neighbourhood Services
WC51-0373,ASDA PHARMACY,Supplies & Services,Services,63000-PROFESSIONAL FEES AND SERVICES,112.50,Revenue,10/12/2014,Neighbourhood Services
WC51-0374,ASDA PHARMACY,Supplies & Services,Services,63000-PROFESSIONAL FEES AND SERVICES,189.50,Revenue,09/12/2014,Neighbourhood Services
WC51-0375,ASDA PHARMACY,Supplies & Services,Services,63000-PROFESSIONAL FEES AND SERVICES,287.50,Revenue,10/12/2014,Neighbourhood Services
WC51-0376,ASDA PHARMACY,Supplies & Services,Services,63000-PROFESSIONAL FEES AND SERVICES,655.69,Revenue,09/12/2014,Neighbourhood Services
WC51-0377,ASH GRANGE CARE HOME,Third Party Payments,Private Contractor Fees,73373-RESIDENTIAL & NURSING CARE PLACEMENTS,"-1,591.57",Revenue,19/12/2014,Social Care & Inclusion
WC51-0378,ASH GRANGE CARE HOME,Third Party Payments,Private Contractor Fees,73373-RESIDENTIAL & NURSING CARE PLACEMENTS,"1,460.40",Revenue,17/12/2014,Social Care & Inclusion
WC51-0379,ASH GRANGE CARE HOME,Third Party Payments,Private Contractor Fees,73373-RESIDENTIAL & NURSING CARE PLACEMENTS,"1,460.40",Revenue,17/12/2014,Social Care & Inclusion
WC51-0380,ASH GRANGE CARE HOME,Third Party Payments,Private Contractor Fees,73373-RESIDENTIAL & NURSING CARE PLACEMENTS,"1,460.40",Revenue,17/12/2014,Social Care & Inclusion
WC51-0381,ASH GRANGE CARE HOME,Third Party Payments,Private Contractor Fees,73373-RESIDENTIAL & NURSING CARE PLACEMENTS,"1,460.40",Revenue,17/12/2014,Social Care & Inclusion
WC51-0382,ASH GRANGE CARE HOME,Third Party Payments,Private Contractor Fees,73373-RESIDENTIAL & NURSING CARE PLACEMENTS,"1,460.40",Revenue,19/12/2014,Social Care & Inclusion
WC51-0383,ASH GRANGE CARE HOME,Third Party Payments,Private Contractor Fees,73373-RESIDENTIAL & NURSING CARE PLACEMENTS,"1,564.71",Revenue,02/12/2014,Social Care & Inclusion
WC51-0384,ASH GRANGE CARE HOME,Third Party Payments,Private Contractor Fees,73373-RESIDENTIAL & NURSING CARE PLACEMENTS,"1,937.56",Revenue,17/12/2014,Social Care & Inclusion
WC51-0385,ASH GRANGE CARE HOME,Third Party Payments,Private Contractor Fees,73373-RESIDENTIAL & NURSING CARE PLACEMENTS,"1,937.56",Revenue,17/12/2014,Social Care & Inclusion
WC51-0386,ASH GRANGE CARE HOME,Third Party Payments,Private Contractor Fees,73373-RESIDENTIAL & NURSING CARE PLACEMENTS,"1,937.56",Revenue,17/12/2014,Social Care & Inclusion
WC51-0387,ASH GRANGE CARE HOME,Third Party Payments,Private Contractor Fees,73373-RESIDENTIAL & NURSING CARE PLACEMENTS,"1,937.56",Revenue,17/12/2014,Social Care & Inclusion
WC51-0388,ASH GRANGE CARE HOME,Third Party Payments,Private Contractor Fees,73373-RESIDENTIAL & NURSING CARE PLACEMENTS,"1,937.56",Revenue,17/12/2014,Social Care & Inclusion
WC51-0389,ASH GRANGE CARE HOME,Third Party Payments,Private Contractor Fees,73373-RESIDENTIAL & NURSING CARE PLACEMENTS,"1,937.56",Revenue,17/12/2014,Social Care & Inclusion
WC51-0390,ASH GRANGE CARE HOME,Third Party Payments,Private Contractor Fees,73373-RESIDENTIAL & NURSING CARE PLACEMENTS,"1,937.56",Revenue,17/12/2014,Social Care & Inclusion
WC51-0391,ASH GRANGE CARE HOME,Third Party Payments,Private Contractor Fees,73373-RESIDENTIAL & NURSING CARE PLACEMENTS,"1,937.56",Revenue,17/12/2014,Social Care & Inclusion
WC51-0392,ASH GRANGE CARE HOME,Third Party Payments,Private Contractor Fees,73373-RESIDENTIAL & NURSING CARE PLACEMENTS,"1,937.56",Revenue,17/12/2014,Social Care & Inclusion
WC51-0393,ASH GRANGE CARE HOME,Third Party Payments,Private Contractor Fees,73373-RESIDENTIAL & NURSING CARE PLACEMENTS,"2,012.64",Revenue,17/12/2014,Social Care & Inclusion
WC51-0394,ASH GRANGE CARE HOME,Third Party Payments,Private Contractor Fees,73373-RESIDENTIAL & NURSING CARE PLACEMENTS,"2,012.64",Revenue,17/12/2014,Social Care & Inclusion
WC51-0395,ASH GRANGE CARE HOME,Third Party Payments,Private Contractor Fees,73373-RESIDENTIAL & NURSING CARE PLACEMENTS,"2,070.60",Revenue,17/12/2014,Social Care & Inclusion
WC51-0396,ASH GRANGE CARE HOME,Third Party Payments,Private Contractor Fees,73373-RESIDENTIAL & NURSING CARE PLACEMENTS,"2,075.96",Revenue,10/12/2014,Social Care & Inclusion
WC51-0397,ASH GRANGE CARE HOME,Third Party Payments,Private Contractor Fees,73373-RESIDENTIAL & NURSING CARE PLACEMENTS,"2,864.40",Revenue,17/12/2014,Social Care & Inclusion
WC51-0398,ASKEWS AND HOLTS LIBRARY SERVICES LTD,Supplies & Services,"Equip,Furniture & Materials",60501-LIBRARY BOOKS,256.14,Revenue,10/12/2014,Neighbourhood Services
WC51-0399,ASKEWS AND HOLTS LIBRARY SERVICES LTD,Supplies & Services,"Equip,Furniture & Materials",60501-LIBRARY BOOKS,274.76,Revenue,03/12/2014,Neighbourhood Services
WC51-0400,ASKEWS AND HOLTS LIBRARY SERVICES LTD,Supplies & Services,"Equip,Furniture & Materials",60501-LIBRARY BOOKS,281.59,Revenue,18/12/2014,Neighbourhood Services
WC51-0401,ASKEWS AND HOLTS LIBRARY SERVICES LTD,Supplies & Services,"Equip,Furniture & Materials",60501-LIBRARY BOOKS,287.85,Revenue,01/12/2014,Neighbourhood Services
WC51-0402,ASKEWS AND HOLTS LIBRARY SERVICES LTD,Supplies & Services,"Equip,Furniture & Materials",60501-LIBRARY BOOKS,333.28,Revenue,03/12/2014,Neighbourhood Services
WC51-0403,ASKEWS AND HOLTS LIBRARY SERVICES LTD,Supplies & Services,"Equip,Furniture & Materials",60501-LIBRARY BOOKS,390.92,Revenue,01/12/2014,Neighbourhood Services
WC51-0404,ASKEWS AND HOLTS LIBRARY SERVICES LTD,Supplies & Services,"Equip,Furniture & Materials",60501-LIBRARY BOOKS,401.94,Revenue,10/12/2014,Neighbourhood Services
WC51-0405,ASKEWS AND HOLTS LIBRARY SERVICES LTD,Supplies & Services,"Equip,Furniture & Materials",60501-LIBRARY BOOKS,449.04,Revenue,10/12/2014,Neighbourhood Services
WC51-0406,ASKEWS AND HOLTS LIBRARY SERVICES LTD,Supplies & Services,"Equip,Furniture & Materials",60501-LIBRARY BOOKS,565.89,Revenue,03/12/2014,Neighbourhood Services
WC51-0407,ASKEWS AND HOLTS LIBRARY SERVICES LTD,Supplies & Services,"Equip,Furniture & Materials",60501-LIBRARY BOOKS,667.55,Revenue,01/12/2014,Neighbourhood Services
WC51-0408,ASKEWS AND HOLTS LIBRARY SERVICES LTD,Supplies & Services,"Equip,Furniture & Materials",60501-LIBRARY BOOKS,668.80,Revenue,01/12/2014,Neighbourhood Services
WC51-0409,ASKEWS AND HOLTS LIBRARY SERVICES LTD,Supplies & Services,"Equip,Furniture & Materials",60501-LIBRARY BOOKS,691.96,Revenue,16/12/2014,Neighbourhood Services
WC51-0410,ASKEWS AND HOLTS LIBRARY SERVICES LTD,Supplies & Services,"Equip,Furniture & Materials",60501-LIBRARY BOOKS,751.50,Revenue,17/12/2014,Neighbourhood Services
WC51-0411,REDACTED,Transfer Payments,Transfer Payments,76422-DIRECT PAYMENTS TO SOCIAL SERVICES CLIENTS,616.25,Revenue,08/12/2014,Social Care & Inclusion
WC51-0412,ASN FIRST AID & HYGIENE LTD,Supplies & Services,"Equip,Furniture & Materials",61502-PROTECTIVE CLOTHING & UNIFORM,757.50,Revenue,09/12/2014,Social Care & Inclusion
WC51-0413,ASSOCIATION OF ACCOUNTING TECHNICIANS.,Supplies & Services,Other Supplies & Services,63013-EXAMINATIONS-SERVICES,540.00,Revenue,16/12/2014,Neighbourhood Services
WC51-0414,ASSOCIATION OF COLLEGES,Supplies & Services,Subscriptions,64500-PUBLICATIONS/ORGANISATIONS-SUBSCRIPTIONS,"2,995.00",Revenue,10/12/2014,Neighbourhood Services
WC51-0415,A-STAT OFFICE TECHNOLOGY LTD,Central,Internal Recharges,82012-PRINT & DESIGN CHARGES-INTERNAL,278.90,Revenue,16/12/2014,Childrens
WC51-0416,AURORA GRAPHICS & DISPLAYS LTD,Supplies & Services,"Printing, Stationery & Office Exp",62008-OUTWORK-PRINT ROOM,342.00,Revenue,29/12/2014,Resources
WC51-0417,AURORA GRAPHICS & DISPLAYS LTD,Supplies & Services,"Printing, Stationery & Office Exp",62008-OUTWORK-PRINT ROOM,406.30,Revenue,19/12/2014,Resources
WC51-0418,AURORA GRAPHICS & DISPLAYS LTD,Supplies & Services,"Printing, Stationery & Office Exp",62008-OUTWORK-PRINT ROOM,"2,414.62",Revenue,01/12/2014,Resources
WC51-0419,AUTISM WEST MIDLANDS,Third Party Payments,Private Contractor Fees,73373-RESIDENTIAL & NURSING CARE PLACEMENTS,"7,078.49",Revenue,19/12/2014,Social Care & Inclusion
WC51-0420,AUTISM WEST MIDLANDS 001,Third Party Payments,Private Contractor Fees,73373-RESIDENTIAL & NURSING CARE PLACEMENTS,"4,765.89",Revenue,19/12/2014,Social Care & Inclusion
WC51-0421,AUTO EXTRACT SYSTEMS LTD,Third Party Payments,Private Contractor Fees,73025-PROFESSIONAL SERVICES-PRIV CONTRACTOR & OTHER AGENCIES,580.00,Revenue,03/12/2014,Neighbourhood Services
WC51-0422,AVANTGARDE PHARMA LTD T/A AL-SHAFA PHARMACY,Supplies & Services,Services,63000-PROFESSIONAL FEES AND SERVICES,862.84,Revenue,09/12/2014,Neighbourhood Services
WC51-0423,AXIOM BUILDING SOLUTIONS LTD,Premises,Premises-Repairs & Maintenance,"40000-REPAIRS,ALTERATIONS & MAINTENANCE-PREM",750.00,Revenue,10/12/2014,Regeneration
WC51-0424,REDACTED,Transfer Payments,Transfer Payments,76422-DIRECT PAYMENTS TO SOCIAL SERVICES CLIENTS,"2,530.00",Revenue,08/12/2014,Childrens
WC51-0425,REDACTED,Transfer Payments,Transfer Payments,76422-DIRECT PAYMENTS TO SOCIAL SERVICES CLIENTS,"3,315.00",Revenue,08/12/2014,Social Care & Inclusion
WC51-0426,B & A TEXTILES LIMITED,Supplies & Services,"Equip,Furniture & Materials",61502-PROTECTIVE CLOTHING & UNIFORM,832.00,Revenue,01/12/2014,Regeneration
WC51-0427,REDACTED,Supplies & Services,Other Supplies & Services,62515-MISCELLANEOUS SUPPLIES,896.24,Revenue,08/12/2014,Childrens
WC51-0428,REDACTED,Third Party Payments,Private Contractor Fees,74006-HOLIDAY/CHRISTMAS ALLOWANCE-FOSTER CARERS-OTH AGENCY PROVISION,"1,740.86",Revenue,08/12/2014,Childrens
WC51-0429,REDACTED,Supplies & Services,Other Supplies & Services,62515-MISCELLANEOUS SUPPLIES,"1,428.44",Revenue,08/12/2014,Childrens
WC51-0430,REDACTED,Third Party Payments,Private Contractor Fees,74006-HOLIDAY/CHRISTMAS ALLOWANCE-FOSTER CARERS-OTH AGENCY PROVISION,"1,936.64",Revenue,08/12/2014,Childrens
WC51-0431,BAAF,Employees,Training,30000-INTERNAL TRAINING,500.00,Revenue,10/12/2014,Childrens
WC51-0432,BAAF,Supplies & Services,Communications & Computing,68001-PUBLICITY & ADVERTISING (NOT STAFF ADVERTISING),"1,008.00",Revenue,30/12/2014,Childrens
WC51-0433,BAAF,Employees,Training,30000-INTERNAL TRAINING,"1,500.00",Revenue,10/12/2014,Childrens
WC51-0434,REDACTED,Transfer Payments,Transfer Payments,76422-DIRECT PAYMENTS TO SOCIAL SERVICES CLIENTS,"1,079.00",Revenue,08/12/2014,Social Care & Inclusion
WC51-0435,BACHES SOLICITORS,Third Party Payments,Private Contractor Fees,73014-LEGAL FEES-PRIV CONTRACTOR FEES,591.49,Revenue,04/12/2014,Childrens
WC51-0436,BACK CARE SOLUTIONS LTD,Supplies & Services,"Equip,Furniture & Materials",60000-FURNITURE & EQUIPMENT,458.00,Revenue,01/12/2014,Resources
WC51-0437,BAKER HALL PARTNERSHIP,Supplies & Services,Services,63248-SURVEYS & PROF SERVICES-PAYMENT TO CONTRACTOR,"1,185.00",Revenue,09/12/2014,Regeneration
WC51-0438,REDACTED,Transfer Payments,Transfer Payments,76422-DIRECT PAYMENTS TO SOCIAL SERVICES CLIENTS,"3,562.40",Revenue,08/12/2014,Social Care & Inclusion
WC51-0439,REDACTED,Transfer Payments,Transfer Payments,76422-DIRECT PAYMENTS TO SOCIAL SERVICES CLIENTS,775.00,Revenue,08/12/2014,Social Care & Inclusion
WC51-0440,REDACTED,Transfer Payments,Transfer Payments,76422-DIRECT PAYMENTS TO SOCIAL SERVICES CLIENTS,"1,425.05",Revenue,08/12/2014,Social Care & Inclusion
WC51-0441,REDACTED,Transfer Payments,Transfer Payments,76422-DIRECT PAYMENTS TO SOCIAL SERVICES CLIENTS,562.82,Revenue,08/12/2014,Social Care & Inclusion
WC51-0442,REDACTED,Transfer Payments,Transfer Payments,76422-DIRECT PAYMENTS TO SOCIAL SERVICES CLIENTS,"1,643.60",Revenue,08/12/2014,Social Care & Inclusion
WC51-0443,REDACTED,Transfer Payments,Transfer Payments,76422-DIRECT PAYMENTS TO SOCIAL SERVICES CLIENTS,"1,600.00",Revenue,08/12/2014,Social Care & Inclusion
WC51-0444,REDACTED,Transfer Payments,Transfer Payments,76422-DIRECT PAYMENTS TO SOCIAL SERVICES CLIENTS,790.65,Revenue,08/12/2014,Social Care & Inclusion
WC51-0445,BARNARDOS SERVICES LTD,Third Party Payments,Private Contractor Fees,74037-INDEPENDENT FOSTER CARE-OTH AGENCY PROVISION,"4,627.86",Revenue,16/12/2014,Childrens
WC51-0446,BARNARDOS SERVICES LTD,Supplies & Services,Services,63000-PROFESSIONAL FEES AND SERVICES,"4,884.48",Revenue,08/12/2014,Childrens
WC51-0447,BARNARDOS SERVICES LTD,Supplies & Services,Services,63000-PROFESSIONAL FEES AND SERVICES,"4,884.48",Revenue,08/12/2014,Childrens
WC51-0448,BARNARDOS SERVICES LTD,Third Party Payments,Grants to Other Orgs,66500-GRANTS TO OTHER ORGS,"10,926.00",Revenue,01/12/2014,Childrens
WC51-0449,BARNARDOS SERVICES LTD,Third Party Payments,Grants to Other Orgs,66500-GRANTS TO OTHER ORGS,"10,926.00",Revenue,01/12/2014,Childrens
WC51-0450,BARNARDOS SERVICES LTD,Third Party Payments,Grants to Other Orgs,66500-GRANTS TO OTHER ORGS,"10,926.00",Revenue,22/12/2014,Childrens
WC51-0451,BARNARDOS SERVICES LTD,Third Party Payments,Private Contractor Fees,74000-OTHER AGENCY FEES,"18,000.00",Revenue,22/12/2014,Childrens
WC51-0452,BARR BEACON SCHOOL TRUST,Third Party Payments,Grants to Other Orgs,66502-TOP UP FUNDING -GRANTS TO SCHOOLS,"2,596.15",Revenue,19/12/2014,Childrens
WC51-0453,BAT FABRICATIONS LTD,Supplies & Services,"Equip,Furniture & Materials",60006-NEW-FURNITURE & EQUIPMENT,540.00,Revenue,04/12/2014,Childrens
WC51-0454,BEACON PRIMARY,Premises,Utilities,45000-WATER CHARGES,225.00,Revenue,04/12/2014,Childrens
WC51-0455,BEACON PRIMARY,Premises,Utilities,42003-ELECTRICITY-ENERGY COSTS,650.00,Revenue,04/12/2014,Childrens
WC51-0456,BEACON PRIMARY,Premises,Utilities,42000-GAS-ENERGY COSTS,"1,000.00",Revenue,04/12/2014,Childrens
WC51-0457,BEADEN POWERLEC LIMITED,Capital,Capital,01006-SITE WORKS MAIN CONTRACTORS,866.40,Capital,01/12/2014,Childrens
WC51-0458,BEADEN POWERLEC LIMITED,Capital,Capital,01006-SITE WORKS MAIN CONTRACTORS,"20,662.19",Capital,16/12/2014,Childrens
WC51-0459,BEADEN POWERLEC LIMITED,Capital,Capital,01006-SITE WORKS MAIN CONTRACTORS,"71,272.06",Capital,16/12/2014,Childrens
WC51-0460,BEADEN POWERLEC LIMITED,Capital,Capital,01006-SITE WORKS MAIN CONTRACTORS,"99,286.02",Capital,16/12/2014,Childrens
WC51-0461,REDACTED,Supplies & Services,Other Supplies & Services,62515-MISCELLANEOUS SUPPLIES,"1,090.80",Revenue,08/12/2014,Childrens
WC51-0462,REDACTED,Third Party Payments,Private Contractor Fees,74006-HOLIDAY/CHRISTMAS ALLOWANCE-FOSTER CARERS-OTH AGENCY PROVISION,"1,762.57",Revenue,08/12/2014,Childrens
WC51-0463,BEARING SALES AND SERVICES LTD,Supplies & Services,"Equip,Furniture & Materials",60514-MATERIALS TO STORES,586.00,Revenue,19/12/2014,Neighbourhood Services
WC51-0464,BEARWOOD NURSING HOME LTD,Third Party Payments,Private Contractor Fees,73373-RESIDENTIAL & NURSING CARE PLACEMENTS,"1,494.00",Revenue,02/12/2014,Social Care & Inclusion
WC51-0465,REDACTED,Transfer Payments,Transfer Payments,76422-DIRECT PAYMENTS TO SOCIAL SERVICES CLIENTS,802.20,Revenue,08/12/2014,Social Care & Inclusion
WC51-0466,REDACTED,Supplies & Services,Other Supplies & Services,62515-MISCELLANEOUS SUPPLIES,453.08,Revenue,08/12/2014,Childrens
WC51-0467,REDACTED,Third Party Payments,Private Contractor Fees,74006-HOLIDAY/CHRISTMAS ALLOWANCE-FOSTER CARERS-OTH AGENCY PROVISION,841.98,Revenue,08/12/2014,Childrens
WC51-0468,BELLEVUE COURT CARE HOME,Third Party Payments,Private Contractor Fees,73373-RESIDENTIAL & NURSING CARE PLACEMENTS,"1,486.96",Revenue,17/12/2014,Social Care & Inclusion
WC51-0469,BELLEVUE COURT CARE HOME,Third Party Payments,Private Contractor Fees,73373-RESIDENTIAL & NURSING CARE PLACEMENTS,"1,494.00",Revenue,17/12/2014,Social Care & Inclusion
WC51-0470,BELLEVUE COURT CARE HOME,Third Party Payments,Private Contractor Fees,73373-RESIDENTIAL & NURSING CARE PLACEMENTS,"1,530.16",Revenue,17/12/2014,Social Care & Inclusion
WC51-0471,REDACTED,Transfer Payments,Transfer Payments,76422-DIRECT PAYMENTS TO SOCIAL SERVICES CLIENTS,"2,756.25",Revenue,08/12/2014,Social Care & Inclusion
WC51-0472,BENNIMAN CONSTRUCTION GROUP,Premises,Premises-Repairs & Maintenance,"40000-REPAIRS,ALTERATIONS & MAINTENANCE-PREM","13,832.76",Revenue,16/12/2014,Regeneration
WC51-0473,BENTLEY COURT PRIORY,Third Party Payments,Private Contractor Fees,73373-RESIDENTIAL & NURSING CARE PLACEMENTS,-480.21,Revenue,10/12/2014,Social Care & Inclusion
WC51-0474,BENTLEY COURT PRIORY,Third Party Payments,Private Contractor Fees,73373-RESIDENTIAL & NURSING CARE PLACEMENTS,"2,071.24",Revenue,02/12/2014,Social Care & Inclusion
WC51-0475,REDACTED,Transfer Payments,Transfer Payments,76422-DIRECT PAYMENTS TO SOCIAL SERVICES CLIENTS,530.70,Revenue,08/12/2014,Social Care & Inclusion
WC51-0476,REDACTED,Transfer Payments,Transfer Payments,76422-DIRECT PAYMENTS TO SOCIAL SERVICES CLIENTS,"1,140.00",Revenue,08/12/2014,Social Care & Inclusion
WC51-0477,REDACTED,Third Party Payments,Private Contractor Fees,74006-HOLIDAY/CHRISTMAS ALLOWANCE-FOSTER CARERS-OTH AGENCY PROVISION,406.84,Revenue,08/12/2014,Childrens
WC51-0478,REDACTED,Supplies & Services,Other Supplies & Services,62515-MISCELLANEOUS SUPPLIES,"2,168.16",Revenue,08/12/2014,Childrens
WC51-0479,REDACTED,Transfer Payments,Transfer Payments,76422-DIRECT PAYMENTS TO SOCIAL SERVICES CLIENTS,"1,210.00",Revenue,08/12/2014,Social Care & Inclusion
WC51-0480,BESCOT LODGE,Third Party Payments,Private Contractor Fees,73373-RESIDENTIAL & NURSING CARE PLACEMENTS,469.41,Revenue,19/12/2014,Social Care & Inclusion
WC51-0481,BESCOT LODGE,Third Party Payments,Private Contractor Fees,73373-RESIDENTIAL & NURSING CARE PLACEMENTS,"1,616.87",Revenue,17/12/2014,Social Care & Inclusion
WC51-0482,BESCOT LODGE,Third Party Payments,Private Contractor Fees,73373-RESIDENTIAL & NURSING CARE PLACEMENTS,"1,616.87",Revenue,17/12/2014,Social Care & Inclusion
WC51-0483,BESCOT LODGE,Third Party Payments,Private Contractor Fees,73373-RESIDENTIAL & NURSING CARE PLACEMENTS,"1,643.70",Revenue,17/12/2014,Social Care & Inclusion
WC51-0484,BESCOT LODGE,Third Party Payments,Private Contractor Fees,73373-RESIDENTIAL & NURSING CARE PLACEMENTS,"1,698.36",Revenue,17/12/2014,Social Care & Inclusion
WC51-0485,BESCOT LODGE,Third Party Payments,Private Contractor Fees,73373-RESIDENTIAL & NURSING CARE PLACEMENTS,"1,698.48",Revenue,17/12/2014,Social Care & Inclusion
WC51-0486,BESCOT LODGE,Third Party Payments,Private Contractor Fees,73373-RESIDENTIAL & NURSING CARE PLACEMENTS,"1,698.49",Revenue,17/12/2014,Social Care & Inclusion
WC51-0487,BESCOT LODGE,Third Party Payments,Private Contractor Fees,73373-RESIDENTIAL & NURSING CARE PLACEMENTS,"1,698.49",Revenue,17/12/2014,Social Care & Inclusion
WC51-0488,BESCOT LODGE,Third Party Payments,Private Contractor Fees,73373-RESIDENTIAL & NURSING CARE PLACEMENTS,"1,698.49",Revenue,17/12/2014,Social Care & Inclusion
WC51-0489,BESCOT LODGE,Third Party Payments,Private Contractor Fees,73373-RESIDENTIAL & NURSING CARE PLACEMENTS,"1,698.49",Revenue,17/12/2014,Social Care & Inclusion
WC51-0490,BESCOT LODGE,Third Party Payments,Private Contractor Fees,73373-RESIDENTIAL & NURSING CARE PLACEMENTS,"1,698.49",Revenue,17/12/2014,Social Care & Inclusion
WC51-0491,BESCOT LODGE,Third Party Payments,Private Contractor Fees,73373-RESIDENTIAL & NURSING CARE PLACEMENTS,"1,698.49",Revenue,17/12/2014,Social Care & Inclusion
WC51-0492,BESCOT LODGE,Third Party Payments,Private Contractor Fees,73373-RESIDENTIAL & NURSING CARE PLACEMENTS,"1,716.65",Revenue,17/12/2014,Social Care & Inclusion
WC51-0493,BESCOT LODGE,Third Party Payments,Private Contractor Fees,73373-RESIDENTIAL & NURSING CARE PLACEMENTS,"1,716.73",Revenue,17/12/2014,Social Care & Inclusion
WC51-0494,BESCOT LODGE,Third Party Payments,Private Contractor Fees,73373-RESIDENTIAL & NURSING CARE PLACEMENTS,"1,716.74",Revenue,17/12/2014,Social Care & Inclusion
WC51-0495,BESCOT PROMOTIONS,Third Party Payments,Private Contractor Fees,73025-PROFESSIONAL SERVICES-PRIV CONTRACTOR & OTHER AGENCIES,"2,600.00",Revenue,23/12/2014,Regeneration
WC51-0496,BETHPHAGE.,Third Party Payments,Private Contractor Fees,73374-SUPPORTED & OTHER ACCOMMODATION,650.00,Revenue,01/12/2014,Social Care & Inclusion
WC51-0497,BETHPHAGE.,Third Party Payments,Private Contractor Fees,73374-SUPPORTED & OTHER ACCOMMODATION,"1,559.16",Revenue,01/12/2014,Social Care & Inclusion
WC51-0498,BETHPHAGE.,Third Party Payments,Private Contractor Fees,73374-SUPPORTED & OTHER ACCOMMODATION,"1,768.00",Revenue,01/12/2014,Social Care & Inclusion
WC51-0499,BETHPHAGE.,Third Party Payments,Private Contractor Fees,73374-SUPPORTED & OTHER ACCOMMODATION,"2,031.84",Revenue,01/12/2014,Social Care & Inclusion
WC51-0500,BETHPHAGE.,Third Party Payments,Private Contractor Fees,73374-SUPPORTED & OTHER ACCOMMODATION,"2,210.00",Revenue,01/12/2014,Social Care & Inclusion
WC51-0501,BETHPHAGE.,Third Party Payments,Private Contractor Fees,73374-SUPPORTED & OTHER ACCOMMODATION,"3,831.92",Revenue,01/12/2014,Social Care & Inclusion
WC51-0502,REDACTED,Transfer Payments,Transfer Payments,76422-DIRECT PAYMENTS TO SOCIAL SERVICES CLIENTS,"1,186.90",Revenue,08/12/2014,Social Care & Inclusion
WC51-0503,REDACTED,Transfer Payments,Transfer Payments,76422-DIRECT PAYMENTS TO SOCIAL SERVICES CLIENTS,719.55,Revenue,05/12/2014,Social Care & Inclusion
WC51-0504,REDACTED,Transfer Payments,Transfer Payments,76422-DIRECT PAYMENTS TO SOCIAL SERVICES CLIENTS,"2,447.50",Revenue,08/12/2014,Social Care & Inclusion
WC51-0505,BFA SAFETY TRAINING,Employees,Training,30030-EXTERNAL TRAINING,295.00,Revenue,05/12/2014,Childrens
WC51-0506,BIFFA WASTE SERVICES LTD,Third Party Payments,Private Contractor Fees,73005-LANDFILL PTYS-PRIV CONTRACTOR FEES,"1,562.11",Revenue,22/12/2014,Neighbourhood Services
WC51-0507,BIFFA WASTE SERVICES LTD,Third Party Payments,Private Contractor Fees,73005-LANDFILL PTYS-PRIV CONTRACTOR FEES,"1,629.24",Revenue,12/12/2014,Neighbourhood Services
WC51-0508,BIFFA WASTE SERVICES LTD,Third Party Payments,Private Contractor Fees,73005-LANDFILL PTYS-PRIV CONTRACTOR FEES,"1,664.37",Revenue,01/12/2014,Neighbourhood Services
WC51-0509,BIFFA WASTE SERVICES LTD,Third Party Payments,Private Contractor Fees,73005-LANDFILL PTYS-PRIV CONTRACTOR FEES,"1,687.34",Revenue,22/12/2014,Neighbourhood Services
WC51-0510,BIFFA WASTE SERVICES LTD,Third Party Payments,Private Contractor Fees,73039-LANDFILL TAX-PRIV CONTRACTOR FEES,"9,680.00",Revenue,22/12/2014,Neighbourhood Services
WC51-0511,BIFFA WASTE SERVICES LTD,Third Party Payments,Private Contractor Fees,73039-LANDFILL TAX-PRIV CONTRACTOR FEES,"10,096.00",Revenue,12/12/2014,Neighbourhood Services
WC51-0512,BIFFA WASTE SERVICES LTD,Third Party Payments,Private Contractor Fees,73039-LANDFILL TAX-PRIV CONTRACTOR FEES,"10,313.59",Revenue,01/12/2014,Neighbourhood Services
WC51-0513,BIFFA WASTE SERVICES LTD,Third Party Payments,Private Contractor Fees,73039-LANDFILL TAX-PRIV CONTRACTOR FEES,"10,456.00",Revenue,22/12/2014,Neighbourhood Services
WC51-0514,REDACTED,Transfer Payments,Transfer Payments,76422-DIRECT PAYMENTS TO SOCIAL SERVICES CLIENTS,671.50,Revenue,08/12/2014,Childrens
WC51-0515,BIOGAS TECHNOLOGY LIMITED,Supplies & Services,"Equip,Furniture & Materials",60008-MAINTENANCE-FURNITURE & EQUIPMENT,360.00,Revenue,02/12/2014,Neighbourhood Services
WC51-0516,BIRCHILLS C OF E COMMUNITY ACADEMY,Third Party Payments,Grants to Other Orgs,66502-TOP UP FUNDING -GRANTS TO SCHOOLS,984.62,Revenue,19/12/2014,Childrens
WC51-0517,BIRMINGHAM MUSEUMS TRUST,Third Party Payments,Private Contractor Fees,73032-TRANSPORTATION-PRIV CONTRACTOR FEES,"3,940.75",Revenue,18/12/2014,Neighbourhood Services
WC51-0518,BLACK COUNTRY CONSORTIUM LIMITED,Supplies & Services,Services,63102-CONSULTANTS FEES - CORPORATE,347.95,Revenue,09/12/2014,Regeneration
WC51-0519,BLACK COUNTRY PARTNERSHIP NHS,Third Party Payments,Private Contractor Fees,73375-IN PATIENT BEDS,"55,590.00",Revenue,09/12/2014,Social Care & Inclusion
WC51-0520,BLACK COUNTRY PARTNERSHIP NHS,Third Party Payments,Joint Arrangements,71007-CONTRIBUTION TO PCT,"261,332.09",Revenue,18/12/2014,Social Care & Inclusion
WC51-0521,BLAKENALL HEATH JMI SCHOOL,Transfer Payments,Transfer Payments,77300-ISB-FORMULA ALLOCATION,"86,631.80",Revenue,04/12/2014,Childrens
WC51-0522,BLOXWICH COMMUNITY PARTNERSHIP.,Third Party Payments,Grants to Other Orgs,66500-GRANTS TO OTHER ORGS,"3,333.33",Revenue,17/12/2014,Neighbourhood Services
WC51-0523,BLOXWICH COMMUNITY PARTNERSHIP.,Third Party Payments,Grants to Other Orgs,66500-GRANTS TO OTHER ORGS,"6,666.66",Revenue,17/12/2014,Neighbourhood Services
WC51-0524,BLOXWICH RADIO TAXIS,Transport,Hire,52000-WITH DRIVER-HIRE OF VEHICLES,"1,000.00",Revenue,01/12/2014,Childrens
WC51-0525,BLOXWICH RADIO TAXIS,Transport,Hire,52000-WITH DRIVER-HIRE OF VEHICLES,"1,000.00",Revenue,12/12/2014,Childrens
WC51-0526,BLOXWICH RADIO TAXIS,Transport,Hire,52000-WITH DRIVER-HIRE OF VEHICLES,"1,035.20",Revenue,12/12/2014,Childrens
WC51-0527,BLUE COAT CHURCH OF ENGLAND ACADEMY,Third Party Payments,Grants to Other Orgs,66502-TOP UP FUNDING -GRANTS TO SCHOOLS,623.07,Revenue,19/12/2014,Childrens
WC51-0528,BLUE GIRAFFE CHILDCARE,Third Party Payments,Grants to Other Orgs,66505-OTHER-GRANTS TO OTHER ORGS,"1,203.30",Revenue,15/12/2014,Childrens
WC51-0529,BLUE GIRAFFE CHILDCARE,Third Party Payments,Grants to Other Orgs,66505-OTHER-GRANTS TO OTHER ORGS,"5,910.72",Revenue,19/12/2014,Childrens
WC51-0530,BLUE GIRAFFE CHILDCARE,Third Party Payments,Grants to Other Orgs,66505-OTHER-GRANTS TO OTHER ORGS,"8,273.88",Revenue,01/12/2014,Childrens
WC51-0531,BOC LTD,Supplies & Services,"Equip,Furniture & Materials",60500-GENERAL MATERIALS,296.20,Revenue,15/12/2014,Neighbourhood Services
WC51-0532,BOC LTD,Supplies & Services,"Equip,Furniture & Materials",60500-GENERAL MATERIALS,308.72,Revenue,03/12/2014,Neighbourhood Services
WC51-0533,BOC LTD,Supplies & Services,"Equip,Furniture & Materials",60500-GENERAL MATERIALS,458.50,Revenue,03/12/2014,Neighbourhood Services
WC51-0534,BOLDMERE COURT CARE HOME,Third Party Payments,Private Contractor Fees,73373-RESIDENTIAL & NURSING CARE PLACEMENTS,"1,494.00",Revenue,10/12/2014,Social Care & Inclusion
WC51-0535,BOLDMERE COURT CARE HOME,Third Party Payments,Private Contractor Fees,73373-RESIDENTIAL & NURSING CARE PLACEMENTS,"1,494.00",Revenue,10/12/2014,Social Care & Inclusion
WC51-0536,BONINGALE NURSERIES,Supplies & Services,"Equip,Furniture & Materials",60500-GENERAL MATERIALS,"1,950.30",Revenue,01/12/2014,Neighbourhood Services
WC51-0537,BOOKER PARK COMMUNITY SCHOOL,Employees,Training,30030-EXTERNAL TRAINING,"1,250.00",Revenue,12/12/2014,Childrens
WC51-0538,BOOKPOINT LIMITED 002,Supplies & Services,"Equip,Furniture & Materials",60501-LIBRARY BOOKS,340.09,Revenue,01/12/2014,Childrens
WC51-0539,BOOTS UK LIMITED,Supplies & Services,Services,63000-PROFESSIONAL FEES AND SERVICES,450.00,Revenue,10/12/2014,Neighbourhood Services
WC51-0540,BOOTS UK LIMITED,Supplies & Services,Services,63000-PROFESSIONAL FEES AND SERVICES,"1,507.50",Revenue,10/12/2014,Neighbourhood Services
WC51-0541,BORN TO PERFORM,Supplies & Services,Other Supplies & Services,62523-EVENTS,300.00,Revenue,12/12/2014,Regeneration
WC51-0542,BORN TO PERFORM,Supplies & Services,Other Supplies & Services,62515-MISCELLANEOUS SUPPLIES,450.00,Revenue,03/12/2014,Regeneration
WC51-0543,BORN TO PERFORM,Supplies & Services,Other Supplies & Services,62515-MISCELLANEOUS SUPPLIES,450.00,Revenue,10/12/2014,Regeneration
WC51-0544,BORN TO PERFORM,Third Party Payments,Grants to Other Orgs,66500-GRANTS TO OTHER ORGS,566.25,Revenue,18/12/2014,Childrens
WC51-0545,BOULTON TRAVEL LIMITED,Transport,Hire,52000-WITH DRIVER-HIRE OF VEHICLES,"2,147.00",Revenue,08/12/2014,Childrens
WC51-0546,BOULTON TRAVEL LIMITED,Transport,Hire,52000-WITH DRIVER-HIRE OF VEHICLES,"2,318.00",Revenue,08/12/2014,Childrens
WC51-0547,BRELMAYNE LTD,Third Party Payments,Private Contractor Fees,73025-PROFESSIONAL SERVICES-PRIV CONTRACTOR & OTHER AGENCIES,262.68,Revenue,09/12/2014,Regeneration
WC51-0548,BRELMAYNE LTD,Premises,Premises-Repairs & Maintenance,"40000-REPAIRS,ALTERATIONS & MAINTENANCE-PREM",264.37,Revenue,19/12/2014,Regeneration
WC51-0549,BRELMAYNE LTD,Premises,Premises-Repairs & Maintenance,"40000-REPAIRS,ALTERATIONS & MAINTENANCE-PREM",289.55,Revenue,01/12/2014,Regeneration
WC51-0550,BRELMAYNE LTD,Premises,Premises-Repairs & Maintenance,"40000-REPAIRS,ALTERATIONS & MAINTENANCE-PREM",330.30,Revenue,05/12/2014,Regeneration
WC51-0551,BRELMAYNE LTD,Supplies & Services,"Equip,Furniture & Materials",60007-REPAIR OF EQUIPMENT-EQUIPMENT,332.50,Revenue,29/12/2014,Neighbourhood Services
WC51-0552,BRELMAYNE LTD,Premises,Premises-Repairs & Maintenance,"40000-REPAIRS,ALTERATIONS & MAINTENANCE-PREM",350.00,Revenue,01/12/2014,Regeneration
WC51-0553,BRELMAYNE LTD,Third Party Payments,Private Contractor Fees,73025-PROFESSIONAL SERVICES-PRIV CONTRACTOR & OTHER AGENCIES,357.19,Revenue,19/12/2014,Regeneration
WC51-0554,BRELMAYNE LTD,Premises,Premises-Repairs & Maintenance,"40000-REPAIRS,ALTERATIONS & MAINTENANCE-PREM",358.54,Revenue,23/12/2014,Regeneration
WC51-0555,BRELMAYNE LTD,Premises,Premises-Repairs & Maintenance,"40000-REPAIRS,ALTERATIONS & MAINTENANCE-PREM",435.01,Revenue,05/12/2014,Regeneration
WC51-0556,BRELMAYNE LTD,Third Party Payments,Private Contractor Fees,73025-PROFESSIONAL SERVICES-PRIV CONTRACTOR & OTHER AGENCIES,450.27,Revenue,01/12/2014,Regeneration
WC51-0557,BRELMAYNE LTD,Premises,Premises-Repairs & Maintenance,"40000-REPAIRS,ALTERATIONS & MAINTENANCE-PREM",461.70,Revenue,01/12/2014,Regeneration
WC51-0558,BRELMAYNE LTD,Premises,Premises-Repairs & Maintenance,"40000-REPAIRS,ALTERATIONS & MAINTENANCE-PREM",620.60,Revenue,05/12/2014,Regeneration
WC51-0559,BRELMAYNE LTD,Premises,Premises-Repairs & Maintenance,"40000-REPAIRS,ALTERATIONS & MAINTENANCE-PREM",726.14,Revenue,19/12/2014,Regeneration
WC51-0560,BRELMAYNE LTD,Premises,Premises-Repairs & Maintenance,"40000-REPAIRS,ALTERATIONS & MAINTENANCE-PREM",753.97,Revenue,29/12/2014,Regeneration
WC51-0561,BRELMAYNE LTD,Premises,Premises-Repairs & Maintenance,"40000-REPAIRS,ALTERATIONS & MAINTENANCE-PREM",943.17,Revenue,12/12/2014,Regeneration
WC51-0562,BRELMAYNE LTD,Premises,Premises-Repairs & Maintenance,"40000-REPAIRS,ALTERATIONS & MAINTENANCE-PREM","1,324.00",Revenue,19/12/2014,Regeneration
WC51-0563,BRELMAYNE LTD,Third Party Payments,Private Contractor Fees,73025-PROFESSIONAL SERVICES-PRIV CONTRACTOR & OTHER AGENCIES,"1,958.00",Revenue,12/12/2014,Regeneration
WC51-0564,BRELMAYNE LTD,Supplies & Services,Services,63000-PROFESSIONAL FEES AND SERVICES,"9,314.00",Revenue,05/12/2014,Neighbourhood Services
WC51-0565,BRELMAYNE LTD,Supplies & Services,Services,63000-PROFESSIONAL FEES AND SERVICES,"9,314.00",Revenue,05/12/2014,Neighbourhood Services
WC51-0566,REDACTED,Transfer Payments,Transfer Payments,76422-DIRECT PAYMENTS TO SOCIAL SERVICES CLIENTS,850.00,Revenue,08/12/2014,Social Care & Inclusion
WC51-0567,REDACTED,Transfer Payments,Transfer Payments,76422-DIRECT PAYMENTS TO SOCIAL SERVICES CLIENTS,550.00,Revenue,08/12/2014,Social Care & Inclusion
WC51-0568,REDACTED,Transfer Payments,Transfer Payments,76422-DIRECT PAYMENTS TO SOCIAL SERVICES CLIENTS,270.00,Revenue,08/12/2014,Social Care & Inclusion
WC51-0569,REDACTED,Third Party Payments,Private Contractor Fees,74006-HOLIDAY/CHRISTMAS ALLOWANCE-FOSTER CARERS-OTH AGENCY PROVISION,"1,278.80",Revenue,08/12/2014,Childrens
WC51-0570,REDACTED,Supplies & Services,Other Supplies & Services,62515-MISCELLANEOUS SUPPLIES,"1,428.44",Revenue,08/12/2014,Childrens
WC51-0571,REDACTED,Transfer Payments,Transfer Payments,76422-DIRECT PAYMENTS TO SOCIAL SERVICES CLIENTS,680.00,Revenue,08/12/2014,Social Care & Inclusion
WC51-0572,BREWOOD RINGERS,Supplies & Services,Other Supplies & Services,62515-MISCELLANEOUS SUPPLIES,492.90,Revenue,01/12/2014,Neighbourhood Services
WC51-0573,REDACTED,Third Party Payments,Private Contractor Fees,73374-SUPPORTED & OTHER ACCOMMODATION,"2,935.24",Revenue,01/12/2014,Social Care & Inclusion
WC51-0574,REDACTED,Third Party Payments,Private Contractor Fees,73374-SUPPORTED & OTHER ACCOMMODATION,"2,935.24",Revenue,19/12/2014,Social Care & Inclusion
WC51-0575,REDACTED,Transfer Payments,Transfer Payments,76422-DIRECT PAYMENTS TO SOCIAL SERVICES CLIENTS,616.50,Revenue,08/12/2014,Social Care & Inclusion
WC51-0576,REDACTED,Transfer Payments,Transfer Payments,76422-DIRECT PAYMENTS TO SOCIAL SERVICES CLIENTS,"1,618.50",Revenue,08/12/2014,Social Care & Inclusion
WC51-0577,REDACTED,Transfer Payments,Transfer Payments,76422-DIRECT PAYMENTS TO SOCIAL SERVICES CLIENTS,647.40,Revenue,08/12/2014,Social Care & Inclusion
WC51-0578,BRIAR ASSOCIATES,Premises,Premises-Repairs & Maintenance,"40000-REPAIRS,ALTERATIONS & MAINTENANCE-PREM",258.00,Revenue,05/12/2014,Regeneration
WC51-0579,BRIAR ASSOCIATES,Third Party Payments,Private Contractor Fees,73025-PROFESSIONAL SERVICES-PRIV CONTRACTOR & OTHER AGENCIES,325.00,Revenue,09/12/2014,Regeneration
WC51-0580,BRIAR ASSOCIATES,Premises,Premises-Repairs & Maintenance,"40000-REPAIRS,ALTERATIONS & MAINTENANCE-PREM",367.00,Revenue,05/12/2014,Regeneration
WC51-0581,BRIAR ASSOCIATES,Premises,Premises-Repairs & Maintenance,"40000-REPAIRS,ALTERATIONS & MAINTENANCE-PREM",447.00,Revenue,05/12/2014,Regeneration
WC51-0582,BRIAR ASSOCIATES,Third Party Payments,Private Contractor Fees,73025-PROFESSIONAL SERVICES-PRIV CONTRACTOR & OTHER AGENCIES,450.00,Revenue,02/12/2014,Regeneration
WC51-0583,BRIAR ASSOCIATES,Premises,Premises-Repairs & Maintenance,"40000-REPAIRS,ALTERATIONS & MAINTENANCE-PREM",476.00,Revenue,05/12/2014,Regeneration
WC51-0584,BRIDGEWOOD HEALTH CARE LTD,Third Party Payments,Private Contractor Fees,73373-RESIDENTIAL & NURSING CARE PLACEMENTS,"5,058.44",Revenue,02/12/2014,Social Care & Inclusion
WC51-0585,BRIDGEWOOD HEALTH CARE LTD,Third Party Payments,Private Contractor Fees,73373-RESIDENTIAL & NURSING CARE PLACEMENTS,"5,058.44",Revenue,17/12/2014,Social Care & Inclusion
WC51-0586,REDACTED,Transfer Payments,Transfer Payments,76422-DIRECT PAYMENTS TO SOCIAL SERVICES CLIENTS,"1,299.73",Revenue,08/12/2014,Social Care & Inclusion
WC51-0587,BRISTOW & SUTOR,Supplies & Services,Services,63102-CONSULTANTS FEES - CORPORATE,494.84,Revenue,29/12/2014,Resources
WC51-0588,BRITANNIA APPRENTICESHIPS LTD,Third Party Payments,Grants to Other Orgs,66500-GRANTS TO OTHER ORGS,"1,125.00",Revenue,29/12/2014,Regeneration
WC51-0589,BRITANNIA APPRENTICESHIPS LTD,Third Party Payments,Grants to Other Orgs,66500-GRANTS TO OTHER ORGS,"2,250.00",Revenue,29/12/2014,Regeneration
WC51-0590,BRITANNIA APPRENTICESHIPS LTD,Third Party Payments,Grants to Other Orgs,66500-GRANTS TO OTHER ORGS,"2,250.00",Revenue,29/12/2014,Regeneration
WC51-0591,BRITISH GAS BUSINESS,Premises,Utilities,42000-GAS-ENERGY COSTS,278.41,Revenue,18/12/2014,Childrens
WC51-0592,BRITISH GAS BUSINESS,Premises,Utilities,42001-GAS METERED-ENERGY COSTS,610.05,Revenue,18/12/2014,Childrens
WC51-0593,BRITISH GAS BUSINESS,Premises,Utilities,42000-GAS-ENERGY COSTS,"57,950.80",Revenue,15/12/2014,Regeneration
WC51-0594,BRITISH HGV TRAINING GROUP,Employees,Training,30030-EXTERNAL TRAINING,990.00,Revenue,04/12/2014,Neighbourhood Services
WC51-0595,BRITISH SALT LTD,Supplies & Services,"Equip,Furniture & Materials",60500-GENERAL MATERIALS,511.40,Revenue,03/12/2014,Neighbourhood Services
WC51-0596,BRITISH TELECOM 001,Supplies & Services,Communications & Computing,63601-COSTS (NOT INTERNAL RECHARGES)-TELEPHONES,968.17,Revenue,04/12/2014,Childrens
WC51-0597,BROADOAK CARE,Third Party Payments,Private Contractor Fees,73373-RESIDENTIAL & NURSING CARE PLACEMENTS,328.68,Revenue,11/12/2014,Social Care & Inclusion
WC51-0598,BROADOAK CARE,Third Party Payments,Private Contractor Fees,73373-RESIDENTIAL & NURSING CARE PLACEMENTS,732.50,Revenue,11/12/2014,Social Care & Inclusion
WC51-0599,BROADOAK CARE,Third Party Payments,Private Contractor Fees,73373-RESIDENTIAL & NURSING CARE PLACEMENTS,937.04,Revenue,11/12/2014,Social Care & Inclusion
WC51-0600,BROADOAK CARE,Third Party Payments,Private Contractor Fees,73373-RESIDENTIAL & NURSING CARE PLACEMENTS,961.16,Revenue,11/12/2014,Social Care & Inclusion
WC51-0601,BROADOAK CARE,Third Party Payments,Private Contractor Fees,73373-RESIDENTIAL & NURSING CARE PLACEMENTS,962.36,Revenue,11/12/2014,Social Care & Inclusion
WC51-0602,BROADOAK CARE,Third Party Payments,Private Contractor Fees,73373-RESIDENTIAL & NURSING CARE PLACEMENTS,981.36,Revenue,11/12/2014,Social Care & Inclusion
WC51-0603,BROADOAK CARE,Third Party Payments,Private Contractor Fees,73373-RESIDENTIAL & NURSING CARE PLACEMENTS,"1,027.40",Revenue,11/12/2014,Social Care & Inclusion
WC51-0604,BROADOAK CARE,Third Party Payments,Private Contractor Fees,73373-RESIDENTIAL & NURSING CARE PLACEMENTS,"1,033.52",Revenue,11/12/2014,Social Care & Inclusion
WC51-0605,BROADOAK CARE,Third Party Payments,Private Contractor Fees,73373-RESIDENTIAL & NURSING CARE PLACEMENTS,"1,048.00",Revenue,11/12/2014,Social Care & Inclusion
WC51-0606,BROADOAK CARE,Third Party Payments,Private Contractor Fees,73373-RESIDENTIAL & NURSING CARE PLACEMENTS,"1,048.08",Revenue,11/12/2014,Social Care & Inclusion
WC51-0607,BROADOAK CARE,Third Party Payments,Private Contractor Fees,73373-RESIDENTIAL & NURSING CARE PLACEMENTS,"1,048.08",Revenue,11/12/2014,Social Care & Inclusion
WC51-0608,BROADOAK CARE,Third Party Payments,Private Contractor Fees,73373-RESIDENTIAL & NURSING CARE PLACEMENTS,"1,057.28",Revenue,11/12/2014,Social Care & Inclusion
WC51-0609,BROADOAK CARE,Third Party Payments,Private Contractor Fees,73373-RESIDENTIAL & NURSING CARE PLACEMENTS,"1,115.28",Revenue,11/12/2014,Social Care & Inclusion
WC51-0610,BROADOAK CARE,Third Party Payments,Private Contractor Fees,73373-RESIDENTIAL & NURSING CARE PLACEMENTS,"1,118.48",Revenue,11/12/2014,Social Care & Inclusion
WC51-0611,BROADOAK CARE,Third Party Payments,Private Contractor Fees,73373-RESIDENTIAL & NURSING CARE PLACEMENTS,"1,534.08",Revenue,11/12/2014,Social Care & Inclusion
WC51-0612,BROADOAK CARE,Third Party Payments,Private Contractor Fees,73373-RESIDENTIAL & NURSING CARE PLACEMENTS,"1,534.08",Revenue,11/12/2014,Social Care & Inclusion
WC51-0613,BROADOAK CARE,Third Party Payments,Private Contractor Fees,73373-RESIDENTIAL & NURSING CARE PLACEMENTS,"1,534.08",Revenue,11/12/2014,Social Care & Inclusion
WC51-0614,BROADOAK CARE,Third Party Payments,Private Contractor Fees,73373-RESIDENTIAL & NURSING CARE PLACEMENTS,"1,534.08",Revenue,11/12/2014,Social Care & Inclusion
WC51-0615,BROADOAK CARE,Third Party Payments,Private Contractor Fees,73373-RESIDENTIAL & NURSING CARE PLACEMENTS,"1,534.08",Revenue,11/12/2014,Social Care & Inclusion
WC51-0616,BROADWAY LODGE,Third Party Payments,Private Contractor Fees,73373-RESIDENTIAL & NURSING CARE PLACEMENTS,"4,114.29",Revenue,17/12/2014,Social Care & Inclusion
WC51-0617,BROADWAY LODGE,Third Party Payments,Private Contractor Fees,73373-RESIDENTIAL & NURSING CARE PLACEMENTS,"4,164.21",Revenue,17/12/2014,Social Care & Inclusion
WC51-0618,BROADWAY LODGE,Third Party Payments,Private Contractor Fees,73373-RESIDENTIAL & NURSING CARE PLACEMENTS,"4,400.00",Revenue,17/12/2014,Social Care & Inclusion
WC51-0619,BROADWAY LODGE,Third Party Payments,Private Contractor Fees,73373-RESIDENTIAL & NURSING CARE PLACEMENTS,"5,657.33",Revenue,17/12/2014,Social Care & Inclusion
WC51-0620,BROADWAY PHARMACY,Supplies & Services,Services,63000-PROFESSIONAL FEES AND SERVICES,53.10,Revenue,09/12/2014,Neighbourhood Services
WC51-0621,BROADWAY PHARMACY,Supplies & Services,Services,63000-PROFESSIONAL FEES AND SERVICES,70.80,Revenue,01/12/2014,Neighbourhood Services
WC51-0622,BROADWAY PHARMACY,Supplies & Services,Services,63000-PROFESSIONAL FEES AND SERVICES,150.00,Revenue,01/12/2014,Neighbourhood Services
WC51-0623,BROADWAY PHARMACY,Supplies & Services,Services,63000-PROFESSIONAL FEES AND SERVICES,160.00,Revenue,09/12/2014,Neighbourhood Services
WC51-0624,BROADWAY PHARMACY,Supplies & Services,Services,63000-PROFESSIONAL FEES AND SERVICES,215.53,Revenue,09/12/2014,Neighbourhood Services
WC51-0625,BROADWAY PHARMACY,Supplies & Services,Services,63000-PROFESSIONAL FEES AND SERVICES,351.19,Revenue,01/12/2014,Neighbourhood Services
WC51-0626,BROADWAY TRAVEL CONNECTIONS,Transport,Hire,52000-WITH DRIVER-HIRE OF VEHICLES,"1,600.00",Revenue,30/12/2014,Childrens
WC51-0627,BROADWAY TRAVEL CONNECTIONS,Transport,Hire,52000-WITH DRIVER-HIRE OF VEHICLES,"1,600.00",Revenue,30/12/2014,Childrens
WC51-0628,BROWNHILLS ASPHALT TARMACADAM,Premises,Premises-Repairs & Maintenance,"40000-REPAIRS,ALTERATIONS & MAINTENANCE-PREM",308.00,Revenue,16/12/2014,Neighbourhood Services
WC51-0629,BROWNHILLS ASPHALT TARMACADAM,Premises,Premises-Repairs & Maintenance,"40000-REPAIRS,ALTERATIONS & MAINTENANCE-PREM",368.00,Revenue,16/12/2014,Regeneration
WC51-0630,BROWNHILLS ASPHALT TARMACADAM,Premises,Premises-Repairs & Maintenance,"40000-REPAIRS,ALTERATIONS & MAINTENANCE-PREM",368.00,Revenue,16/12/2014,Regeneration
WC51-0631,BROWNHILLS ASPHALT TARMACADAM,Supplies & Services,"Equip,Furniture & Materials",60500-GENERAL MATERIALS,374.00,Revenue,03/12/2014,Neighbourhood Services
WC51-0632,BROWNHILLS ASPHALT TARMACADAM,Third Party Payments,Private Contractor Fees,73025-PROFESSIONAL SERVICES-PRIV CONTRACTOR & OTHER AGENCIES,420.00,Revenue,09/12/2014,Regeneration
WC51-0633,BROWNHILLS ASPHALT TARMACADAM,Premises,Premises-Repairs & Maintenance,"40000-REPAIRS,ALTERATIONS & MAINTENANCE-PREM",525.00,Revenue,15/12/2014,Regeneration
WC51-0634,BROWNHILLS ASPHALT TARMACADAM,Third Party Payments,Private Contractor Fees,63239-EXTERNAL WORKS-PAYMENT TO CONTRACTOR,"1,340.00",Revenue,18/12/2014,Childrens
WC51-0635,BROWNHILLS ASPHALT TARMACADAM,Third Party Payments,Private Contractor Fees,63239-EXTERNAL WORKS-PAYMENT TO CONTRACTOR,"1,950.00",Revenue,18/12/2014,Childrens
WC51-0636,BROWNHILLS ASPHALT TARMACADAM,Capital,Capital,01006-SITE WORKS MAIN CONTRACTORS,"4,328.00",Capital,18/12/2014,Neighbourhood Services
WC51-0637,BROWNHILLS ASPHALT TARMACADAM,Capital,Capital,01006-SITE WORKS MAIN CONTRACTORS,"4,739.00",Capital,11/12/2014,Childrens
WC51-0638,BROWNHILLS ASPHALT TARMACADAM,Supplies & Services,"Equip,Furniture & Materials",60500-GENERAL MATERIALS,"4,830.00",Revenue,04/12/2014,Neighbourhood Services
WC51-0639,BROWNHILLS ASPHALT TARMACADAM,Premises,Premises-Repairs & Maintenance,"40000-REPAIRS,ALTERATIONS & MAINTENANCE-PREM","9,000.00",Revenue,16/12/2014,Regeneration
WC51-0640,BROWNHILLS COMMUNITY ASSOCIATION,Third Party Payments,Grants to Other Orgs,66505-OTHER-GRANTS TO OTHER ORGS,"4,097.07",Revenue,17/12/2014,Childrens
WC51-0641,BROWNHILLS COMMUNITY ASSOCIATION,Third Party Payments,Grants to Other Orgs,66500-GRANTS TO OTHER ORGS,"6,666.68",Revenue,17/12/2014,Neighbourhood Services
WC51-0642,BROWNHILLS COMMUNITY ASSOCIATION,Third Party Payments,Grants to Other Orgs,66505-OTHER-GRANTS TO OTHER ORGS,"8,583.47",Revenue,01/12/2014,Childrens
WC51-0643,REDACTED,Transfer Payments,Transfer Payments,76422-DIRECT PAYMENTS TO SOCIAL SERVICES CLIENTS,"1,806.25",Revenue,08/12/2014,Social Care & Inclusion
WC51-0644,BRUTON KNOWLES,Capital,Capital,01015-PURCHASE OF PROPERTY,"5,145.90",Capital,19/12/2014,Neighbourhood Services
WC51-0645,BT PLC,Supplies & Services,Communications & Computing,63603-COST OF CALLS-TELEPHONES,994.00,Revenue,04/12/2014,Resources
WC51-0646,BT PLC,Supplies & Services,Communications & Computing,63601-COSTS (NOT INTERNAL RECHARGES)-TELEPHONES,"8,264.59",Revenue,10/12/2014,Resources
WC51-0647,BT PLC,Supplies & Services,Communications & Computing,63601-COSTS (NOT INTERNAL RECHARGES)-TELEPHONES,"18,057.30",Revenue,17/12/2014,Resources
WC51-0648,BUCHANAN COMPUTING,Supplies & Services,Communications & Computing,63800-COMPUTER EQUIPMENT AND SUPPLIES,762.00,Revenue,02/12/2014,Resources
WC51-0649,BUPA CARE HOMES (CFHCARE) LTD,Third Party Payments,Private Contractor Fees,73373-RESIDENTIAL & NURSING CARE PLACEMENTS,"1,458.00",Revenue,10/12/2014,Social Care & Inclusion
WC51-0650,BUPA CARE HOMES (CFHCARE) LTD,Third Party Payments,Private Contractor Fees,73373-RESIDENTIAL & NURSING CARE PLACEMENTS,"1,544.44",Revenue,10/12/2014,Social Care & Inclusion
WC51-0651,BUPA CARE HOMES (CFHCARE) LTD,Third Party Payments,Private Contractor Fees,73373-RESIDENTIAL & NURSING CARE PLACEMENTS,"1,708.84",Revenue,10/12/2014,Social Care & Inclusion
WC51-0652,BUPA CARE HOMES (CFHCARE) LTD,Third Party Payments,Private Contractor Fees,73373-RESIDENTIAL & NURSING CARE PLACEMENTS,"3,060.92",Revenue,10/12/2014,Social Care & Inclusion
WC51-0653,BUPA HOME HEALTHCARE,Supplies & Services,Services,63000-PROFESSIONAL FEES AND SERVICES,558.80,Revenue,01/12/2014,Childrens
WC51-0654,BUPA HOME HEALTHCARE,Supplies & Services,Services,63000-PROFESSIONAL FEES AND SERVICES,782.32,Revenue,01/12/2014,Childrens
WC51-0655,BURNTWOOD COMPRESSOR SERVICES LIMITED,Premises,Premises-Repairs & Maintenance,"40000-REPAIRS,ALTERATIONS & MAINTENANCE-PREM",383.79,Revenue,01/12/2014,Regeneration
WC51-0656,BURNTWOOD COMPRESSOR SERVICES LIMITED,Premises,Premises-Repairs & Maintenance,"40000-REPAIRS,ALTERATIONS & MAINTENANCE-PREM","1,421.91",Revenue,12/12/2014,Regeneration
WC51-0657,BURROWS GM LTD,Supplies & Services,"Equip,Furniture & Materials",60500-GENERAL MATERIALS,268.26,Revenue,09/12/2014,Neighbourhood Services
WC51-0658,BURTON ADDICTION CENTRE,Supplies & Services,Services,63000-PROFESSIONAL FEES AND SERVICES,"1,350.00",Revenue,08/12/2014,Neighbourhood Services
WC51-0659,BURTON ADDICTION CENTRE,Supplies & Services,Services,63000-PROFESSIONAL FEES AND SERVICES,"1,350.00",Revenue,12/12/2014,Neighbourhood Services
WC51-0660,BUSH HOME LTD,Third Party Payments,Private Contractor Fees,73373-RESIDENTIAL & NURSING CARE PLACEMENTS,931.43,Revenue,19/12/2014,Social Care & Inclusion
WC51-0661,BUSH HOME LTD,Third Party Payments,Private Contractor Fees,73373-RESIDENTIAL & NURSING CARE PLACEMENTS,"1,458.16",Revenue,10/12/2014,Social Care & Inclusion
WC51-0662,BUSH HOME LTD,Third Party Payments,Private Contractor Fees,73373-RESIDENTIAL & NURSING CARE PLACEMENTS,"1,458.16",Revenue,10/12/2014,Social Care & Inclusion
WC51-0663,BUSH HOME LTD,Third Party Payments,Private Contractor Fees,73373-RESIDENTIAL & NURSING CARE PLACEMENTS,"1,458.16",Revenue,17/12/2014,Social Care & Inclusion
WC51-0664,BUSH HOME LTD,Third Party Payments,Private Contractor Fees,73373-RESIDENTIAL & NURSING CARE PLACEMENTS,"1,458.16",Revenue,17/12/2014,Social Care & Inclusion
WC51-0665,BUSH HOME LTD,Third Party Payments,Private Contractor Fees,73373-RESIDENTIAL & NURSING CARE PLACEMENTS,"1,458.16",Revenue,19/12/2014,Social Care & Inclusion
WC51-0666,BUSH HOME LTD,Third Party Payments,Private Contractor Fees,73373-RESIDENTIAL & NURSING CARE PLACEMENTS,"1,460.40",Revenue,10/12/2014,Social Care & Inclusion
WC51-0667,BUSH HOME LTD,Third Party Payments,Private Contractor Fees,73373-RESIDENTIAL & NURSING CARE PLACEMENTS,"1,460.40",Revenue,10/12/2014,Social Care & Inclusion
WC51-0668,BUSH HOME LTD,Third Party Payments,Private Contractor Fees,73373-RESIDENTIAL & NURSING CARE PLACEMENTS,"1,460.40",Revenue,17/12/2014,Social Care & Inclusion
WC51-0669,BUSH HOME LTD,Third Party Payments,Private Contractor Fees,73373-RESIDENTIAL & NURSING CARE PLACEMENTS,"1,460.40",Revenue,17/12/2014,Social Care & Inclusion
WC51-0670,BUSH HOME LTD,Third Party Payments,Private Contractor Fees,73373-RESIDENTIAL & NURSING CARE PLACEMENTS,"1,479.33",Revenue,10/12/2014,Social Care & Inclusion
WC51-0671,BUSH HOME LTD,Third Party Payments,Private Contractor Fees,73373-RESIDENTIAL & NURSING CARE PLACEMENTS,"1,513.64",Revenue,10/12/2014,Social Care & Inclusion
WC51-0672,BUSH HOME LTD,Third Party Payments,Private Contractor Fees,73373-RESIDENTIAL & NURSING CARE PLACEMENTS,"1,513.64",Revenue,17/12/2014,Social Care & Inclusion
WC51-0673,BUSH HOME LTD,Third Party Payments,Private Contractor Fees,73373-RESIDENTIAL & NURSING CARE PLACEMENTS,"1,513.68",Revenue,10/12/2014,Social Care & Inclusion
WC51-0674,BUSH HOME LTD,Third Party Payments,Private Contractor Fees,73373-RESIDENTIAL & NURSING CARE PLACEMENTS,"1,513.68",Revenue,17/12/2014,Social Care & Inclusion
WC51-0675,BUSH HOME LTD,Third Party Payments,Private Contractor Fees,73373-RESIDENTIAL & NURSING CARE PLACEMENTS,"1,534.12",Revenue,10/12/2014,Social Care & Inclusion
WC51-0676,BUSH HOME LTD,Third Party Payments,Private Contractor Fees,73373-RESIDENTIAL & NURSING CARE PLACEMENTS,"1,534.12",Revenue,10/12/2014,Social Care & Inclusion
WC51-0677,BUSH HOME LTD,Third Party Payments,Private Contractor Fees,73373-RESIDENTIAL & NURSING CARE PLACEMENTS,"1,534.12",Revenue,10/12/2014,Social Care & Inclusion
WC51-0678,BUSH HOME LTD,Third Party Payments,Private Contractor Fees,73373-RESIDENTIAL & NURSING CARE PLACEMENTS,"1,534.12",Revenue,10/12/2014,Social Care & Inclusion
WC51-0679,BUSH HOME LTD,Third Party Payments,Private Contractor Fees,73373-RESIDENTIAL & NURSING CARE PLACEMENTS,"1,534.12",Revenue,10/12/2014,Social Care & Inclusion
WC51-0680,BUSH HOME LTD,Third Party Payments,Private Contractor Fees,73373-RESIDENTIAL & NURSING CARE PLACEMENTS,"1,534.12",Revenue,10/12/2014,Social Care & Inclusion
WC51-0681,BUSH HOME LTD,Third Party Payments,Private Contractor Fees,73373-RESIDENTIAL & NURSING CARE PLACEMENTS,"1,534.12",Revenue,10/12/2014,Social Care & Inclusion
WC51-0682,BUSH HOME LTD,Third Party Payments,Private Contractor Fees,73373-RESIDENTIAL & NURSING CARE PLACEMENTS,"1,534.12",Revenue,10/12/2014,Social Care & Inclusion
WC51-0683,BUSH HOME LTD,Third Party Payments,Private Contractor Fees,73373-RESIDENTIAL & NURSING CARE PLACEMENTS,"1,534.12",Revenue,17/12/2014,Social Care & Inclusion
WC51-0684,BUSH HOME LTD,Third Party Payments,Private Contractor Fees,73373-RESIDENTIAL & NURSING CARE PLACEMENTS,"1,534.12",Revenue,17/12/2014,Social Care & Inclusion
WC51-0685,BUSH HOME LTD,Third Party Payments,Private Contractor Fees,73373-RESIDENTIAL & NURSING CARE PLACEMENTS,"1,534.12",Revenue,17/12/2014,Social Care & Inclusion
WC51-0686,BUSH HOME LTD,Third Party Payments,Private Contractor Fees,73373-RESIDENTIAL & NURSING CARE PLACEMENTS,"1,534.12",Revenue,17/12/2014,Social Care & Inclusion
WC51-0687,BUSH HOME LTD,Third Party Payments,Private Contractor Fees,73373-RESIDENTIAL & NURSING CARE PLACEMENTS,"1,534.12",Revenue,17/12/2014,Social Care & Inclusion
WC51-0688,BUSH HOME LTD,Third Party Payments,Private Contractor Fees,73373-RESIDENTIAL & NURSING CARE PLACEMENTS,"1,534.12",Revenue,17/12/2014,Social Care & Inclusion
WC51-0689,BUSH HOME LTD,Third Party Payments,Private Contractor Fees,73373-RESIDENTIAL & NURSING CARE PLACEMENTS,"1,534.12",Revenue,19/12/2014,Social Care & Inclusion
WC51-0690,BUSH HOME LTD,Third Party Payments,Private Contractor Fees,73373-RESIDENTIAL & NURSING CARE PLACEMENTS,"1,534.13",Revenue,17/12/2014,Social Care & Inclusion
WC51-0691,BUSH HOME LTD,Third Party Payments,Private Contractor Fees,73373-RESIDENTIAL & NURSING CARE PLACEMENTS,"1,557.60",Revenue,10/12/2014,Social Care & Inclusion
WC51-0692,BUSH HOME LTD,Third Party Payments,Private Contractor Fees,73373-RESIDENTIAL & NURSING CARE PLACEMENTS,"1,557.60",Revenue,17/12/2014,Social Care & Inclusion
WC51-0693,BUSY BEES CHILDCARE LTD,Third Party Payments,Grants to Other Orgs,66505-OTHER-GRANTS TO OTHER ORGS,"1,386.32",Revenue,01/12/2014,Childrens
WC51-0694,BUSY BEES CHILDCARE LTD,Third Party Payments,Grants to Other Orgs,66505-OTHER-GRANTS TO OTHER ORGS,"4,026.10",Revenue,17/12/2014,Childrens
WC51-0695,BUXTONS LTD,Supplies & Services,"Equip,Furniture & Materials",60520-HEALTH & SAFETY-MATERIALS,331.50,Revenue,05/12/2014,Neighbourhood Services
WC51-0696,BY THE BRIDGE,Third Party Payments,Private Contractor Fees,74037-INDEPENDENT FOSTER CARE-OTH AGENCY PROVISION,"4,295.71",Revenue,17/12/2014,Childrens
WC51-0697,C & V ORCHARD MANOR LTD,Third Party Payments,Private Contractor Fees,73373-RESIDENTIAL & NURSING CARE PLACEMENTS,"1,439.80",Revenue,02/12/2014,Social Care & Inclusion
WC51-0698,C & V ORCHARD MANOR LTD,Third Party Payments,Private Contractor Fees,73373-RESIDENTIAL & NURSING CARE PLACEMENTS,"1,439.80",Revenue,10/12/2014,Social Care & Inclusion
WC51-0699,C & V ORCHARD MANOR LTD,Third Party Payments,Private Contractor Fees,73373-RESIDENTIAL & NURSING CARE PLACEMENTS,"1,439.81",Revenue,02/12/2014,Social Care & Inclusion
WC51-0700,C & V ORCHARD MANOR LTD,Third Party Payments,Private Contractor Fees,73373-RESIDENTIAL & NURSING CARE PLACEMENTS,"1,460.40",Revenue,02/12/2014,Social Care & Inclusion
WC51-0701,C & V ORCHARD MANOR LTD,Third Party Payments,Private Contractor Fees,73373-RESIDENTIAL & NURSING CARE PLACEMENTS,"1,460.40",Revenue,02/12/2014,Social Care & Inclusion
WC51-0702,C & V ORCHARD MANOR LTD,Third Party Payments,Private Contractor Fees,73373-RESIDENTIAL & NURSING CARE PLACEMENTS,"1,531.76",Revenue,02/12/2014,Social Care & Inclusion
WC51-0703,C & V ORCHARD MANOR LTD,Third Party Payments,Private Contractor Fees,73373-RESIDENTIAL & NURSING CARE PLACEMENTS,"1,534.12",Revenue,02/12/2014,Social Care & Inclusion
WC51-0704,C & V ORCHARD RESIDENTIAL LTD,Third Party Payments,Private Contractor Fees,73373-RESIDENTIAL & NURSING CARE PLACEMENTS,312.94,Revenue,17/12/2014,Social Care & Inclusion
WC51-0705,C & V ORCHARD RESIDENTIAL LTD,Third Party Payments,Private Contractor Fees,73373-RESIDENTIAL & NURSING CARE PLACEMENTS,"1,147.46",Revenue,17/12/2014,Social Care & Inclusion
WC51-0706,C & V ORCHARD RESIDENTIAL LTD,Third Party Payments,Private Contractor Fees,73373-RESIDENTIAL & NURSING CARE PLACEMENTS,"1,531.80",Revenue,02/12/2014,Social Care & Inclusion
WC51-0707,REDACTED,Supplies & Services,Other Supplies & Services,62515-MISCELLANEOUS SUPPLIES,"4,267.08",Revenue,08/12/2014,Childrens
WC51-0708,REDACTED,Third Party Payments,Private Contractor Fees,74006-HOLIDAY/CHRISTMAS ALLOWANCE-FOSTER CARERS-OTH AGENCY PROVISION,"4,505.20",Revenue,08/12/2014,Childrens
WC51-0709,REDACTED,Supplies & Services,Other Supplies & Services,62515-MISCELLANEOUS SUPPLIES,"1,428.44",Revenue,08/12/2014,Childrens
WC51-0710,REDACTED,Third Party Payments,Private Contractor Fees,74006-HOLIDAY/CHRISTMAS ALLOWANCE-FOSTER CARERS-OTH AGENCY PROVISION,"1,435.40",Revenue,08/12/2014,Childrens
WC51-0711,C P DAVIDSON & SONS LTD,Supplies & Services,"Equip,Furniture & Materials",60514-MATERIALS TO STORES,611.65,Revenue,03/12/2014,Neighbourhood Services
WC51-0712,REDACTED,Supplies & Services,Services,63000-PROFESSIONAL FEES AND SERVICES,798.00,Revenue,22/12/2014,Neighbourhood Services
WC51-0713,CALDMORE AREA HOUSING ASS LTD,Third Party Payments,Private Contractor Fees,73373-RESIDENTIAL & NURSING CARE PLACEMENTS,265.43,Revenue,10/12/2014,Social Care & Inclusion
WC51-0714,CALDMORE AREA HOUSING ASS LTD,Third Party Payments,Private Contractor Fees,73373-RESIDENTIAL & NURSING CARE PLACEMENTS,353.90,Revenue,10/12/2014,Social Care & Inclusion
WC51-0715,CALDMORE AREA HOUSING ASS LTD,Premises,Rent,43001-RENTS-OTHER,497.87,Revenue,18/12/2014,Resources
WC51-0716,CALDMORE AREA HOUSING ASS LTD,Third Party Payments,Private Contractor Fees,73373-RESIDENTIAL & NURSING CARE PLACEMENTS,530.85,Revenue,10/12/2014,Social Care & Inclusion
WC51-0717,CALDMORE AREA HOUSING ASS LTD,Third Party Payments,Private Contractor Fees,73373-RESIDENTIAL & NURSING CARE PLACEMENTS,530.85,Revenue,10/12/2014,Social Care & Inclusion
WC51-0718,CALDMORE AREA HOUSING ASS LTD,Third Party Payments,Private Contractor Fees,73373-RESIDENTIAL & NURSING CARE PLACEMENTS,530.85,Revenue,17/12/2014,Social Care & Inclusion
WC51-0719,CALDMORE AREA HOUSING ASS LTD,Third Party Payments,Private Contractor Fees,73374-SUPPORTED & OTHER ACCOMMODATION,576.80,Revenue,09/12/2014,Social Care & Inclusion
WC51-0720,CALDMORE AREA HOUSING ASS LTD,Third Party Payments,Private Contractor Fees,73374-SUPPORTED & OTHER ACCOMMODATION,576.80,Revenue,09/12/2014,Social Care & Inclusion
WC51-0721,CALDMORE AREA HOUSING ASS LTD,Third Party Payments,Private Contractor Fees,73374-SUPPORTED & OTHER ACCOMMODATION,576.80,Revenue,09/12/2014,Social Care & Inclusion
WC51-0722,CALDMORE AREA HOUSING ASS LTD,Third Party Payments,Private Contractor Fees,73374-SUPPORTED & OTHER ACCOMMODATION,576.80,Revenue,09/12/2014,Social Care & Inclusion
WC51-0723,CALDMORE AREA HOUSING ASS LTD,Third Party Payments,Private Contractor Fees,73374-SUPPORTED & OTHER ACCOMMODATION,576.80,Revenue,09/12/2014,Social Care & Inclusion
WC51-0724,CALDMORE AREA HOUSING ASS LTD,Third Party Payments,Private Contractor Fees,73374-SUPPORTED & OTHER ACCOMMODATION,576.80,Revenue,09/12/2014,Social Care & Inclusion
WC51-0725,CALDMORE AREA HOUSING ASS LTD,Third Party Payments,Private Contractor Fees,73374-SUPPORTED & OTHER ACCOMMODATION,576.80,Revenue,09/12/2014,Social Care & Inclusion
WC51-0726,CALDMORE AREA HOUSING ASS LTD,Third Party Payments,Private Contractor Fees,73374-SUPPORTED & OTHER ACCOMMODATION,576.80,Revenue,09/12/2014,Social Care & Inclusion
WC51-0727,CALDMORE AREA HOUSING ASS LTD,Third Party Payments,Private Contractor Fees,73374-SUPPORTED & OTHER ACCOMMODATION,576.80,Revenue,09/12/2014,Social Care & Inclusion
WC51-0728,CALDMORE AREA HOUSING ASS LTD,Third Party Payments,Private Contractor Fees,73374-SUPPORTED & OTHER ACCOMMODATION,576.80,Revenue,09/12/2014,Social Care & Inclusion
WC51-0729,CALDMORE AREA HOUSING ASS LTD,Third Party Payments,Private Contractor Fees,73374-SUPPORTED & OTHER ACCOMMODATION,576.80,Revenue,09/12/2014,Social Care & Inclusion
WC51-0730,CALDMORE AREA HOUSING ASS LTD,Third Party Payments,Private Contractor Fees,73374-SUPPORTED & OTHER ACCOMMODATION,576.80,Revenue,16/12/2014,Social Care & Inclusion
WC51-0731,CALDMORE AREA HOUSING ASS LTD,Third Party Payments,Private Contractor Fees,73374-SUPPORTED & OTHER ACCOMMODATION,576.80,Revenue,16/12/2014,Social Care & Inclusion
WC51-0732,CALDMORE AREA HOUSING ASS LTD,Third Party Payments,Private Contractor Fees,73374-SUPPORTED & OTHER ACCOMMODATION,576.80,Revenue,16/12/2014,Social Care & Inclusion
WC51-0733,CALDMORE AREA HOUSING ASS LTD,Third Party Payments,Private Contractor Fees,73374-SUPPORTED & OTHER ACCOMMODATION,576.80,Revenue,16/12/2014,Social Care & Inclusion
WC51-0734,CALDMORE AREA HOUSING ASS LTD,Third Party Payments,Private Contractor Fees,73374-SUPPORTED & OTHER ACCOMMODATION,576.80,Revenue,16/12/2014,Social Care & Inclusion
WC51-0735,CALDMORE AREA HOUSING ASS LTD,Third Party Payments,Private Contractor Fees,73374-SUPPORTED & OTHER ACCOMMODATION,576.80,Revenue,16/12/2014,Social Care & Inclusion
WC51-0736,CALDMORE AREA HOUSING ASS LTD,Third Party Payments,Private Contractor Fees,73374-SUPPORTED & OTHER ACCOMMODATION,576.80,Revenue,16/12/2014,Social Care & Inclusion
WC51-0737,CALDMORE AREA HOUSING ASS LTD,Third Party Payments,Private Contractor Fees,73374-SUPPORTED & OTHER ACCOMMODATION,576.80,Revenue,16/12/2014,Social Care & Inclusion
WC51-0738,CALDMORE AREA HOUSING ASS LTD,Third Party Payments,Private Contractor Fees,73374-SUPPORTED & OTHER ACCOMMODATION,576.80,Revenue,16/12/2014,Social Care & Inclusion
WC51-0739,CALDMORE AREA HOUSING ASS LTD,Third Party Payments,Private Contractor Fees,73374-SUPPORTED & OTHER ACCOMMODATION,576.80,Revenue,16/12/2014,Social Care & Inclusion
WC51-0740,CALDMORE AREA HOUSING ASS LTD,Third Party Payments,Private Contractor Fees,73374-SUPPORTED & OTHER ACCOMMODATION,576.80,Revenue,16/12/2014,Social Care & Inclusion
WC51-0741,CALDMORE AREA HOUSING ASS LTD,Third Party Payments,Private Contractor Fees,73374-SUPPORTED & OTHER ACCOMMODATION,618.00,Revenue,09/12/2014,Social Care & Inclusion
WC51-0742,CALDMORE AREA HOUSING ASS LTD,Third Party Payments,Private Contractor Fees,73373-RESIDENTIAL & NURSING CARE PLACEMENTS,619.33,Revenue,17/12/2014,Social Care & Inclusion
WC51-0743,CALDMORE AREA HOUSING ASS LTD,Third Party Payments,Private Contractor Fees,73373-RESIDENTIAL & NURSING CARE PLACEMENTS,619.33,Revenue,19/12/2014,Social Care & Inclusion
WC51-0744,CALDMORE AREA HOUSING ASS LTD,Third Party Payments,Private Contractor Fees,73373-RESIDENTIAL & NURSING CARE PLACEMENTS,973.23,Revenue,10/12/2014,Social Care & Inclusion
WC51-0745,CALDMORE AREA HOUSING ASS LTD,Third Party Payments,Private Contractor Fees,73373-RESIDENTIAL & NURSING CARE PLACEMENTS,"1,061.71",Revenue,10/12/2014,Social Care & Inclusion
WC51-0746,CALDMORE AREA HOUSING ASS LTD,Third Party Payments,Private Contractor Fees,73373-RESIDENTIAL & NURSING CARE PLACEMENTS,"1,150.18",Revenue,10/12/2014,Social Care & Inclusion
WC51-0747,CALDMORE AREA HOUSING ASS LTD,Third Party Payments,Private Contractor Fees,73373-RESIDENTIAL & NURSING CARE PLACEMENTS,"1,415.61",Revenue,02/12/2014,Social Care & Inclusion
WC51-0748,CALDMORE AREA HOUSING ASS LTD,Third Party Payments,Private Contractor Fees,73373-RESIDENTIAL & NURSING CARE PLACEMENTS,"2,477.32",Revenue,02/12/2014,Social Care & Inclusion
WC51-0749,CALDMORE AREA HOUSING ASS LTD,Third Party Payments,Private Contractor Fees,73373-RESIDENTIAL & NURSING CARE PLACEMENTS,"2,477.32",Revenue,02/12/2014,Social Care & Inclusion
WC51-0750,CALDMORE AREA HOUSING ASS LTD,Third Party Payments,Private Contractor Fees,73373-RESIDENTIAL & NURSING CARE PLACEMENTS,"2,477.32",Revenue,02/12/2014,Social Care & Inclusion
WC51-0751,CALDMORE AREA HOUSING ASS LTD,Third Party Payments,Private Contractor Fees,73373-RESIDENTIAL & NURSING CARE PLACEMENTS,"2,477.32",Revenue,02/12/2014,Social Care & Inclusion
WC51-0752,CALDMORE AREA HOUSING ASS LTD,Third Party Payments,Private Contractor Fees,73373-RESIDENTIAL & NURSING CARE PLACEMENTS,"2,477.32",Revenue,02/12/2014,Social Care & Inclusion
WC51-0753,CALDMORE AREA HOUSING ASS LTD,Third Party Payments,Private Contractor Fees,73373-RESIDENTIAL & NURSING CARE PLACEMENTS,"2,477.32",Revenue,02/12/2014,Social Care & Inclusion
WC51-0754,CALDMORE AREA HOUSING ASS LTD,Third Party Payments,Private Contractor Fees,73373-RESIDENTIAL & NURSING CARE PLACEMENTS,"2,477.32",Revenue,02/12/2014,Social Care & Inclusion
WC51-0755,CALDMORE AREA HOUSING ASS LTD,Third Party Payments,Private Contractor Fees,73373-RESIDENTIAL & NURSING CARE PLACEMENTS,"2,477.32",Revenue,10/12/2014,Social Care & Inclusion
WC51-0756,CALDMORE AREA HOUSING ASS LTD,Third Party Payments,Private Contractor Fees,73373-RESIDENTIAL & NURSING CARE PLACEMENTS,"2,477.32",Revenue,10/12/2014,Social Care & Inclusion
WC51-0757,CALDMORE AREA HOUSING ASS LTD,Third Party Payments,Private Contractor Fees,73373-RESIDENTIAL & NURSING CARE PLACEMENTS,"2,477.32",Revenue,10/12/2014,Social Care & Inclusion
WC51-0758,CALDMORE AREA HOUSING ASS LTD,Third Party Payments,Private Contractor Fees,73373-RESIDENTIAL & NURSING CARE PLACEMENTS,"2,477.32",Revenue,19/12/2014,Social Care & Inclusion
WC51-0759,CALDMORE AREA HOUSING ASS LTD,Third Party Payments,Private Contractor Fees,73373-RESIDENTIAL & NURSING CARE PLACEMENTS,"2,477.32",Revenue,19/12/2014,Social Care & Inclusion
WC51-0760,CALDMORE AREA HOUSING ASS LTD,Third Party Payments,Private Contractor Fees,73373-RESIDENTIAL & NURSING CARE PLACEMENTS,"2,477.32",Revenue,19/12/2014,Social Care & Inclusion
WC51-0761,CALDMORE AREA HOUSING ASS LTD,Third Party Payments,Private Contractor Fees,73373-RESIDENTIAL & NURSING CARE PLACEMENTS,"2,477.32",Revenue,19/12/2014,Social Care & Inclusion
WC51-0762,CALDMORE AREA HOUSING ASS LTD,Third Party Payments,Private Contractor Fees,73373-RESIDENTIAL & NURSING CARE PLACEMENTS,"2,477.32",Revenue,19/12/2014,Social Care & Inclusion
WC51-0763,CALDMORE AREA HOUSING ASS LTD,Third Party Payments,Private Contractor Fees,73373-RESIDENTIAL & NURSING CARE PLACEMENTS,"2,477.32",Revenue,19/12/2014,Social Care & Inclusion
WC51-0764,CALDMORE AREA HOUSING ASS LTD,Third Party Payments,Private Contractor Fees,73373-RESIDENTIAL & NURSING CARE PLACEMENTS,"2,477.32",Revenue,19/12/2014,Social Care & Inclusion
WC51-0765,CALDMORE AREA HOUSING ASS LTD,Third Party Payments,Private Contractor Fees,73373-RESIDENTIAL & NURSING CARE PLACEMENTS,"2,477.32",Revenue,19/12/2014,Social Care & Inclusion
WC51-0766,CALDMORE AREA HOUSING ASS LTD,Third Party Payments,Private Contractor Fees,73373-RESIDENTIAL & NURSING CARE PLACEMENTS,"2,477.32",Revenue,19/12/2014,Social Care & Inclusion
WC51-0767,CALDMORE AREA HOUSING ASS LTD,Third Party Payments,Private Contractor Fees,73373-RESIDENTIAL & NURSING CARE PLACEMENTS,"2,477.36",Revenue,19/12/2014,Social Care & Inclusion
WC51-0768,CALDMORE AREA HOUSING ASS LTD,Third Party Payments,Private Contractor Fees,73373-RESIDENTIAL & NURSING CARE PLACEMENTS,"2,654.27",Revenue,19/12/2014,Social Care & Inclusion
WC51-0769,CALDMORE AREA HOUSING ASS LTD,Third Party Payments,Private Contractor Fees,73373-RESIDENTIAL & NURSING CARE PLACEMENTS,"3,008.17",Revenue,02/12/2014,Social Care & Inclusion
WC51-0770,CALDMORE AREA HOUSING ASS LTD,Third Party Payments,Private Contractor Fees,73373-RESIDENTIAL & NURSING CARE PLACEMENTS,"3,008.17",Revenue,10/12/2014,Social Care & Inclusion
WC51-0771,CALDMORE AREA HOUSING ASS LTD,Third Party Payments,Private Contractor Fees,73373-RESIDENTIAL & NURSING CARE PLACEMENTS,"3,096.65",Revenue,02/12/2014,Social Care & Inclusion
WC51-0772,CALDMORE AREA HOUSING ASS LTD,Third Party Payments,Private Contractor Fees,73373-RESIDENTIAL & NURSING CARE PLACEMENTS,"3,096.65",Revenue,02/12/2014,Social Care & Inclusion
WC51-0773,CALDMORE AREA HOUSING ASS LTD,Third Party Payments,Private Contractor Fees,73373-RESIDENTIAL & NURSING CARE PLACEMENTS,"3,096.65",Revenue,02/12/2014,Social Care & Inclusion
WC51-0774,CALDMORE AREA HOUSING ASS LTD,Third Party Payments,Private Contractor Fees,73373-RESIDENTIAL & NURSING CARE PLACEMENTS,"3,096.65",Revenue,02/12/2014,Social Care & Inclusion
WC51-0775,CALDMORE AREA HOUSING ASS LTD,Third Party Payments,Private Contractor Fees,73373-RESIDENTIAL & NURSING CARE PLACEMENTS,"3,096.65",Revenue,10/12/2014,Social Care & Inclusion
WC51-0776,CALDMORE AREA HOUSING ASS LTD,Third Party Payments,Private Contractor Fees,73373-RESIDENTIAL & NURSING CARE PLACEMENTS,"3,185.13",Revenue,02/12/2014,Social Care & Inclusion
WC51-0777,CALDMORE VILLAGE FESTIVAL GROUP,Third Party Payments,Grants to Other Orgs,66500-GRANTS TO OTHER ORGS,"10,000.00",Revenue,02/12/2014,Neighbourhood Services
WC51-0778,REDACTED,Third Party Payments,Private Contractor Fees,74006-HOLIDAY/CHRISTMAS ALLOWANCE-FOSTER CARERS-OTH AGENCY PROVISION,373.60,Revenue,18/12/2014,Childrens
WC51-0779,REDACTED,Transfer Payments,Transfer Payments,76422-DIRECT PAYMENTS TO SOCIAL SERVICES CLIENTS,359.63,Revenue,08/12/2014,Childrens
WC51-0780,CAMERA ONE LIMITED,Third Party Payments,Private Contractor Fees,73025-PROFESSIONAL SERVICES-PRIV CONTRACTOR & OTHER AGENCIES,482.00,Revenue,05/12/2014,Neighbourhood Services
WC51-0781,CAMERA ONE LIMITED,Third Party Payments,Private Contractor Fees,73025-PROFESSIONAL SERVICES-PRIV CONTRACTOR & OTHER AGENCIES,495.00,Revenue,02/12/2014,Neighbourhood Services
WC51-0782,REDACTED,Third Party Payments,Private Contractor Fees,73014-LEGAL FEES-PRIV CONTRACTOR FEES,"1,000.00",Revenue,11/12/2014,Neighbourhood Services
WC51-0783,CANAL & RIVER TRUST,Premises,Rent,43000-RENTS,"1,302.75",Revenue,23/12/2014,Neighbourhood Services
WC51-0784,CANNOCK CHASE HIGH SCHOOL,Transfer Payments,Transfer Payments,77300-ISB-FORMULA ALLOCATION,"1,380.00",Revenue,08/12/2014,Childrens
WC51-0785,CANNOCK TACHOGRAPH CENTRE LTD,Supplies & Services,"Equip,Furniture & Materials",60500-GENERAL MATERIALS,345.00,Revenue,22/12/2014,Neighbourhood Services
WC51-0786,CANNOCK TACHOGRAPH CENTRE LTD,Third Party Payments,Private Contractor Fees,73025-PROFESSIONAL SERVICES-PRIV CONTRACTOR & OTHER AGENCIES,595.00,Revenue,11/12/2014,Neighbourhood Services
WC51-0787,CAPITA BUSINESS SERVICES LTD 001,Employees,Training,30030-EXTERNAL TRAINING,350.00,Revenue,01/12/2014,Childrens
WC51-0788,CAPITA TREASURY SOLUTIONS LIMITED,Capital,Capital,01018-VEHICLES LEASING,"11,900.00",Capital,22/12/2014,Leasing
WC51-0789,CAPITAL HAIR & BEAUTY LTD,Supplies & Services,"Equip,Furniture & Materials",60500-GENERAL MATERIALS,268.60,Revenue,16/12/2014,Neighbourhood Services
WC51-0790,CAPITAL HAIR & BEAUTY LTD,Supplies & Services,Other Supplies & Services,63115-HIRE OF ROOM (duplicate please use 63128)-SERVICES-FEES,800.00,Revenue,03/12/2014,Neighbourhood Services
WC51-0791,CAPSTONE FOSTER CARE (SOUTH EAST) LIMITED,Third Party Payments,Private Contractor Fees,74037-INDEPENDENT FOSTER CARE-OTH AGENCY PROVISION,"2,598.60",Revenue,02/12/2014,Childrens
WC51-0792,CAPSTONE FOSTER CARE (SOUTH EAST) LIMITED,Third Party Payments,Private Contractor Fees,74037-INDEPENDENT FOSTER CARE-OTH AGENCY PROVISION,"2,681.27",Revenue,02/12/2014,Childrens
WC51-0793,CAPSTONE FOSTER CARE (SOUTH EAST) LIMITED,Third Party Payments,Private Contractor Fees,74037-INDEPENDENT FOSTER CARE-OTH AGENCY PROVISION,"2,681.27",Revenue,02/12/2014,Childrens
WC51-0794,CAPSTONE FOSTER CARE (SOUTH EAST) LIMITED,Third Party Payments,Private Contractor Fees,74037-INDEPENDENT FOSTER CARE-OTH AGENCY PROVISION,"3,154.20",Revenue,02/12/2014,Childrens
WC51-0795,CARE 2 U LIMITED,Third Party Payments,Private Contractor Fees,73372-DOMICILIARY CARE,"10,964.36",Revenue,02/12/2014,Social Care & Inclusion
WC51-0796,CARE 2 U LIMITED,Third Party Payments,Private Contractor Fees,73372-DOMICILIARY CARE,"41,153.96",Revenue,18/12/2014,Social Care & Inclusion
WC51-0797,CARE FIRST CARE HOMES LTD,Third Party Payments,Private Contractor Fees,73373-RESIDENTIAL & NURSING CARE PLACEMENTS,-586.93,Revenue,17/12/2014,Social Care & Inclusion
WC51-0798,CARE FIRST CARE HOMES LTD,Third Party Payments,Private Contractor Fees,73372-DOMICILIARY CARE,"3,680.00",Revenue,11/12/2014,Social Care & Inclusion
WC51-0799,CARE FIRST MANAGEMENT SERVICES LTD,Third Party Payments,Private Contractor Fees,73372-DOMICILIARY CARE,780.00,Revenue,11/12/2014,Social Care & Inclusion
WC51-0800,CARE LEAVERS,Third Party Payments,Private Contractor Fees,74500-CARE LEAVERS MTCE PAYMENTS,28.00,Revenue,18/12/2014,Childrens
WC51-0801,CARE LEAVERS,Third Party Payments,Private Contractor Fees,74500-CARE LEAVERS MTCE PAYMENTS,100.00,Revenue,04/12/2014,Childrens
WC51-0802,CARE LEAVERS,Third Party Payments,Private Contractor Fees,74500-CARE LEAVERS MTCE PAYMENTS,200.00,Revenue,18/12/2014,Childrens
WC51-0803,CARE LEAVERS,Transfer Payments,Transfer Payments,76400-RESIDENTS PERSONAL EXPENSES-ALLOWANCES TO S/S CLIENTS,306.32,Revenue,18/12/2014,Childrens
WC51-0804,CARE LEAVERS,Supplies & Services,Other Supplies & Services,64002-OTHER EXPENSES-EXPENSES,435.90,Revenue,18/12/2014,Childrens
WC51-0805,CARE LEAVERS,Third Party Payments,Private Contractor Fees,74500-CARE LEAVERS MTCE PAYMENTS,480.00,Revenue,01/12/2014,Childrens
WC51-0806,CARE LEAVERS,Supplies & Services,Other Supplies & Services,64002-OTHER EXPENSES-EXPENSES,512.35,Revenue,18/12/2014,Childrens
WC51-0807,CARE LEAVERS,Transfer Payments,Transfer Payments,76400-RESIDENTS PERSONAL EXPENSES-ALLOWANCES TO S/S CLIENTS,573.50,Revenue,04/12/2014,Childrens
WC51-0808,CARE LEAVERS,Third Party Payments,Private Contractor Fees,74500-CARE LEAVERS MTCE PAYMENTS,760.00,Revenue,15/12/2014,Childrens
WC51-0809,CARE LEAVERS,Supplies & Services,Other Supplies & Services,64002-OTHER EXPENSES-EXPENSES,"1,068.84",Revenue,01/12/2014,Childrens
WC51-0810,CARE LEAVERS,Supplies & Services,Other Supplies & Services,63114-OTHER FEES & LICENCES-SERVICES-FEES,"1,518.62",Revenue,15/12/2014,Childrens
WC51-0811,CARE LEAVERS,Transfer Payments,Transfer Payments,76400-RESIDENTS PERSONAL EXPENSES-ALLOWANCES TO S/S CLIENTS,"2,374.23",Revenue,18/12/2014,Childrens
WC51-0812,CARE LEAVERS,Transfer Payments,Transfer Payments,76400-RESIDENTS PERSONAL EXPENSES-ALLOWANCES TO S/S CLIENTS,"2,495.32",Revenue,15/12/2014,Childrens
WC51-0813,CARE LEAVERS,Transfer Payments,Transfer Payments,76010-ACCOMMODATION AND RELATED COSTS-ASSISTANCE TO S/S CLIENTS,"3,243.66",Revenue,15/12/2014,Childrens
WC51-0814,CARE LEAVERS,Transfer Payments,Transfer Payments,76400-RESIDENTS PERSONAL EXPENSES-ALLOWANCES TO S/S CLIENTS,"3,262.39",Revenue,01/12/2014,Childrens
WC51-0815,CARE LEAVERS,Supplies & Services,Other Supplies & Services,64002-OTHER EXPENSES-EXPENSES,"3,903.20",Revenue,15/12/2014,Childrens
WC51-0816,CARE LEAVERS,Transfer Payments,Transfer Payments,76000-TRANSFER PAYMENTS - SOCIAL SERVICES CLIENTS,"3,903.20",Revenue,18/12/2014,Childrens
WC51-0817,CARE LEAVERS,Transfer Payments,Transfer Payments,76000-TRANSFER PAYMENTS - SOCIAL SERVICES CLIENTS,"3,987.90",Revenue,01/12/2014,Childrens
WC51-0818,CARE LEAVERS,Supplies & Services,Other Supplies & Services,64002-OTHER EXPENSES-EXPENSES,"4,005.51",Revenue,04/12/2014,Childrens
WC51-0819,CARE LEAVERS,Transfer Payments,Transfer Payments,76010-ACCOMMODATION AND RELATED COSTS-ASSISTANCE TO S/S CLIENTS,"6,166.73",Revenue,18/12/2014,Childrens
WC51-0820,CARE LEAVERS,Transfer Payments,Transfer Payments,76010-ACCOMMODATION AND RELATED COSTS-ASSISTANCE TO S/S CLIENTS,"7,225.92",Revenue,04/12/2014,Childrens
WC51-0821,CARE LEAVERS,Transfer Payments,Transfer Payments,76010-ACCOMMODATION AND RELATED COSTS-ASSISTANCE TO S/S CLIENTS,"9,798.88",Revenue,01/12/2014,Childrens
WC51-0822,CARE LEAVERS,Transfer Payments,Transfer Payments,76010-ACCOMMODATION AND RELATED COSTS-ASSISTANCE TO S/S CLIENTS,"16,289.20",Revenue,18/12/2014,Childrens
WC51-0823,CARE SHOP,Supplies & Services,"Equip,Furniture & Materials",60520-HEALTH & SAFETY-MATERIALS,421.53,Revenue,01/12/2014,Social Care & Inclusion
WC51-0824,CARE SHOP,Supplies & Services,"Equip,Furniture & Materials",60539-CLEANING MATERIALS,616.24,Revenue,02/12/2014,Social Care & Inclusion
WC51-0825,CARE4HEALTH LTD.,Employees,Agency,34305-AGENCY STAFF-EMPLOYEES,"1,034.40",Revenue,29/12/2014,Social Care & Inclusion
WC51-0826,CARETECH COMMUNITY SERVICE,Third Party Payments,Private Contractor Fees,73374-SUPPORTED & OTHER ACCOMMODATION,"4,885.71",Revenue,01/12/2014,Social Care & Inclusion
WC51-0827,CARETECH COMMUNITY SERVICE,Third Party Payments,Private Contractor Fees,73374-SUPPORTED & OTHER ACCOMMODATION,"5,048.57",Revenue,01/12/2014,Social Care & Inclusion
WC51-0828,CAREVIEW SERVICES LTD,Third Party Payments,Private Contractor Fees,73373-RESIDENTIAL & NURSING CARE PLACEMENTS,"6,653.13",Revenue,19/12/2014,Social Care & Inclusion
WC51-0829,CARING CARE LIMITED,Third Party Payments,Private Contractor Fees,73374-SUPPORTED & OTHER ACCOMMODATION,"1,242.00",Revenue,05/12/2014,Social Care & Inclusion
WC51-0830,CARING CARE LIMITED,Third Party Payments,Private Contractor Fees,73372-DOMICILIARY CARE,"2,743.14",Revenue,02/12/2014,Social Care & Inclusion
WC51-0831,CARING CARE LIMITED,Third Party Payments,Private Contractor Fees,73372-DOMICILIARY CARE,"45,723.80",Revenue,18/12/2014,Social Care & Inclusion
WC51-0832,CARING HANDS LIMITED,Third Party Payments,Private Contractor Fees,73372-DOMICILIARY CARE,"50,008.88",Revenue,18/12/2014,Social Care & Inclusion
WC51-0833,REDACTED,Third Party Payments,Private Contractor Fees,73374-SUPPORTED & OTHER ACCOMMODATION,"4,912.20",Revenue,01/12/2014,Social Care & Inclusion
WC51-0834,REDACTED,Third Party Payments,Private Contractor Fees,73374-SUPPORTED & OTHER ACCOMMODATION,"4,912.20",Revenue,19/12/2014,Social Care & Inclusion
WC51-0835,REDACTED,Transfer Payments,Transfer Payments,76422-DIRECT PAYMENTS TO SOCIAL SERVICES CLIENTS,562.50,Revenue,08/12/2014,Social Care & Inclusion
WC51-0836,REDACTED,Supplies & Services,Other Supplies & Services,62515-MISCELLANEOUS SUPPLIES,533.96,Revenue,08/12/2014,Childrens
WC51-0837,REDACTED,Third Party Payments,Private Contractor Fees,74006-HOLIDAY/CHRISTMAS ALLOWANCE-FOSTER CARERS-OTH AGENCY PROVISION,714.00,Revenue,08/12/2014,Childrens
WC51-0838,REDACTED,Third Party Payments,Private Contractor Fees,74006-HOLIDAY/CHRISTMAS ALLOWANCE-FOSTER CARERS-OTH AGENCY PROVISION,585.20,Revenue,18/12/2014,Childrens
WC51-0839,CARTER SYNERGY LTD,Premises,Premises-Repairs & Maintenance,"40000-REPAIRS,ALTERATIONS & MAINTENANCE-PREM","1,540.00",Revenue,01/12/2014,Neighbourhood Services
WC51-0840,CARTER SYNERGY LTD,Premises,Premises-Repairs & Maintenance,40013-LIFTS-OP MTCE,"5,857.00",Revenue,18/12/2014,Neighbourhood Services
WC51-0841,CARTOON STUDIO LIMITED,Supplies & Services,Subscriptions,64502-PUBLICATIONS/REFERENCE BOOKS-SUBSCRIPTIONS,400.00,Revenue,09/12/2014,Social Care & Inclusion
WC51-0842,CASHFRIDAY,Third Party Payments,Private Contractor Fees,73372-DOMICILIARY CARE,430.50,Revenue,17/12/2014,Social Care & Inclusion
WC51-0843,CASHFRIDAY,Third Party Payments,Private Contractor Fees,73372-DOMICILIARY CARE,434.00,Revenue,08/12/2014,Social Care & Inclusion
WC51-0844,REDACTED,Transfer Payments,Transfer Payments,76422-DIRECT PAYMENTS TO SOCIAL SERVICES CLIENTS,778.35,Revenue,08/12/2014,Social Care & Inclusion
WC51-0845,REDACTED,Transfer Payments,Transfer Payments,76422-DIRECT PAYMENTS TO SOCIAL SERVICES CLIENTS,863.10,Revenue,08/12/2014,Social Care & Inclusion
WC51-0846,REDACTED,Third Party Payments,Private Contractor Fees,74006-HOLIDAY/CHRISTMAS ALLOWANCE-FOSTER CARERS-OTH AGENCY PROVISION,417.56,Revenue,18/12/2014,Childrens
WC51-0847,REDACTED,Transfer Payments,Transfer Payments,76422-DIRECT PAYMENTS TO SOCIAL SERVICES CLIENTS,485.50,Revenue,08/12/2014,Social Care & Inclusion
WC51-0848,REDACTED,Transfer Payments,Transfer Payments,76422-DIRECT PAYMENTS TO SOCIAL SERVICES CLIENTS,"1,267.83",Revenue,08/12/2014,Childrens
WC51-0849,REDACTED,Third Party Payments,Private Contractor Fees,74006-HOLIDAY/CHRISTMAS ALLOWANCE-FOSTER CARERS-OTH AGENCY PROVISION,417.56,Revenue,18/12/2014,Childrens
WC51-0850,CE RISK SAFETY AND SECURITY LTD,Third Party Payments,Private Contractor Fees,73025-PROFESSIONAL SERVICES-PRIV CONTRACTOR & OTHER AGENCIES,"-1,260.00",Revenue,01/12/2014,Regeneration
WC51-0851,CE RISK SAFETY AND SECURITY LTD,Third Party Payments,Private Contractor Fees,73002-SECURITY-PRIV CONTRACTOR FEES,"7,653.77",Revenue,01/12/2014,Regeneration
WC51-0852,CE RISK SAFETY AND SECURITY LTD,Third Party Payments,Private Contractor Fees,73002-SECURITY-PRIV CONTRACTOR FEES,"7,653.77",Revenue,01/12/2014,Regeneration
WC51-0853,CEDER LODGE NURSING HOME,Third Party Payments,Private Contractor Fees,73373-RESIDENTIAL & NURSING CARE PLACEMENTS,"2,140.29",Revenue,17/12/2014,Social Care & Inclusion
WC51-0854,CENTRAL INSULATION & ENVIRONM,Third Party Payments,Private Contractor Fees,73025-PROFESSIONAL SERVICES-PRIV CONTRACTOR & OTHER AGENCIES,250.00,Revenue,16/12/2014,Regeneration
WC51-0855,CENTRAL INSULATION & ENVIRONM,Premises,Premises-Repairs & Maintenance,"40000-REPAIRS,ALTERATIONS & MAINTENANCE-PREM",596.00,Revenue,12/12/2014,Regeneration
WC51-0856,CENTRAL INSULATION & ENVIRONM,Capital,Capital,01006-SITE WORKS MAIN CONTRACTORS,"1,750.00",Capital,09/12/2014,Regeneration
WC51-0857,CENTRAL THEATRE SUPPLIES,Supplies & Services,"Printing, Stationery & Office Exp",63500-POSTAGES AND COURIER SERVICES,9.95,Revenue,05/12/2014,Neighbourhood Services
WC51-0858,CENTRAL THEATRE SUPPLIES,Supplies & Services,"Equip,Furniture & Materials",60500-GENERAL MATERIALS,347.92,Revenue,05/12/2014,Neighbourhood Services
WC51-0859,CENTRO WMPTA,Transfer Payments,Transfer Payments,76000-TRANSFER PAYMENTS - SOCIAL SERVICES CLIENTS,"3,195.00",Revenue,01/12/2014,Social Care & Inclusion
WC51-0860,REDACTED,Third Party Payments,Private Contractor Fees,74006-HOLIDAY/CHRISTMAS ALLOWANCE-FOSTER CARERS-OTH AGENCY PROVISION,561.32,Revenue,18/12/2014,Childrens
WC51-0861,CERTAS ENERGY UK LIMITED,Transport,Other Transport,50301-FUEL-TRANSPORT RUN COSTS,552.10,Revenue,01/12/2014,Neighbourhood Services
WC51-0862,CERTAS ENERGY UK LIMITED,Transport,Other Transport,50301-FUEL-TRANSPORT RUN COSTS,"1,645.79",Revenue,05/12/2014,Neighbourhood Services
WC51-0863,CERTAS ENERGY UK LIMITED,Transport,Other Transport,50301-FUEL-TRANSPORT RUN COSTS,"19,650.96",Revenue,15/12/2014,Neighbourhood Services
WC51-0864,CERTAS ENERGY UK LIMITED,Transport,Other Transport,50301-FUEL-TRANSPORT RUN COSTS,"20,111.96",Revenue,01/12/2014,Neighbourhood Services
WC51-0865,CERTAS ENERGY UK LIMITED,Transport,Other Transport,50301-FUEL-TRANSPORT RUN COSTS,"20,178.30",Revenue,05/12/2014,Neighbourhood Services
WC51-0866,CERTAS ENERGY UK LIMITED,Transport,Other Transport,50301-FUEL-TRANSPORT RUN COSTS,"20,185.01",Revenue,01/12/2014,Neighbourhood Services
WC51-0867,CERTAS ENERGY UK LIMITED,Transport,Other Transport,50301-FUEL-TRANSPORT RUN COSTS,"20,246.58",Revenue,01/12/2014,Neighbourhood Services
WC51-0868,CEXC LIMITED,Supplies & Services,Communications & Computing,63800-COMPUTER EQUIPMENT AND SUPPLIES,861.75,Revenue,02/12/2014,Resources
WC51-0869,CF ASSET FINANCE LIMITED,Supplies & Services,"Equip,Furniture & Materials",60009-LEASING/HIRE/RENTAL-EQUIPMENT,272.86,Revenue,01/12/2014,Childrens
WC51-0870,CF ASSET FINANCE LIMITED,Supplies & Services,"Equip,Furniture & Materials",60009-LEASING/HIRE/RENTAL-EQUIPMENT,284.35,Revenue,03/12/2014,Social Care & Inclusion
WC51-0871,CF ASSET FINANCE LIMITED,Supplies & Services,"Equip,Furniture & Materials",60009-LEASING/HIRE/RENTAL-EQUIPMENT,323.94,Revenue,15/12/2014,Neighbourhood Services
WC51-0872,CF ASSET FINANCE LIMITED,Supplies & Services,"Equip,Furniture & Materials",60009-LEASING/HIRE/RENTAL-EQUIPMENT,330.80,Revenue,08/12/2014,Social Care & Inclusion
WC51-0873,CFT FOSTERING LIMITED,Third Party Payments,Private Contractor Fees,74037-INDEPENDENT FOSTER CARE-OTH AGENCY PROVISION,"5,850.32",Revenue,16/12/2014,Childrens
WC51-0874,CHANDOS LODGE CARE HOME,Third Party Payments,Private Contractor Fees,73373-RESIDENTIAL & NURSING CARE PLACEMENTS,"1,632.00",Revenue,10/12/2014,Social Care & Inclusion
WC51-0875,CHANDOS LODGE CARE HOME,Third Party Payments,Private Contractor Fees,73373-RESIDENTIAL & NURSING CARE PLACEMENTS,"1,632.00",Revenue,10/12/2014,Social Care & Inclusion
WC51-0876,CHAPMAN SAFETY SERVICES,Employees,Training,30030-EXTERNAL TRAINING,380.00,Revenue,08/12/2014,Resources
WC51-0877,CHAPMAN SAFETY SERVICES,Employees,Training,30030-EXTERNAL TRAINING,"1,475.00",Revenue,08/12/2014,Resources
WC51-0878,REDACTED,Transfer Payments,Transfer Payments,76422-DIRECT PAYMENTS TO SOCIAL SERVICES CLIENTS,935.00,Revenue,08/12/2014,Social Care & Inclusion
WC51-0879,REDACTED,Third Party Payments,Private Contractor Fees,74006-HOLIDAY/CHRISTMAS ALLOWANCE-FOSTER CARERS-OTH AGENCY PROVISION,639.40,Revenue,18/12/2014,Childrens
WC51-0880,CHARLIE CATERPILLAR'S DAY NURSERY,Third Party Payments,Grants to Other Orgs,66505-OTHER-GRANTS TO OTHER ORGS,328.52,Revenue,15/12/2014,Childrens
WC51-0881,CHARLIE CATERPILLAR'S DAY NURSERY,Employees,Other Staff Costs,32000-MISC FEES AND EXPENSES,546.00,Revenue,12/12/2014,Childrens
WC51-0882,CHARLIE CATERPILLAR'S DAY NURSERY,Employees,Agency,34305-AGENCY STAFF-EMPLOYEES,"1,904.55",Revenue,23/12/2014,Childrens
WC51-0883,CHARLIE CATERPILLAR'S DAY NURSERY,Employees,Agency,34305-AGENCY STAFF-EMPLOYEES,"2,162.53",Revenue,01/12/2014,Childrens
WC51-0884,CHARLIE CATERPILLAR'S DAY NURSERY,Employees,Agency,34305-AGENCY STAFF-EMPLOYEES,"7,488.80",Revenue,01/12/2014,Childrens
WC51-0885,CHARLIE CATERPILLAR'S DAY NURSERY,Third Party Payments,Grants to Other Orgs,66505-OTHER-GRANTS TO OTHER ORGS,"7,907.13",Revenue,01/12/2014,Childrens
WC51-0886,CHARLIE CATERPILLAR'S DAY NURSERY,Third Party Payments,Grants to Other Orgs,66505-OTHER-GRANTS TO OTHER ORGS,"16,293.99",Revenue,19/12/2014,Childrens
WC51-0887,CHARMEND LTD,Third Party Payments,Private Contractor Fees,73373-RESIDENTIAL & NURSING CARE PLACEMENTS,-573.73,Revenue,10/12/2014,Social Care & Inclusion
WC51-0888,CHARMEND LTD,Third Party Payments,Private Contractor Fees,73373-RESIDENTIAL & NURSING CARE PLACEMENTS,417.26,Revenue,10/12/2014,Social Care & Inclusion
WC51-0889,CHARMEND LTD,Third Party Payments,Private Contractor Fees,73373-RESIDENTIAL & NURSING CARE PLACEMENTS,573.73,Revenue,10/12/2014,Social Care & Inclusion
WC51-0890,CHARMEND LTD,Third Party Payments,Private Contractor Fees,73373-RESIDENTIAL & NURSING CARE PLACEMENTS,"1,314.77",Revenue,17/12/2014,Social Care & Inclusion
WC51-0891,CHARMEND LTD,Third Party Payments,Private Contractor Fees,73373-RESIDENTIAL & NURSING CARE PLACEMENTS,"2,071.24",Revenue,02/12/2014,Social Care & Inclusion
WC51-0892,CHARMEND LTD,Third Party Payments,Private Contractor Fees,73373-RESIDENTIAL & NURSING CARE PLACEMENTS,"2,075.96",Revenue,02/12/2014,Social Care & Inclusion
WC51-0893,CHARMEND LTD,Third Party Payments,Private Contractor Fees,73373-RESIDENTIAL & NURSING CARE PLACEMENTS,"2,140.28",Revenue,17/12/2014,Social Care & Inclusion
WC51-0894,CHARMEND LTD,Third Party Payments,Private Contractor Fees,73373-RESIDENTIAL & NURSING CARE PLACEMENTS,"2,145.16",Revenue,17/12/2014,Social Care & Inclusion
WC51-0895,CHARMEND LTD,Third Party Payments,Private Contractor Fees,73373-RESIDENTIAL & NURSING CARE PLACEMENTS,"2,145.16",Revenue,17/12/2014,Social Care & Inclusion
WC51-0896,CHARMEND LTD,Third Party Payments,Private Contractor Fees,73373-RESIDENTIAL & NURSING CARE PLACEMENTS,"4,221.12",Revenue,17/12/2014,Social Care & Inclusion
WC51-0897,CHARMEND LTD,Third Party Payments,Private Contractor Fees,73019-PSE'S-PRIV CONTRACTOR FEES,"6,000.00",Revenue,12/12/2014,Social Care & Inclusion
WC51-0898,CHARNAT CARE LIMITED,Third Party Payments,Private Contractor Fees,73373-RESIDENTIAL & NURSING CARE PLACEMENTS,795.00,Revenue,19/12/2014,Social Care & Inclusion
WC51-0899,CHARNAT CARE LIMITED,Third Party Payments,Private Contractor Fees,73373-RESIDENTIAL & NURSING CARE PLACEMENTS,795.00,Revenue,19/12/2014,Social Care & Inclusion
WC51-0900,CHARNAT CARE LIMITED,Third Party Payments,Private Contractor Fees,73373-RESIDENTIAL & NURSING CARE PLACEMENTS,795.00,Revenue,19/12/2014,Social Care & Inclusion
WC51-0901,CHARNAT CARE LIMITED,Third Party Payments,Private Contractor Fees,73373-RESIDENTIAL & NURSING CARE PLACEMENTS,795.00,Revenue,19/12/2014,Social Care & Inclusion
WC51-0902,CHARNAT CARE LIMITED,Third Party Payments,Private Contractor Fees,73373-RESIDENTIAL & NURSING CARE PLACEMENTS,795.00,Revenue,19/12/2014,Social Care & Inclusion
WC51-0903,CHARNAT CARE LIMITED,Third Party Payments,Private Contractor Fees,73373-RESIDENTIAL & NURSING CARE PLACEMENTS,795.00,Revenue,19/12/2014,Social Care & Inclusion
WC51-0904,CHARNAT CARE LIMITED,Third Party Payments,Private Contractor Fees,73373-RESIDENTIAL & NURSING CARE PLACEMENTS,795.00,Revenue,19/12/2014,Social Care & Inclusion
WC51-0905,CHARNAT CARE LIMITED,Third Party Payments,Private Contractor Fees,73373-RESIDENTIAL & NURSING CARE PLACEMENTS,795.00,Revenue,19/12/2014,Social Care & Inclusion
WC51-0906,CHARNAT CARE LIMITED,Third Party Payments,Private Contractor Fees,73373-RESIDENTIAL & NURSING CARE PLACEMENTS,795.00,Revenue,19/12/2014,Social Care & Inclusion
WC51-0907,CHARNAT CARE LIMITED,Third Party Payments,Private Contractor Fees,73373-RESIDENTIAL & NURSING CARE PLACEMENTS,795.00,Revenue,19/12/2014,Social Care & Inclusion
WC51-0908,CHARNAT CARE LIMITED,Third Party Payments,Private Contractor Fees,73373-RESIDENTIAL & NURSING CARE PLACEMENTS,795.00,Revenue,19/12/2014,Social Care & Inclusion
WC51-0909,CHARNAT CARE LIMITED,Third Party Payments,Private Contractor Fees,73373-RESIDENTIAL & NURSING CARE PLACEMENTS,795.00,Revenue,19/12/2014,Social Care & Inclusion
WC51-0910,CHARNAT CARE LIMITED,Third Party Payments,Private Contractor Fees,73373-RESIDENTIAL & NURSING CARE PLACEMENTS,795.00,Revenue,19/12/2014,Social Care & Inclusion
WC51-0911,CHARNAT CARE LIMITED,Third Party Payments,Private Contractor Fees,73373-RESIDENTIAL & NURSING CARE PLACEMENTS,795.00,Revenue,19/12/2014,Social Care & Inclusion
WC51-0912,CHARNAT CARE LIMITED,Third Party Payments,Private Contractor Fees,73373-RESIDENTIAL & NURSING CARE PLACEMENTS,795.00,Revenue,19/12/2014,Social Care & Inclusion
WC51-0913,CHARNAT CARE LIMITED,Third Party Payments,Private Contractor Fees,73373-RESIDENTIAL & NURSING CARE PLACEMENTS,795.00,Revenue,19/12/2014,Social Care & Inclusion
WC51-0914,CHARNAT CARE LIMITED,Third Party Payments,Private Contractor Fees,73373-RESIDENTIAL & NURSING CARE PLACEMENTS,795.00,Revenue,19/12/2014,Social Care & Inclusion
WC51-0915,CHARNAT CARE LIMITED,Third Party Payments,Private Contractor Fees,73373-RESIDENTIAL & NURSING CARE PLACEMENTS,795.00,Revenue,19/12/2014,Social Care & Inclusion
WC51-0916,CHARNAT CARE LIMITED,Third Party Payments,Private Contractor Fees,73373-RESIDENTIAL & NURSING CARE PLACEMENTS,795.00,Revenue,19/12/2014,Social Care & Inclusion
WC51-0917,CHARNAT CARE LIMITED,Third Party Payments,Private Contractor Fees,73373-RESIDENTIAL & NURSING CARE PLACEMENTS,795.00,Revenue,19/12/2014,Social Care & Inclusion
WC51-0918,CHARNAT CARE LIMITED,Third Party Payments,Private Contractor Fees,73373-RESIDENTIAL & NURSING CARE PLACEMENTS,795.00,Revenue,19/12/2014,Social Care & Inclusion
WC51-0919,CHARNAT CARE LIMITED,Third Party Payments,Private Contractor Fees,73373-RESIDENTIAL & NURSING CARE PLACEMENTS,795.00,Revenue,19/12/2014,Social Care & Inclusion
WC51-0920,CHARNAT CARE LIMITED,Third Party Payments,Private Contractor Fees,73373-RESIDENTIAL & NURSING CARE PLACEMENTS,795.00,Revenue,19/12/2014,Social Care & Inclusion
WC51-0921,CHARNAT CARE LIMITED,Third Party Payments,Private Contractor Fees,73373-RESIDENTIAL & NURSING CARE PLACEMENTS,795.00,Revenue,19/12/2014,Social Care & Inclusion
WC51-0922,CHARNAT CARE LIMITED,Third Party Payments,Private Contractor Fees,73373-RESIDENTIAL & NURSING CARE PLACEMENTS,795.00,Revenue,19/12/2014,Social Care & Inclusion
WC51-0923,CHARNAT CARE LIMITED,Third Party Payments,Private Contractor Fees,73373-RESIDENTIAL & NURSING CARE PLACEMENTS,795.00,Revenue,19/12/2014,Social Care & Inclusion
WC51-0924,CHARNAT CARE LIMITED,Third Party Payments,Private Contractor Fees,73373-RESIDENTIAL & NURSING CARE PLACEMENTS,795.00,Revenue,19/12/2014,Social Care & Inclusion
WC51-0925,CHARNAT CARE LIMITED,Third Party Payments,Private Contractor Fees,73373-RESIDENTIAL & NURSING CARE PLACEMENTS,795.00,Revenue,19/12/2014,Social Care & Inclusion
WC51-0926,CHARNAT CARE LIMITED,Third Party Payments,Private Contractor Fees,73373-RESIDENTIAL & NURSING CARE PLACEMENTS,795.00,Revenue,19/12/2014,Social Care & Inclusion
WC51-0927,CHARTER CARE,Third Party Payments,Private Contractor Fees,73372-DOMICILIARY CARE,"36,643.66",Revenue,18/12/2014,Social Care & Inclusion
WC51-0928,CHASEVIEW CARE HOME,Third Party Payments,Private Contractor Fees,73373-RESIDENTIAL & NURSING CARE PLACEMENTS,"1,654.07",Revenue,19/12/2014,Social Care & Inclusion
WC51-0929,CHERISH HOME CARE,Third Party Payments,Private Contractor Fees,73372-DOMICILIARY CARE,297.08,Revenue,09/12/2014,Social Care & Inclusion
WC51-0930,CHERISH HOME CARE,Third Party Payments,Private Contractor Fees,73372-DOMICILIARY CARE,297.08,Revenue,09/12/2014,Social Care & Inclusion
WC51-0931,CHERISH HOME CARE,Third Party Payments,Private Contractor Fees,73372-DOMICILIARY CARE,307.69,Revenue,09/12/2014,Social Care & Inclusion
WC51-0932,CHERISH HOME CARE,Third Party Payments,Private Contractor Fees,73372-DOMICILIARY CARE,684.84,Revenue,08/12/2014,Social Care & Inclusion
WC51-0933,CHERISH HOME CARE,Third Party Payments,Private Contractor Fees,73372-DOMICILIARY CARE,732.22,Revenue,09/12/2014,Social Care & Inclusion
WC51-0934,CHERISH HOME CARE,Third Party Payments,Private Contractor Fees,73372-DOMICILIARY CARE,944.98,Revenue,08/12/2014,Social Care & Inclusion
WC51-0935,CHERISH HOME CARE,Third Party Payments,Private Contractor Fees,73372-DOMICILIARY CARE,"1,037.30",Revenue,09/12/2014,Social Care & Inclusion
WC51-0936,CHERISH HOME CARE,Third Party Payments,Private Contractor Fees,73372-DOMICILIARY CARE,"1,337.84",Revenue,08/12/2014,Social Care & Inclusion
WC51-0937,CHERISH HOME CARE,Third Party Payments,Private Contractor Fees,73372-DOMICILIARY CARE,"1,846.48",Revenue,09/12/2014,Social Care & Inclusion
WC51-0938,REDACTED,Transfer Payments,Transfer Payments,76422-DIRECT PAYMENTS TO SOCIAL SERVICES CLIENTS,"2,002.00",Revenue,08/12/2014,Social Care & Inclusion
WC51-0939,CHG-MERIDIAN COMPUTER LEASING UK LTD,Supplies & Services,"Equip,Furniture & Materials",60009-LEASING/HIRE/RENTAL-EQUIPMENT,344.30,Revenue,02/12/2014,Childrens
WC51-0940,CHILDCARE BUREAU LTD,Third Party Payments,Private Contractor Fees,74037-INDEPENDENT FOSTER CARE-OTH AGENCY PROVISION,"3,733.52",Revenue,16/12/2014,Childrens
WC51-0941,CHILDCARE BUREAU LTD,Third Party Payments,Private Contractor Fees,74037-INDEPENDENT FOSTER CARE-OTH AGENCY PROVISION,"6,691.95",Revenue,16/12/2014,Childrens
WC51-0942,CHILDLINK,Transfer Payments,Transfer Payments,76408-OUTINGS-ALLOWANCES TO S/S CLIENTS,0.48,Revenue,01/12/2014,Childrens
WC51-0943,CHILDLINK,Transfer Payments,Transfer Payments,76408-OUTINGS-ALLOWANCES TO S/S CLIENTS,0.48,Revenue,09/12/2014,Childrens
WC51-0944,CHILDLINK,Transfer Payments,Transfer Payments,76408-OUTINGS-ALLOWANCES TO S/S CLIENTS,0.48,Revenue,15/12/2014,Childrens
WC51-0945,CHILDLINK,Transfer Payments,Transfer Payments,76408-OUTINGS-ALLOWANCES TO S/S CLIENTS,0.48,Revenue,19/12/2014,Childrens
WC51-0946,CHILDLINK,Transfer Payments,Transfer Payments,76408-OUTINGS-ALLOWANCES TO S/S CLIENTS,0.50,Revenue,01/12/2014,Childrens
WC51-0947,CHILDLINK,Transfer Payments,Transfer Payments,76408-OUTINGS-ALLOWANCES TO S/S CLIENTS,0.50,Revenue,01/12/2014,Childrens
WC51-0948,CHILDLINK,Supplies & Services,Other Supplies & Services,63128-HIRE OF ROOM-SERVICES-FEES,0.79,Revenue,08/12/2014,Childrens
WC51-0949,CHILDLINK,Supplies & Services,Other Supplies & Services,63128-HIRE OF ROOM-SERVICES-FEES,0.79,Revenue,19/12/2014,Childrens
WC51-0950,CHILDLINK,Supplies & Services,Other Supplies & Services,63128-HIRE OF ROOM-SERVICES-FEES,3.08,Revenue,09/12/2014,Childrens
WC51-0951,CHILDLINK,Supplies & Services,Other Supplies & Services,63128-HIRE OF ROOM-SERVICES-FEES,3.34,Revenue,19/12/2014,Childrens
WC51-0952,CHILDLINK,Supplies & Services,Other Supplies & Services,63128-HIRE OF ROOM-SERVICES-FEES,3.52,Revenue,15/12/2014,Childrens
WC51-0953,CHILDLINK,Supplies & Services,Other Supplies & Services,63128-HIRE OF ROOM-SERVICES-FEES,4.29,Revenue,01/12/2014,Childrens
WC51-0954,CHILDLINK,Supplies & Services,Other Supplies & Services,63128-HIRE OF ROOM-SERVICES-FEES,11.63,Revenue,01/12/2014,Childrens
WC51-0955,CHILDLINK,Supplies & Services,Other Supplies & Services,63128-HIRE OF ROOM-SERVICES-FEES,15.60,Revenue,08/12/2014,Childrens
WC51-0956,CHILDLINK,Supplies & Services,Other Supplies & Services,63128-HIRE OF ROOM-SERVICES-FEES,17.08,Revenue,01/12/2014,Childrens
WC51-0957,CHILDLINK,Supplies & Services,Other Supplies & Services,63128-HIRE OF ROOM-SERVICES-FEES,17.36,Revenue,08/12/2014,Childrens
WC51-0958,CHILDLINK,Supplies & Services,Other Supplies & Services,63128-HIRE OF ROOM-SERVICES-FEES,17.36,Revenue,15/12/2014,Childrens
WC51-0959,CHILDLINK,Supplies & Services,Other Supplies & Services,63128-HIRE OF ROOM-SERVICES-FEES,17.36,Revenue,19/12/2014,Childrens
WC51-0960,CHILDLINK,Supplies & Services,Other Supplies & Services,63128-HIRE OF ROOM-SERVICES-FEES,19.72,Revenue,09/12/2014,Childrens
WC51-0961,CHILDLINK,Supplies & Services,Other Supplies & Services,63128-HIRE OF ROOM-SERVICES-FEES,19.76,Revenue,01/12/2014,Childrens
WC51-0962,CHILDLINK,Supplies & Services,Other Supplies & Services,63128-HIRE OF ROOM-SERVICES-FEES,20.69,Revenue,15/12/2014,Childrens
WC51-0963,CHILDLINK,Supplies & Services,Other Supplies & Services,63128-HIRE OF ROOM-SERVICES-FEES,21.05,Revenue,19/12/2014,Childrens
WC51-0964,CHILDLINK,Supplies & Services,Other Supplies & Services,63128-HIRE OF ROOM-SERVICES-FEES,23.72,Revenue,09/12/2014,Childrens
WC51-0965,CHILDLINK,Supplies & Services,Other Supplies & Services,63128-HIRE OF ROOM-SERVICES-FEES,24.27,Revenue,15/12/2014,Childrens
WC51-0966,CHILDLINK,Supplies & Services,Other Supplies & Services,63128-HIRE OF ROOM-SERVICES-FEES,24.27,Revenue,19/12/2014,Childrens
WC51-0967,CHILDLINK,Transport,Car Allowances,53001-OTHER/VOLUNTEERS-CAR ALLOWANCES,25.51,Revenue,15/12/2014,Childrens
WC51-0968,CHILDLINK,Transport,Car Allowances,53001-OTHER/VOLUNTEERS-CAR ALLOWANCES,25.74,Revenue,19/12/2014,Childrens
WC51-0969,CHILDLINK,Transport,Car Allowances,53001-OTHER/VOLUNTEERS-CAR ALLOWANCES,25.97,Revenue,01/12/2014,Childrens
WC51-0970,CHILDLINK,Transport,Car Allowances,53001-OTHER/VOLUNTEERS-CAR ALLOWANCES,25.97,Revenue,08/12/2014,Childrens
WC51-0971,CHILDLINK,Supplies & Services,Other Supplies & Services,63128-HIRE OF ROOM-SERVICES-FEES,28.32,Revenue,15/12/2014,Childrens
WC51-0972,CHILDLINK,Supplies & Services,Other Supplies & Services,63128-HIRE OF ROOM-SERVICES-FEES,28.32,Revenue,19/12/2014,Childrens
WC51-0973,CHILDLINK,Transport,Car Allowances,53001-OTHER/VOLUNTEERS-CAR ALLOWANCES,28.35,Revenue,15/12/2014,Childrens
WC51-0974,CHILDLINK,Transport,Car Allowances,53001-OTHER/VOLUNTEERS-CAR ALLOWANCES,28.35,Revenue,19/12/2014,Childrens
WC51-0975,CHILDLINK,Transport,Car Allowances,53001-OTHER/VOLUNTEERS-CAR ALLOWANCES,28.90,Revenue,09/12/2014,Childrens
WC51-0976,CHILDLINK,Supplies & Services,Other Supplies & Services,63128-HIRE OF ROOM-SERVICES-FEES,31.22,Revenue,19/12/2014,Childrens
WC51-0977,CHILDLINK,Transport,Car Allowances,53001-OTHER/VOLUNTEERS-CAR ALLOWANCES,31.35,Revenue,19/12/2014,Childrens
WC51-0978,CHILDLINK,Supplies & Services,Other Supplies & Services,63128-HIRE OF ROOM-SERVICES-FEES,31.90,Revenue,01/12/2014,Childrens
WC51-0979,CHILDLINK,Transport,Car Allowances,53001-OTHER/VOLUNTEERS-CAR ALLOWANCES,32.29,Revenue,15/12/2014,Childrens
WC51-0980,CHILDLINK,Transport,Car Allowances,53001-OTHER/VOLUNTEERS-CAR ALLOWANCES,32.29,Revenue,19/12/2014,Childrens
WC51-0981,CHILDLINK,Transport,Car Allowances,53001-OTHER/VOLUNTEERS-CAR ALLOWANCES,33.06,Revenue,01/12/2014,Childrens
WC51-0982,CHILDLINK,Supplies & Services,Other Supplies & Services,63128-HIRE OF ROOM-SERVICES-FEES,33.83,Revenue,09/12/2014,Childrens
WC51-0983,CHILDLINK,Supplies & Services,Other Supplies & Services,63128-HIRE OF ROOM-SERVICES-FEES,34.52,Revenue,15/12/2014,Childrens
WC51-0984,CHILDLINK,Transport,Car Allowances,53001-OTHER/VOLUNTEERS-CAR ALLOWANCES,36.37,Revenue,01/12/2014,Childrens
WC51-0985,CHILDLINK,Transport,Car Allowances,53003-OTHER-TRAVEL ALLOWANCES,41.47,Revenue,01/12/2014,Childrens
WC51-0986,CHILDLINK,Transport,Car Allowances,53001-OTHER/VOLUNTEERS-CAR ALLOWANCES,43.26,Revenue,01/12/2014,Childrens
WC51-0987,CHILDLINK,Transport,Car Allowances,53001-OTHER/VOLUNTEERS-CAR ALLOWANCES,43.97,Revenue,08/12/2014,Childrens
WC51-0988,CHILDLINK,Transport,Car Allowances,53001-OTHER/VOLUNTEERS-CAR ALLOWANCES,43.97,Revenue,15/12/2014,Childrens
WC51-0989,CHILDLINK,Transport,Car Allowances,53001-OTHER/VOLUNTEERS-CAR ALLOWANCES,43.97,Revenue,19/12/2014,Childrens
WC51-0990,CHILDLINK,Supplies & Services,Other Supplies & Services,63128-HIRE OF ROOM-SERVICES-FEES,44.75,Revenue,01/12/2014,Childrens
WC51-0991,CHILDLINK,Transport,Car Allowances,53001-OTHER/VOLUNTEERS-CAR ALLOWANCES,46.82,Revenue,19/12/2014,Childrens
WC51-0992,CHILDLINK,Transport,Car Allowances,53003-OTHER-TRAVEL ALLOWANCES,48.48,Revenue,01/12/2014,Childrens
WC51-0993,CHILDLINK,Transport,Car Allowances,53003-OTHER-TRAVEL ALLOWANCES,48.83,Revenue,08/12/2014,Childrens
WC51-0994,CHILDLINK,Transport,Car Allowances,53003-OTHER-TRAVEL ALLOWANCES,50.02,Revenue,19/12/2014,Childrens
WC51-0995,CHILDLINK,Transport,Car Allowances,53001-OTHER/VOLUNTEERS-CAR ALLOWANCES,50.74,Revenue,09/12/2014,Childrens
WC51-0996,CHILDLINK,Transport,Car Allowances,53003-OTHER-TRAVEL ALLOWANCES,51.32,Revenue,01/12/2014,Childrens
WC51-0997,CHILDLINK,Transport,Car Allowances,53003-OTHER-TRAVEL ALLOWANCES,51.66,Revenue,01/12/2014,Childrens
WC51-0998,CHILDLINK,Transport,Car Allowances,53001-OTHER/VOLUNTEERS-CAR ALLOWANCES,51.78,Revenue,15/12/2014,Childrens
WC51-0999,CHILDLINK,Third Party Payments,Private Contractor Fees,76003-SECTION 34 (CONTACT),53.58,Revenue,15/12/2014,Childrens
WC51-1000,CHILDLINK,Third Party Payments,Private Contractor Fees,76003-SECTION 34 (CONTACT),53.58,Revenue,19/12/2014,Childrens
WC51-1001,CHILDLINK,Transport,Car Allowances,53003-OTHER-TRAVEL ALLOWANCES,54.03,Revenue,01/12/2014,Childrens
WC51-1002,CHILDLINK,Transport,Car Allowances,53001-OTHER/VOLUNTEERS-CAR ALLOWANCES,61.25,Revenue,01/12/2014,Childrens
WC51-1003,CHILDLINK,Transport,Car Allowances,53001-OTHER/VOLUNTEERS-CAR ALLOWANCES,61.33,Revenue,09/12/2014,Childrens
WC51-1004,CHILDLINK,Transport,Car Allowances,53003-OTHER-TRAVEL ALLOWANCES,64.21,Revenue,01/12/2014,Childrens
WC51-1005,CHILDLINK,Transport,Car Allowances,53001-OTHER/VOLUNTEERS-CAR ALLOWANCES,67.13,Revenue,01/12/2014,Childrens
WC51-1006,CHILDLINK,Transport,Car Allowances,53003-OTHER-TRAVEL ALLOWANCES,68.44,Revenue,15/12/2014,Childrens
WC51-1007,CHILDLINK,Transport,Car Allowances,53003-OTHER-TRAVEL ALLOWANCES,68.44,Revenue,19/12/2014,Childrens
WC51-1008,CHILDLINK,Transport,Car Allowances,53001-OTHER/VOLUNTEERS-CAR ALLOWANCES,69.54,Revenue,01/12/2014,Childrens
WC51-1009,CHILDLINK,Transport,Car Allowances,53003-OTHER-TRAVEL ALLOWANCES,70.84,Revenue,09/12/2014,Childrens
WC51-1010,CHILDLINK,Transport,Car Allowances,53001-OTHER/VOLUNTEERS-CAR ALLOWANCES,72.11,Revenue,01/12/2014,Childrens
WC51-1011,CHILDLINK,Transport,Car Allowances,53003-OTHER-TRAVEL ALLOWANCES,73.02,Revenue,09/12/2014,Childrens
WC51-1012,CHILDLINK,Transport,Car Allowances,53001-OTHER/VOLUNTEERS-CAR ALLOWANCES,73.13,Revenue,09/12/2014,Childrens
WC51-1013,CHILDLINK,Transport,Car Allowances,53003-OTHER-TRAVEL ALLOWANCES,76.83,Revenue,19/12/2014,Childrens
WC51-1014,CHILDLINK,Transport,Car Allowances,53003-OTHER-TRAVEL ALLOWANCES,77.10,Revenue,09/12/2014,Childrens
WC51-1015,CHILDLINK,Transport,Car Allowances,53003-OTHER-TRAVEL ALLOWANCES,77.14,Revenue,15/12/2014,Childrens
WC51-1016,CHILDLINK,Transport,Car Allowances,53003-OTHER-TRAVEL ALLOWANCES,78.87,Revenue,15/12/2014,Childrens
WC51-1017,CHILDLINK,Transport,Car Allowances,53003-OTHER-TRAVEL ALLOWANCES,78.87,Revenue,19/12/2014,Childrens
WC51-1018,CHILDLINK,Transport,Car Allowances,53001-OTHER/VOLUNTEERS-CAR ALLOWANCES,79.31,Revenue,19/12/2014,Childrens
WC51-1019,CHILDLINK,Transport,Car Allowances,53001-OTHER/VOLUNTEERS-CAR ALLOWANCES,79.90,Revenue,19/12/2014,Childrens
WC51-1020,CHILDLINK,Transport,Car Allowances,53003-OTHER-TRAVEL ALLOWANCES,80.17,Revenue,15/12/2014,Childrens
WC51-1021,CHILDLINK,Transport,Car Allowances,53001-OTHER/VOLUNTEERS-CAR ALLOWANCES,80.41,Revenue,08/12/2014,Childrens
WC51-1022,CHILDLINK,Transport,Car Allowances,53001-OTHER/VOLUNTEERS-CAR ALLOWANCES,80.66,Revenue,08/12/2014,Childrens
WC51-1023,CHILDLINK,Transport,Car Allowances,53001-OTHER/VOLUNTEERS-CAR ALLOWANCES,80.90,Revenue,15/12/2014,Childrens
WC51-1024,CHILDLINK,Transport,Car Allowances,53001-OTHER/VOLUNTEERS-CAR ALLOWANCES,80.90,Revenue,19/12/2014,Childrens
WC51-1025,CHILDLINK,Transport,Car Allowances,53003-OTHER-TRAVEL ALLOWANCES,81.02,Revenue,15/12/2014,Childrens
WC51-1026,CHILDLINK,Transport,Car Allowances,53003-OTHER-TRAVEL ALLOWANCES,82.90,Revenue,15/12/2014,Childrens
WC51-1027,CHILDLINK,Transport,Car Allowances,53003-OTHER-TRAVEL ALLOWANCES,83.15,Revenue,22/12/2014,Childrens
WC51-1028,CHILDLINK,Transport,Car Allowances,53001-OTHER/VOLUNTEERS-CAR ALLOWANCES,83.64,Revenue,15/12/2014,Childrens
WC51-1029,CHILDLINK,Transport,Car Allowances,53003-OTHER-TRAVEL ALLOWANCES,83.64,Revenue,19/12/2014,Childrens
WC51-1030,CHILDLINK,Transport,Car Allowances,53003-OTHER-TRAVEL ALLOWANCES,84.41,Revenue,01/12/2014,Childrens
WC51-1031,CHILDLINK,Transport,Car Allowances,53003-OTHER-TRAVEL ALLOWANCES,84.41,Revenue,08/12/2014,Childrens
WC51-1032,CHILDLINK,Transport,Car Allowances,53003-OTHER-TRAVEL ALLOWANCES,84.92,Revenue,19/12/2014,Childrens
WC51-1033,CHILDLINK,Transport,Car Allowances,53003-OTHER-TRAVEL ALLOWANCES,85.72,Revenue,08/12/2014,Childrens
WC51-1034,CHILDLINK,Transport,Car Allowances,53001-OTHER/VOLUNTEERS-CAR ALLOWANCES,86.59,Revenue,09/12/2014,Childrens
WC51-1035,CHILDLINK,Third Party Payments,Private Contractor Fees,76003-SECTION 34 (CONTACT),87.44,Revenue,01/12/2014,Childrens
WC51-1036,CHILDLINK,Transport,Car Allowances,53001-OTHER/VOLUNTEERS-CAR ALLOWANCES,87.99,Revenue,01/12/2014,Childrens
WC51-1037,CHILDLINK,Transport,Car Allowances,53001-OTHER/VOLUNTEERS-CAR ALLOWANCES,88.58,Revenue,15/12/2014,Childrens
WC51-1038,CHILDLINK,Transport,Car Allowances,53001-OTHER/VOLUNTEERS-CAR ALLOWANCES,88.58,Revenue,19/12/2014,Childrens
WC51-1039,CHILDLINK,Third Party Payments,Private Contractor Fees,76003-SECTION 34 (CONTACT),88.69,Revenue,19/12/2014,Childrens
WC51-1040,CHILDLINK,Third Party Payments,Private Contractor Fees,76003-SECTION 34 (CONTACT),88.99,Revenue,09/12/2014,Childrens
WC51-1041,CHILDLINK,Transport,Car Allowances,53003-OTHER-TRAVEL ALLOWANCES,89.47,Revenue,08/12/2014,Childrens
WC51-1042,CHILDLINK,Third Party Payments,Private Contractor Fees,76003-SECTION 34 (CONTACT),89.53,Revenue,08/12/2014,Childrens
WC51-1043,CHILDLINK,Transport,Car Allowances,53003-OTHER-TRAVEL ALLOWANCES,90.02,Revenue,15/12/2014,Childrens
WC51-1044,CHILDLINK,Transport,Car Allowances,53003-OTHER-TRAVEL ALLOWANCES,90.02,Revenue,19/12/2014,Childrens
WC51-1045,CHILDLINK,Third Party Payments,Private Contractor Fees,76003-SECTION 34 (CONTACT),93.81,Revenue,01/12/2014,Childrens
WC51-1046,CHILDLINK,Third Party Payments,Private Contractor Fees,76003-SECTION 34 (CONTACT),93.81,Revenue,08/12/2014,Childrens
WC51-1047,CHILDLINK,Transport,Car Allowances,53001-OTHER/VOLUNTEERS-CAR ALLOWANCES,94.07,Revenue,01/12/2014,Childrens
WC51-1048,CHILDLINK,Transport,Car Allowances,53001-OTHER/VOLUNTEERS-CAR ALLOWANCES,94.81,Revenue,01/12/2014,Childrens
WC51-1049,CHILDLINK,Transport,Car Allowances,53001-OTHER/VOLUNTEERS-CAR ALLOWANCES,95.49,Revenue,08/12/2014,Childrens
WC51-1050,CHILDLINK,Transport,Car Allowances,53001-OTHER/VOLUNTEERS-CAR ALLOWANCES,97.80,Revenue,19/12/2014,Childrens
WC51-1051,CHILDLINK,Transport,Car Allowances,53003-OTHER-TRAVEL ALLOWANCES,101.45,Revenue,19/12/2014,Childrens
WC51-1052,CHILDLINK,Transport,Car Allowances,53003-OTHER-TRAVEL ALLOWANCES,104.68,Revenue,01/12/2014,Childrens
WC51-1053,CHILDLINK,Transport,Car Allowances,53003-OTHER-TRAVEL ALLOWANCES,107.62,Revenue,01/12/2014,Childrens
WC51-1054,CHILDLINK,Transport,Car Allowances,53001-OTHER/VOLUNTEERS-CAR ALLOWANCES,108.09,Revenue,01/12/2014,Childrens
WC51-1055,CHILDLINK,Transport,Car Allowances,53003-OTHER-TRAVEL ALLOWANCES,109.94,Revenue,09/12/2014,Childrens
WC51-1056,CHILDLINK,Transport,Car Allowances,53003-OTHER-TRAVEL ALLOWANCES,112.20,Revenue,15/12/2014,Childrens
WC51-1057,CHILDLINK,Third Party Payments,Private Contractor Fees,76003-SECTION 34 (CONTACT),114.25,Revenue,09/12/2014,Childrens
WC51-1058,CHILDLINK,Transport,Car Allowances,53003-OTHER-TRAVEL ALLOWANCES,115.39,Revenue,01/12/2014,Childrens
WC51-1059,CHILDLINK,Transport,Car Allowances,53003-OTHER-TRAVEL ALLOWANCES,118.17,Revenue,19/12/2014,Childrens
WC51-1060,CHILDLINK,Third Party Payments,Private Contractor Fees,76003-SECTION 34 (CONTACT),118.18,Revenue,19/12/2014,Childrens
WC51-1061,CHILDLINK,Transport,Car Allowances,53003-OTHER-TRAVEL ALLOWANCES,120.28,Revenue,01/12/2014,Childrens
WC51-1062,CHILDLINK,Third Party Payments,Private Contractor Fees,76003-SECTION 34 (CONTACT),123.87,Revenue,01/12/2014,Childrens
WC51-1063,CHILDLINK,Third Party Payments,Private Contractor Fees,76003-SECTION 34 (CONTACT),125.44,Revenue,15/12/2014,Childrens
WC51-1064,CHILDLINK,Third Party Payments,Private Contractor Fees,76003-SECTION 34 (CONTACT),130.10,Revenue,22/12/2014,Childrens
WC51-1065,CHILDLINK,Transport,Car Allowances,53001-OTHER/VOLUNTEERS-CAR ALLOWANCES,131.23,Revenue,09/12/2014,Childrens
WC51-1066,CHILDLINK,Third Party Payments,Private Contractor Fees,76003-SECTION 34 (CONTACT),134.05,Revenue,15/12/2014,Childrens
WC51-1067,CHILDLINK,Third Party Payments,Private Contractor Fees,76003-SECTION 34 (CONTACT),134.05,Revenue,19/12/2014,Childrens
WC51-1068,CHILDLINK,Third Party Payments,Private Contractor Fees,76003-SECTION 34 (CONTACT),135.93,Revenue,01/12/2014,Childrens
WC51-1069,CHILDLINK,Transport,Car Allowances,53001-OTHER/VOLUNTEERS-CAR ALLOWANCES,136.66,Revenue,01/12/2014,Childrens
WC51-1070,CHILDLINK,Transport,Car Allowances,53003-OTHER-TRAVEL ALLOWANCES,139.67,Revenue,01/12/2014,Childrens
WC51-1071,CHILDLINK,Transport,Car Allowances,53003-OTHER-TRAVEL ALLOWANCES,142.38,Revenue,09/12/2014,Childrens
WC51-1072,CHILDLINK,Transport,Car Allowances,53001-OTHER/VOLUNTEERS-CAR ALLOWANCES,144.09,Revenue,15/12/2014,Childrens
WC51-1073,CHILDLINK,Transport,Car Allowances,53003-OTHER-TRAVEL ALLOWANCES,145.44,Revenue,01/12/2014,Childrens
WC51-1074,CHILDLINK,Transport,Car Allowances,53001-OTHER/VOLUNTEERS-CAR ALLOWANCES,149.45,Revenue,22/12/2014,Childrens
WC51-1075,CHILDLINK,Transport,Car Allowances,53001-OTHER/VOLUNTEERS-CAR ALLOWANCES,150.83,Revenue,15/12/2014,Childrens
WC51-1076,CHILDLINK,Third Party Payments,Private Contractor Fees,76003-SECTION 34 (CONTACT),150.96,Revenue,01/12/2014,Childrens
WC51-1077,CHILDLINK,Third Party Payments,Private Contractor Fees,76003-SECTION 34 (CONTACT),152.59,Revenue,01/12/2014,Childrens
WC51-1078,CHILDLINK,Third Party Payments,Private Contractor Fees,76003-SECTION 34 (CONTACT),153.95,Revenue,01/12/2014,Childrens
WC51-1079,CHILDLINK,Third Party Payments,Private Contractor Fees,76003-SECTION 34 (CONTACT),154.99,Revenue,01/12/2014,Childrens
WC51-1080,CHILDLINK,Transport,Car Allowances,53001-OTHER/VOLUNTEERS-CAR ALLOWANCES,157.01,Revenue,08/12/2014,Childrens
WC51-1081,CHILDLINK,Transport,Car Allowances,53001-OTHER/VOLUNTEERS-CAR ALLOWANCES,161.49,Revenue,01/12/2014,Childrens
WC51-1082,CHILDLINK,Transport,Car Allowances,53001-OTHER/VOLUNTEERS-CAR ALLOWANCES,161.49,Revenue,08/12/2014,Childrens
WC51-1083,CHILDLINK,Transport,Car Allowances,53001-OTHER/VOLUNTEERS-CAR ALLOWANCES,161.94,Revenue,15/12/2014,Childrens
WC51-1084,CHILDLINK,Transport,Car Allowances,53001-OTHER/VOLUNTEERS-CAR ALLOWANCES,161.94,Revenue,19/12/2014,Childrens
WC51-1085,CHILDLINK,Third Party Payments,Private Contractor Fees,76003-SECTION 34 (CONTACT),162.08,Revenue,01/12/2014,Childrens
WC51-1086,CHILDLINK,Transport,Car Allowances,53003-OTHER-TRAVEL ALLOWANCES,166.48,Revenue,01/12/2014,Childrens
WC51-1087,CHILDLINK,Third Party Payments,Private Contractor Fees,76003-SECTION 34 (CONTACT),166.48,Revenue,01/12/2014,Childrens
WC51-1088,CHILDLINK,Transport,Car Allowances,53001-OTHER/VOLUNTEERS-CAR ALLOWANCES,168.35,Revenue,01/12/2014,Childrens
WC51-1089,CHILDLINK,Transport,Car Allowances,53003-OTHER-TRAVEL ALLOWANCES,169.23,Revenue,08/12/2014,Childrens
WC51-1090,CHILDLINK,Transport,Car Allowances,53003-OTHER-TRAVEL ALLOWANCES,169.23,Revenue,15/12/2014,Childrens
WC51-1091,CHILDLINK,Transport,Car Allowances,53003-OTHER-TRAVEL ALLOWANCES,169.23,Revenue,19/12/2014,Childrens
WC51-1092,CHILDLINK,Third Party Payments,Private Contractor Fees,76003-SECTION 34 (CONTACT),169.24,Revenue,08/12/2014,Childrens
WC51-1093,CHILDLINK,Third Party Payments,Private Contractor Fees,76003-SECTION 34 (CONTACT),169.24,Revenue,15/12/2014,Childrens
WC51-1094,CHILDLINK,Third Party Payments,Private Contractor Fees,76003-SECTION 34 (CONTACT),169.24,Revenue,19/12/2014,Childrens
WC51-1095,CHILDLINK,Transport,Car Allowances,53003-OTHER-TRAVEL ALLOWANCES,172.06,Revenue,01/12/2014,Childrens
WC51-1096,CHILDLINK,Transport,Car Allowances,53001-OTHER/VOLUNTEERS-CAR ALLOWANCES,176.83,Revenue,01/12/2014,Childrens
WC51-1097,CHILDLINK,Transport,Car Allowances,53003-OTHER-TRAVEL ALLOWANCES,177.71,Revenue,01/12/2014,Childrens
WC51-1098,CHILDLINK,Transport,Car Allowances,53001-OTHER/VOLUNTEERS-CAR ALLOWANCES,178.05,Revenue,01/12/2014,Childrens
WC51-1099,CHILDLINK,Transport,Car Allowances,53001-OTHER/VOLUNTEERS-CAR ALLOWANCES,186.19,Revenue,01/12/2014,Childrens
WC51-1100,CHILDLINK,Third Party Payments,Private Contractor Fees,76003-SECTION 34 (CONTACT),189.41,Revenue,01/12/2014,Childrens
WC51-1101,CHILDLINK,Third Party Payments,Private Contractor Fees,76003-SECTION 34 (CONTACT),190.78,Revenue,08/12/2014,Childrens
WC51-1102,CHILDLINK,Third Party Payments,Private Contractor Fees,76003-SECTION 34 (CONTACT),195.38,Revenue,19/12/2014,Childrens
WC51-1103,CHILDLINK,Transport,Car Allowances,53001-OTHER/VOLUNTEERS-CAR ALLOWANCES,197.71,Revenue,19/12/2014,Childrens
WC51-1104,CHILDLINK,Transport,Car Allowances,53001-OTHER/VOLUNTEERS-CAR ALLOWANCES,198.49,Revenue,09/12/2014,Childrens
WC51-1105,CHILDLINK,Third Party Payments,Private Contractor Fees,76003-SECTION 34 (CONTACT),198.76,Revenue,15/12/2014,Childrens
WC51-1106,CHILDLINK,Third Party Payments,Private Contractor Fees,76003-SECTION 34 (CONTACT),198.76,Revenue,19/12/2014,Childrens
WC51-1107,CHILDLINK,Third Party Payments,Private Contractor Fees,76003-SECTION 34 (CONTACT),202.64,Revenue,09/12/2014,Childrens
WC51-1108,CHILDLINK,Third Party Payments,Private Contractor Fees,76003-SECTION 34 (CONTACT),202.91,Revenue,19/12/2014,Childrens
WC51-1109,CHILDLINK,Transport,Car Allowances,53001-OTHER/VOLUNTEERS-CAR ALLOWANCES,208.26,Revenue,15/12/2014,Childrens
WC51-1110,CHILDLINK,Third Party Payments,Private Contractor Fees,76003-SECTION 34 (CONTACT),209.04,Revenue,19/12/2014,Childrens
WC51-1111,CHILDLINK,Transport,Car Allowances,53003-OTHER-TRAVEL ALLOWANCES,209.70,Revenue,19/12/2014,Childrens
WC51-1112,CHILDLINK,Transport,Car Allowances,53001-OTHER/VOLUNTEERS-CAR ALLOWANCES,211.85,Revenue,19/12/2014,Childrens
WC51-1113,CHILDLINK,Third Party Payments,Private Contractor Fees,76003-SECTION 34 (CONTACT),212.69,Revenue,01/12/2014,Childrens
WC51-1114,CHILDLINK,Third Party Payments,Private Contractor Fees,76003-SECTION 34 (CONTACT),219.89,Revenue,09/12/2014,Childrens
WC51-1115,CHILDLINK,Third Party Payments,Private Contractor Fees,76003-SECTION 34 (CONTACT),224.40,Revenue,15/12/2014,Childrens
WC51-1116,CHILDLINK,Transport,Car Allowances,53003-OTHER-TRAVEL ALLOWANCES,232.30,Revenue,01/12/2014,Childrens
WC51-1117,CHILDLINK,Transport,Car Allowances,53003-OTHER-TRAVEL ALLOWANCES,232.30,Revenue,08/12/2014,Childrens
WC51-1118,CHILDLINK,Third Party Payments,Private Contractor Fees,76003-SECTION 34 (CONTACT),248.69,Revenue,15/12/2014,Childrens
WC51-1119,CHILDLINK,Third Party Payments,Private Contractor Fees,76003-SECTION 34 (CONTACT),250.92,Revenue,19/12/2014,Childrens
WC51-1120,CHILDLINK,Third Party Payments,Private Contractor Fees,76003-SECTION 34 (CONTACT),253.22,Revenue,01/12/2014,Childrens
WC51-1121,CHILDLINK,Third Party Payments,Private Contractor Fees,76003-SECTION 34 (CONTACT),253.22,Revenue,08/12/2014,Childrens
WC51-1122,CHILDLINK,Transport,Car Allowances,53003-OTHER-TRAVEL ALLOWANCES,267.82,Revenue,01/12/2014,Childrens
WC51-1123,CHILDLINK,Transport,Car Allowances,53003-OTHER-TRAVEL ALLOWANCES,272.08,Revenue,15/12/2014,Childrens
WC51-1124,CHILDLINK,Transport,Car Allowances,53003-OTHER-TRAVEL ALLOWANCES,272.08,Revenue,19/12/2014,Childrens
WC51-1125,CHILDLINK,Transport,Car Allowances,53003-OTHER-TRAVEL ALLOWANCES,284.67,Revenue,08/12/2014,Childrens
WC51-1126,CHILDLINK,Third Party Payments,Private Contractor Fees,76003-SECTION 34 (CONTACT),290.88,Revenue,01/12/2014,Childrens
WC51-1127,CHILDLINK,Third Party Payments,Private Contractor Fees,76003-SECTION 34 (CONTACT),301.33,Revenue,15/12/2014,Childrens
WC51-1128,CHILDLINK,Third Party Payments,Private Contractor Fees,76003-SECTION 34 (CONTACT),314.52,Revenue,01/12/2014,Childrens
WC51-1129,CHILDLINK,Third Party Payments,Private Contractor Fees,76003-SECTION 34 (CONTACT),314.52,Revenue,09/12/2014,Childrens
WC51-1130,CHILDLINK,Third Party Payments,Private Contractor Fees,76003-SECTION 34 (CONTACT),314.52,Revenue,15/12/2014,Childrens
WC51-1131,CHILDLINK,Third Party Payments,Private Contractor Fees,76003-SECTION 34 (CONTACT),314.52,Revenue,19/12/2014,Childrens
WC51-1132,CHILDLINK,Third Party Payments,Private Contractor Fees,76003-SECTION 34 (CONTACT),329.50,Revenue,01/12/2014,Childrens
WC51-1133,CHILDLINK,Third Party Payments,Private Contractor Fees,76003-SECTION 34 (CONTACT),329.50,Revenue,01/12/2014,Childrens
WC51-1134,CHILDLINK,Third Party Payments,Private Contractor Fees,76003-SECTION 34 (CONTACT),350.32,Revenue,08/12/2014,Childrens
WC51-1135,CHILDLINK,Third Party Payments,Private Contractor Fees,76003-SECTION 34 (CONTACT),352.48,Revenue,15/12/2014,Childrens
WC51-1136,CHILDLINK,Third Party Payments,Private Contractor Fees,76003-SECTION 34 (CONTACT),352.48,Revenue,19/12/2014,Childrens
WC51-1137,CHILDLINK,Transport,Car Allowances,53003-OTHER-TRAVEL ALLOWANCES,359.87,Revenue,09/12/2014,Childrens
WC51-1138,CHILDLINK,Third Party Payments,Private Contractor Fees,76003-SECTION 34 (CONTACT),374.52,Revenue,01/12/2014,Childrens
WC51-1139,CHILDLINK,Transport,Car Allowances,53003-OTHER-TRAVEL ALLOWANCES,377.58,Revenue,15/12/2014,Childrens
WC51-1140,CHILDLINK,Third Party Payments,Private Contractor Fees,76003-SECTION 34 (CONTACT),378.15,Revenue,09/12/2014,Childrens
WC51-1141,CHILDLINK,Transport,Car Allowances,53003-OTHER-TRAVEL ALLOWANCES,384.09,Revenue,19/12/2014,Childrens
WC51-1142,CHILDLINK,Third Party Payments,Private Contractor Fees,76003-SECTION 34 (CONTACT),409.85,Revenue,01/12/2014,Childrens
WC51-1143,CHILDLINK,Third Party Payments,Private Contractor Fees,76003-SECTION 34 (CONTACT),410.12,Revenue,19/12/2014,Childrens
WC51-1144,CHILDLINK,Transport,Car Allowances,53003-OTHER-TRAVEL ALLOWANCES,428.49,Revenue,15/12/2014,Childrens
WC51-1145,CHILDLINK,Transport,Car Allowances,53003-OTHER-TRAVEL ALLOWANCES,428.49,Revenue,19/12/2014,Childrens
WC51-1146,CHILDLINK,Third Party Payments,Private Contractor Fees,76003-SECTION 34 (CONTACT),429.44,Revenue,01/12/2014,Childrens
WC51-1147,CHILDLINK,Third Party Payments,Private Contractor Fees,76003-SECTION 34 (CONTACT),430.32,Revenue,08/12/2014,Childrens
WC51-1148,CHILDLINK,Third Party Payments,Private Contractor Fees,76003-SECTION 34 (CONTACT),432.52,Revenue,15/12/2014,Childrens
WC51-1149,CHILDLINK,Transport,Car Allowances,53003-OTHER-TRAVEL ALLOWANCES,436.86,Revenue,09/12/2014,Childrens
WC51-1150,CHILDLINK,Third Party Payments,Private Contractor Fees,76003-SECTION 34 (CONTACT),449.79,Revenue,09/12/2014,Childrens
WC51-1151,CHILDLINK,Third Party Payments,Private Contractor Fees,76003-SECTION 34 (CONTACT),460.08,Revenue,15/12/2014,Childrens
WC51-1152,CHILDLINK,Third Party Payments,Private Contractor Fees,76003-SECTION 34 (CONTACT),460.08,Revenue,19/12/2014,Childrens
WC51-1153,CHILDLINK,Third Party Payments,Private Contractor Fees,76003-SECTION 34 (CONTACT),470.93,Revenue,01/12/2014,Childrens
WC51-1154,CHILDLINK,Third Party Payments,Private Contractor Fees,76003-SECTION 34 (CONTACT),544.02,Revenue,09/12/2014,Childrens
WC51-1155,CHILDLINK,Third Party Payments,Private Contractor Fees,76003-SECTION 34 (CONTACT),570.77,Revenue,15/12/2014,Childrens
WC51-1156,CHILDLINK,Third Party Payments,Private Contractor Fees,76003-SECTION 34 (CONTACT),580.61,Revenue,19/12/2014,Childrens
WC51-1157,CHILDRENS RESIDENTIAL SERVS,Transport,Car Allowances,53000-OFFICERS/STAFF-CAR ALLOWANCES,3.00,Revenue,03/12/2014,Childrens
WC51-1158,CHILDRENS RESIDENTIAL SERVS,Transport,Car Allowances,53000-OFFICERS/STAFF-CAR ALLOWANCES,3.00,Revenue,31/12/2014,Childrens
WC51-1159,CHILDRENS RESIDENTIAL SERVS,Premises,Cleaning & Caretaking,46000-EQUIP NEW-CLEANING,3.99,Revenue,08/12/2014,Childrens
WC51-1160,CHILDRENS RESIDENTIAL SERVS,Transport,Car Allowances,53000-OFFICERS/STAFF-CAR ALLOWANCES,4.58,Revenue,16/12/2014,Childrens
WC51-1161,CHILDRENS RESIDENTIAL SERVS,Supplies & Services,Services,63000-PROFESSIONAL FEES AND SERVICES,5.00,Revenue,03/12/2014,Childrens
WC51-1162,CHILDRENS RESIDENTIAL SERVS,Transport,Car Allowances,53000-OFFICERS/STAFF-CAR ALLOWANCES,5.25,Revenue,03/12/2014,Childrens
WC51-1163,CHILDRENS RESIDENTIAL SERVS,Supplies & Services,"Equip,Furniture & Materials",60000-FURNITURE & EQUIPMENT,5.49,Revenue,03/12/2014,Childrens
WC51-1164,CHILDRENS RESIDENTIAL SERVS,Supplies & Services,Provisions,61014-GENERAL PROVISIONS-PROVISIONS,6.50,Revenue,08/12/2014,Childrens
WC51-1165,CHILDRENS RESIDENTIAL SERVS,Transport,Car Allowances,53000-OFFICERS/STAFF-CAR ALLOWANCES,7.33,Revenue,03/12/2014,Childrens
WC51-1166,CHILDRENS RESIDENTIAL SERVS,Transport,Car Allowances,53000-OFFICERS/STAFF-CAR ALLOWANCES,7.92,Revenue,16/12/2014,Childrens
WC51-1167,CHILDRENS RESIDENTIAL SERVS,Transfer Payments,Transfer Payments,76408-OUTINGS-ALLOWANCES TO S/S CLIENTS,8.56,Revenue,16/12/2014,Childrens
WC51-1168,CHILDRENS RESIDENTIAL SERVS,Supplies & Services,Provisions,61014-GENERAL PROVISIONS-PROVISIONS,9.10,Revenue,19/12/2014,Childrens
WC51-1169,CHILDRENS RESIDENTIAL SERVS,Supplies & Services,"Equip,Furniture & Materials",60000-FURNITURE & EQUIPMENT,9.51,Revenue,19/12/2014,Childrens
WC51-1170,CHILDRENS RESIDENTIAL SERVS,Premises,Premises-Repairs & Maintenance,"40000-REPAIRS,ALTERATIONS & MAINTENANCE-PREM",10.00,Revenue,19/12/2014,Childrens
WC51-1171,CHILDRENS RESIDENTIAL SERVS,Supplies & Services,"Equip,Furniture & Materials",60000-FURNITURE & EQUIPMENT,10.00,Revenue,31/12/2014,Childrens
WC51-1172,CHILDRENS RESIDENTIAL SERVS,Transport,Car Allowances,53000-OFFICERS/STAFF-CAR ALLOWANCES,12.58,Revenue,31/12/2014,Childrens
WC51-1173,CHILDRENS RESIDENTIAL SERVS,Transport,Car Allowances,53000-OFFICERS/STAFF-CAR ALLOWANCES,13.33,Revenue,19/12/2014,Childrens
WC51-1174,CHILDRENS RESIDENTIAL SERVS,Transport,Car Allowances,53000-OFFICERS/STAFF-CAR ALLOWANCES,14.17,Revenue,19/12/2014,Childrens
WC51-1175,CHILDRENS RESIDENTIAL SERVS,Supplies & Services,Provisions,61014-GENERAL PROVISIONS-PROVISIONS,14.92,Revenue,19/12/2014,Childrens
WC51-1176,CHILDRENS RESIDENTIAL SERVS,Premises,Cleaning & Caretaking,46000-EQUIP NEW-CLEANING,15.00,Revenue,16/12/2014,Childrens
WC51-1177,CHILDRENS RESIDENTIAL SERVS,Supplies & Services,Other Supplies & Services,63120-CRECHE FACILITIES-SERVICES-FEES,16.74,Revenue,31/12/2014,Childrens
WC51-1178,CHILDRENS RESIDENTIAL SERVS,Supplies & Services,Provisions,61014-GENERAL PROVISIONS-PROVISIONS,17.97,Revenue,08/12/2014,Childrens
WC51-1179,CHILDRENS RESIDENTIAL SERVS,Supplies & Services,Provisions,61014-GENERAL PROVISIONS-PROVISIONS,19.19,Revenue,03/12/2014,Childrens
WC51-1180,CHILDRENS RESIDENTIAL SERVS,Transport,Car Allowances,53000-OFFICERS/STAFF-CAR ALLOWANCES,19.42,Revenue,08/12/2014,Childrens
WC51-1181,CHILDRENS RESIDENTIAL SERVS,Supplies & Services,"Equip,Furniture & Materials",60000-FURNITURE & EQUIPMENT,24.16,Revenue,19/12/2014,Childrens
WC51-1182,CHILDRENS RESIDENTIAL SERVS,Supplies & Services,Provisions,61014-GENERAL PROVISIONS-PROVISIONS,30.00,Revenue,16/12/2014,Childrens
WC51-1183,CHILDRENS RESIDENTIAL SERVS,Supplies & Services,Provisions,61014-GENERAL PROVISIONS-PROVISIONS,30.18,Revenue,19/12/2014,Childrens
WC51-1184,CHILDRENS RESIDENTIAL SERVS,Supplies & Services,Provisions,61014-GENERAL PROVISIONS-PROVISIONS,32.27,Revenue,31/12/2014,Childrens
WC51-1185,CHILDRENS RESIDENTIAL SERVS,Premises,Cleaning & Caretaking,46000-EQUIP NEW-CLEANING,38.09,Revenue,31/12/2014,Childrens
WC51-1186,CHILDRENS RESIDENTIAL SERVS,Supplies & Services,Provisions,61014-GENERAL PROVISIONS-PROVISIONS,56.00,Revenue,16/12/2014,Childrens
WC51-1187,CHILDRENS RESIDENTIAL SERVS,Supplies & Services,Provisions,61014-GENERAL PROVISIONS-PROVISIONS,62.81,Revenue,16/12/2014,Childrens
WC51-1188,CHILDRENS RESIDENTIAL SERVS,Supplies & Services,"Equip,Furniture & Materials",60000-FURNITURE & EQUIPMENT,69.48,Revenue,16/12/2014,Childrens
WC51-1189,CHILDRENS RESIDENTIAL SERVS,Third Party Payments,Private Contractor Fees,76002-SUPPORT UNDER SECTION 23 OF THE CHILDRENS ACT,72.50,Revenue,03/12/2014,Childrens
WC51-1190,CHILDRENS RESIDENTIAL SERVS,Transport,Car Allowances,53000-OFFICERS/STAFF-CAR ALLOWANCES,73.49,Revenue,08/12/2014,Childrens
WC51-1191,CHILDRENS RESIDENTIAL SERVS,Supplies & Services,Provisions,61014-GENERAL PROVISIONS-PROVISIONS,77.74,Revenue,03/12/2014,Childrens
WC51-1192,CHILDRENS RESIDENTIAL SERVS,Supplies & Services,Provisions,61014-GENERAL PROVISIONS-PROVISIONS,94.30,Revenue,31/12/2014,Childrens
WC51-1193,CHILDRENS RESIDENTIAL SERVS,Premises,Premises-Repairs & Maintenance,"40000-REPAIRS,ALTERATIONS & MAINTENANCE-PREM",102.52,Revenue,03/12/2014,Childrens
WC51-1194,CHILDRENS RESIDENTIAL SERVS,Supplies & Services,Provisions,61014-GENERAL PROVISIONS-PROVISIONS,103.19,Revenue,03/12/2014,Childrens
WC51-1195,CHILDRENS RESIDENTIAL SERVS,Transfer Payments,Transfer Payments,76400-RESIDENTS PERSONAL EXPENSES-ALLOWANCES TO S/S CLIENTS,108.69,Revenue,19/12/2014,Childrens
WC51-1196,CHILDRENS RESIDENTIAL SERVS,Third Party Payments,Private Contractor Fees,76002-SUPPORT UNDER SECTION 23 OF THE CHILDRENS ACT,138.00,Revenue,16/12/2014,Childrens
WC51-1197,CHILDRENS RESIDENTIAL SERVS,Supplies & Services,Provisions,61014-GENERAL PROVISIONS-PROVISIONS,148.26,Revenue,31/12/2014,Childrens
WC51-1198,CHILDRENS RESIDENTIAL SERVS,Transfer Payments,Transfer Payments,76400-RESIDENTS PERSONAL EXPENSES-ALLOWANCES TO S/S CLIENTS,199.13,Revenue,08/12/2014,Childrens
WC51-1199,CHILDRENS RESIDENTIAL SERVS,Transfer Payments,Transfer Payments,76400-RESIDENTS PERSONAL EXPENSES-ALLOWANCES TO S/S CLIENTS,199.28,Revenue,16/12/2014,Childrens
WC51-1200,CHILDRENS RESIDENTIAL SERVS,Transfer Payments,Transfer Payments,76400-RESIDENTS PERSONAL EXPENSES-ALLOWANCES TO S/S CLIENTS,205.11,Revenue,31/12/2014,Childrens
WC51-1201,CHILDRENS RESIDENTIAL SERVS,Transfer Payments,Transfer Payments,76400-RESIDENTS PERSONAL EXPENSES-ALLOWANCES TO S/S CLIENTS,209.70,Revenue,03/12/2014,Childrens
WC51-1202,CHILDRENS RESIDENTIAL SERVS,Transfer Payments,Transfer Payments,76400-RESIDENTS PERSONAL EXPENSES-ALLOWANCES TO S/S CLIENTS,210.80,Revenue,19/12/2014,Childrens
WC51-1203,CHILDRENS RESIDENTIAL SERVS,Transfer Payments,Transfer Payments,76408-OUTINGS-ALLOWANCES TO S/S CLIENTS,216.58,Revenue,08/12/2014,Childrens
WC51-1204,CHILDRENS RESIDENTIAL SERVS,Transfer Payments,Transfer Payments,76400-RESIDENTS PERSONAL EXPENSES-ALLOWANCES TO S/S CLIENTS,221.67,Revenue,16/12/2014,Childrens
WC51-1205,CHILDRENS RESIDENTIAL SERVS,Transfer Payments,Transfer Payments,76400-RESIDENTS PERSONAL EXPENSES-ALLOWANCES TO S/S CLIENTS,249.63,Revenue,08/12/2014,Childrens
WC51-1206,CHILDRENS RESIDENTIAL SERVS,Transfer Payments,Transfer Payments,76400-RESIDENTS PERSONAL EXPENSES-ALLOWANCES TO S/S CLIENTS,298.25,Revenue,03/12/2014,Childrens
WC51-1207,CHILDRENS RESIDENTIAL SERVS,Transfer Payments,Transfer Payments,76400-RESIDENTS PERSONAL EXPENSES-ALLOWANCES TO S/S CLIENTS,314.48,Revenue,16/12/2014,Childrens
WC51-1208,CHILDRENS RESIDENTIAL SERVS,Transfer Payments,Transfer Payments,76400-RESIDENTS PERSONAL EXPENSES-ALLOWANCES TO S/S CLIENTS,343.29,Revenue,03/12/2014,Childrens
WC51-1209,CHILDRENS RESIDENTIAL SERVS,Transfer Payments,Transfer Payments,76400-RESIDENTS PERSONAL EXPENSES-ALLOWANCES TO S/S CLIENTS,347.62,Revenue,19/12/2014,Childrens
WC51-1210,CHILDRENS RESIDENTIAL SERVS,Transfer Payments,Transfer Payments,76408-OUTINGS-ALLOWANCES TO S/S CLIENTS,370.06,Revenue,08/12/2014,Childrens
WC51-1211,CHILDRENS RESIDENTIAL SERVS,Transfer Payments,Transfer Payments,76400-RESIDENTS PERSONAL EXPENSES-ALLOWANCES TO S/S CLIENTS,413.69,Revenue,31/12/2014,Childrens
WC51-1212,CHILDRENS RESIDENTIAL SERVS,Transfer Payments,Transfer Payments,76400-RESIDENTS PERSONAL EXPENSES-ALLOWANCES TO S/S CLIENTS,447.89,Revenue,31/12/2014,Childrens
WC51-1213,CHRIS MARSHALL TRADING AS DESIGN AND INK,Supplies & Services,"Printing, Stationery & Office Exp",62008-OUTWORK-PRINT ROOM,360.00,Revenue,01/12/2014,Resources
WC51-1214,CHRISTADELPHIAN CARE HOMES,Third Party Payments,Private Contractor Fees,73373-RESIDENTIAL & NURSING CARE PLACEMENTS,"8,976.00",Revenue,17/12/2014,Social Care & Inclusion
WC51-1215,REDACTED,Transfer Payments,Transfer Payments,76422-DIRECT PAYMENTS TO SOCIAL SERVICES CLIENTS,"1,862.03",Revenue,08/12/2014,Social Care & Inclusion
WC51-1216,REDACTED,Transfer Payments,Transfer Payments,76422-DIRECT PAYMENTS TO SOCIAL SERVICES CLIENTS,944.13,Revenue,08/12/2014,Social Care & Inclusion
WC51-1217,REDACTED,Transfer Payments,Transfer Payments,76422-DIRECT PAYMENTS TO SOCIAL SERVICES CLIENTS,612.00,Revenue,08/12/2014,Social Care & Inclusion
WC51-1218,REDACTED,Transfer Payments,Transfer Payments,76422-DIRECT PAYMENTS TO SOCIAL SERVICES CLIENTS,788.50,Revenue,08/12/2014,Social Care & Inclusion
WC51-1219,REDACTED,Transfer Payments,Transfer Payments,76422-DIRECT PAYMENTS TO SOCIAL SERVICES CLIENTS,"1,407.46",Revenue,08/12/2014,Social Care & Inclusion
WC51-1220,REDACTED,Third Party Payments,Private Contractor Fees,74006-HOLIDAY/CHRISTMAS ALLOWANCE-FOSTER CARERS-OTH AGENCY PROVISION,665.51,Revenue,18/12/2014,Childrens
WC51-1221,REDACTED,Transfer Payments,Transfer Payments,76422-DIRECT PAYMENTS TO SOCIAL SERVICES CLIENTS,345.00,Revenue,08/12/2014,Social Care & Inclusion
WC51-1222,REDACTED,Transfer Payments,Transfer Payments,76422-DIRECT PAYMENTS TO SOCIAL SERVICES CLIENTS,"1,027.70",Revenue,08/12/2014,Social Care & Inclusion
WC51-1223,REDACTED,Transfer Payments,Transfer Payments,76422-DIRECT PAYMENTS TO SOCIAL SERVICES CLIENTS,735.00,Revenue,08/12/2014,Social Care & Inclusion
WC51-1224,REDACTED,Third Party Payments,Private Contractor Fees,73374-SUPPORTED & OTHER ACCOMMODATION,779.20,Revenue,02/12/2014,Social Care & Inclusion
WC51-1225,REDACTED,Third Party Payments,Private Contractor Fees,73374-SUPPORTED & OTHER ACCOMMODATION,"1,452.12",Revenue,01/12/2014,Social Care & Inclusion
WC51-1226,REDACTED,Third Party Payments,Private Contractor Fees,73374-SUPPORTED & OTHER ACCOMMODATION,"1,452.12",Revenue,22/12/2014,Social Care & Inclusion
WC51-1227,CITY & GUILDS,Supplies & Services,Other Supplies & Services,63013-EXAMINATIONS-SERVICES,794.00,Revenue,03/12/2014,Neighbourhood Services
WC51-1228,CITY ELECTRICAL FACTORS LTD (BIRMINGHAM & NORTH WALES),Premises,Premises-Repairs & Maintenance,"40000-REPAIRS,ALTERATIONS & MAINTENANCE-PREM",250.84,Revenue,02/12/2014,Regeneration
WC51-1229,CIVICARE MIDLANDS LTD,Third Party Payments,Private Contractor Fees,73374-SUPPORTED & OTHER ACCOMMODATION,443.52,Revenue,11/12/2014,Social Care & Inclusion
WC51-1230,CIVICARE MIDLANDS LTD,Third Party Payments,Private Contractor Fees,73374-SUPPORTED & OTHER ACCOMMODATION,443.52,Revenue,11/12/2014,Social Care & Inclusion
WC51-1231,CIVICARE MIDLANDS LTD,Third Party Payments,Private Contractor Fees,73372-DOMICILIARY CARE,"16,867.35",Revenue,09/12/2014,Social Care & Inclusion
WC51-1232,REDACTED,Transfer Payments,Transfer Payments,76422-DIRECT PAYMENTS TO SOCIAL SERVICES CLIENTS,"1,360.00",Revenue,08/12/2014,Social Care & Inclusion
WC51-1233,REDACTED,Transfer Payments,Transfer Payments,76422-DIRECT PAYMENTS TO SOCIAL SERVICES CLIENTS,"1,137.25",Revenue,08/12/2014,Social Care & Inclusion
WC51-1234,REDACTED,Transfer Payments,Transfer Payments,76422-DIRECT PAYMENTS TO SOCIAL SERVICES CLIENTS,631.13,Revenue,08/12/2014,Social Care & Inclusion
WC51-1235,REDACTED,Third Party Payments,Grants to Other Orgs,66505-OTHER-GRANTS TO OTHER ORGS,528.12,Revenue,01/12/2014,Childrens
WC51-1236,CLAREGATE PRIMARY SCHOOL,Transfer Payments,Transfer Payments,77300-ISB-FORMULA ALLOCATION,652.46,Revenue,08/12/2014,Childrens
WC51-1237,CLARKEPRINT LTD,Supplies & Services,"Printing, Stationery & Office Exp",62008-OUTWORK-PRINT ROOM,"2,670.00",Revenue,12/12/2014,Resources
WC51-1238,CLEAPSS,Supplies & Services,Other Supplies & Services,63124-FEES & LICENCES-SERVICES,"3,176.04",Revenue,01/12/2014,Childrens
WC51-1239,CLIFFORD HOUSE FOSTERING LTD,Third Party Payments,Private Contractor Fees,74037-INDEPENDENT FOSTER CARE-OTH AGENCY PROVISION,"-3,861.42",Revenue,18/12/2014,Childrens
WC51-1240,CLIFFORD HOUSE FOSTERING LTD,Third Party Payments,Private Contractor Fees,74037-INDEPENDENT FOSTER CARE-OTH AGENCY PROVISION,"1,930.71",Revenue,16/12/2014,Childrens
WC51-1241,CLIFFORD HOUSE FOSTERING LTD,Third Party Payments,Private Contractor Fees,74037-INDEPENDENT FOSTER CARE-OTH AGENCY PROVISION,"2,265.20",Revenue,03/12/2014,Childrens
WC51-1242,CLIFFORD HOUSE FOSTERING LTD,Third Party Payments,Private Contractor Fees,74037-INDEPENDENT FOSTER CARE-OTH AGENCY PROVISION,"2,265.20",Revenue,03/12/2014,Childrens
WC51-1243,CLIFFORD HOUSE FOSTERING LTD,Third Party Payments,Private Contractor Fees,74037-INDEPENDENT FOSTER CARE-OTH AGENCY PROVISION,"2,388.40",Revenue,03/12/2014,Childrens
WC51-1244,CLIFFORD HOUSE FOSTERING LTD,Third Party Payments,Private Contractor Fees,74037-INDEPENDENT FOSTER CARE-OTH AGENCY PROVISION,"2,522.80",Revenue,02/12/2014,Childrens
WC51-1245,CLIFFORD HOUSE FOSTERING LTD,Third Party Payments,Private Contractor Fees,74037-INDEPENDENT FOSTER CARE-OTH AGENCY PROVISION,"2,679.20",Revenue,02/12/2014,Childrens
WC51-1246,CLIFFORD HOUSE FOSTERING LTD,Third Party Payments,Private Contractor Fees,74037-INDEPENDENT FOSTER CARE-OTH AGENCY PROVISION,"2,679.20",Revenue,03/12/2014,Childrens
WC51-1247,CLIFFORD HOUSE FOSTERING LTD,Third Party Payments,Private Contractor Fees,74037-INDEPENDENT FOSTER CARE-OTH AGENCY PROVISION,"2,949.56",Revenue,02/12/2014,Childrens
WC51-1248,CLIFFORD HOUSE FOSTERING LTD,Third Party Payments,Private Contractor Fees,74037-INDEPENDENT FOSTER CARE-OTH AGENCY PROVISION,"3,006.00",Revenue,02/12/2014,Childrens
WC51-1249,CLIFFORD HOUSE FOSTERING LTD,Third Party Payments,Private Contractor Fees,74037-INDEPENDENT FOSTER CARE-OTH AGENCY PROVISION,"3,152.00",Revenue,02/12/2014,Childrens
WC51-1250,CLIFFORD HOUSE FOSTERING LTD,Third Party Payments,Private Contractor Fees,74037-INDEPENDENT FOSTER CARE-OTH AGENCY PROVISION,"3,152.00",Revenue,03/12/2014,Childrens
WC51-1251,CLIFFORD HOUSE FOSTERING LTD,Third Party Payments,Private Contractor Fees,74037-INDEPENDENT FOSTER CARE-OTH AGENCY PROVISION,"3,152.00",Revenue,03/12/2014,Childrens
WC51-1252,CLIFFORD HOUSE FOSTERING LTD,Third Party Payments,Private Contractor Fees,74037-INDEPENDENT FOSTER CARE-OTH AGENCY PROVISION,"3,861.42",Revenue,18/12/2014,Childrens
WC51-1253,REDACTED,Transfer Payments,Transfer Payments,76422-DIRECT PAYMENTS TO SOCIAL SERVICES CLIENTS,716.18,Revenue,08/12/2014,Social Care & Inclusion
WC51-1254,CLOUD 9 DAY NURSERY,Third Party Payments,Grants to Other Orgs,66505-OTHER-GRANTS TO OTHER ORGS,953.55,Revenue,12/12/2014,Childrens
WC51-1255,CMS HIRE LTD,Central,Leasing,52003-OPERATING LEASES-VEHICLES,"1,200.00",Revenue,15/12/2014,Resources
WC51-1256,CMS HIRE LTD,Transport,Hire,52001-HIRE OF VEHICLES,"3,000.00",Revenue,03/12/2014,Neighbourhood Services
WC51-1257,CMS HIRE LTD,Central,Leasing,52003-OPERATING LEASES-VEHICLES,"3,000.00",Revenue,15/12/2014,Neighbourhood Services
WC51-1258,CMS HIRE LTD,Central,Leasing,52003-OPERATING LEASES-VEHICLES,"3,000.00",Revenue,15/12/2014,Neighbourhood Services
WC51-1259,CMS HIRE LTD,Central,Leasing,52003-OPERATING LEASES-VEHICLES,"3,000.00",Revenue,15/12/2014,Neighbourhood Services
WC51-1260,CMS HIRE LTD,Central,Leasing,52003-OPERATING LEASES-VEHICLES,"3,000.00",Revenue,15/12/2014,Neighbourhood Services
WC51-1261,COIN A DRINK LTD,Supplies & Services,Provisions,61305-CATERING,423.64,Revenue,03/12/2014,Neighbourhood Services
WC51-1262,COIN A DRINK LTD,Supplies & Services,Provisions,61305-CATERING,538.11,Revenue,10/12/2014,Neighbourhood Services
WC51-1263,REDACTED,Third Party Payments,Private Contractor Fees,74006-HOLIDAY/CHRISTMAS ALLOWANCE-FOSTER CARERS-OTH AGENCY PROVISION,"2,714.20",Revenue,18/12/2014,Childrens
WC51-1264,COLLINGWOOD CENTRE LTD,Third Party Payments,Grants to Other Orgs,66500-GRANTS TO OTHER ORGS,"8,099.94",Revenue,17/12/2014,Neighbourhood Services
WC51-1265,COMMERCIAL & DOMESTIC,Premises,Premises-Repairs & Maintenance,40705-TESTING-ELEC SERVICES,1.00,Revenue,05/12/2014,Regeneration
WC51-1266,COMMERCIAL & DOMESTIC,Premises,Premises-Repairs & Maintenance,40705-TESTING-ELEC SERVICES,1.00,Revenue,05/12/2014,Regeneration
WC51-1267,COMMERCIAL & DOMESTIC,Premises,Premises-Repairs & Maintenance,40705-TESTING-ELEC SERVICES,1.00,Revenue,05/12/2014,Regeneration
WC51-1268,COMMERCIAL & DOMESTIC,Premises,Premises-Repairs & Maintenance,40705-TESTING-ELEC SERVICES,1.00,Revenue,05/12/2014,Regeneration
WC51-1269,COMMERCIAL & DOMESTIC,Premises,Premises-Repairs & Maintenance,40705-TESTING-ELEC SERVICES,1.00,Revenue,05/12/2014,Regeneration
WC51-1270,COMMERCIAL & DOMESTIC,Premises,Premises-Repairs & Maintenance,40705-TESTING-ELEC SERVICES,1.00,Revenue,05/12/2014,Regeneration
WC51-1271,COMMERCIAL & DOMESTIC,Premises,Premises-Repairs & Maintenance,40705-TESTING-ELEC SERVICES,1.00,Revenue,05/12/2014,Regeneration
WC51-1272,COMMERCIAL & DOMESTIC,Premises,Premises-Repairs & Maintenance,40705-TESTING-ELEC SERVICES,1.00,Revenue,05/12/2014,Regeneration
WC51-1273,COMMERCIAL & DOMESTIC,Premises,Premises-Repairs & Maintenance,40705-TESTING-ELEC SERVICES,1.00,Revenue,05/12/2014,Regeneration
WC51-1274,COMMERCIAL & DOMESTIC,Premises,Premises-Repairs & Maintenance,40705-TESTING-ELEC SERVICES,1.00,Revenue,05/12/2014,Regeneration
WC51-1275,COMMERCIAL & DOMESTIC,Premises,Premises-Repairs & Maintenance,40705-TESTING-ELEC SERVICES,1.00,Revenue,05/12/2014,Regeneration
WC51-1276,COMMERCIAL & DOMESTIC,Premises,Premises-Repairs & Maintenance,40705-TESTING-ELEC SERVICES,1.00,Revenue,05/12/2014,Regeneration
WC51-1277,COMMERCIAL & DOMESTIC,Premises,Premises-Repairs & Maintenance,40705-TESTING-ELEC SERVICES,1.00,Revenue,05/12/2014,Regeneration
WC51-1278,COMMERCIAL & DOMESTIC,Premises,Premises-Repairs & Maintenance,40705-TESTING-ELEC SERVICES,1.00,Revenue,05/12/2014,Regeneration
WC51-1279,COMMERCIAL & DOMESTIC,Premises,Premises-Repairs & Maintenance,40705-TESTING-ELEC SERVICES,1.00,Revenue,05/12/2014,Regeneration
WC51-1280,COMMERCIAL & DOMESTIC,Premises,Premises-Repairs & Maintenance,40705-TESTING-ELEC SERVICES,1.00,Revenue,05/12/2014,Regeneration
WC51-1281,COMMERCIAL & DOMESTIC,Premises,Premises-Repairs & Maintenance,40705-TESTING-ELEC SERVICES,1.00,Revenue,05/12/2014,Regeneration
WC51-1282,COMMERCIAL & DOMESTIC,Premises,Premises-Repairs & Maintenance,40705-TESTING-ELEC SERVICES,1.00,Revenue,05/12/2014,Regeneration
WC51-1283,COMMERCIAL & DOMESTIC,Premises,Premises-Repairs & Maintenance,40705-TESTING-ELEC SERVICES,2.00,Revenue,05/12/2014,Regeneration
WC51-1284,COMMERCIAL & DOMESTIC,Premises,Premises-Repairs & Maintenance,40705-TESTING-ELEC SERVICES,2.00,Revenue,05/12/2014,Regeneration
WC51-1285,COMMERCIAL & DOMESTIC,Premises,Premises-Repairs & Maintenance,40705-TESTING-ELEC SERVICES,3.00,Revenue,05/12/2014,Regeneration
WC51-1286,COMMERCIAL & DOMESTIC,Premises,Premises-Repairs & Maintenance,40705-TESTING-ELEC SERVICES,3.00,Revenue,05/12/2014,Regeneration
WC51-1287,COMMERCIAL & DOMESTIC,Premises,Premises-Repairs & Maintenance,40705-TESTING-ELEC SERVICES,3.00,Revenue,05/12/2014,Regeneration
WC51-1288,COMMERCIAL & DOMESTIC,Premises,Premises-Repairs & Maintenance,40705-TESTING-ELEC SERVICES,4.00,Revenue,05/12/2014,Regeneration
WC51-1289,COMMERCIAL & DOMESTIC,Premises,Premises-Repairs & Maintenance,40705-TESTING-ELEC SERVICES,4.00,Revenue,05/12/2014,Regeneration
WC51-1290,COMMERCIAL & DOMESTIC,Premises,Premises-Repairs & Maintenance,40705-TESTING-ELEC SERVICES,4.00,Revenue,05/12/2014,Regeneration
WC51-1291,COMMERCIAL & DOMESTIC,Supplies & Services,"Equip,Furniture & Materials",60007-REPAIR OF EQUIPMENT-EQUIPMENT,15.00,Revenue,05/12/2014,Regeneration
WC51-1292,COMMERCIAL & DOMESTIC,Supplies & Services,"Equip,Furniture & Materials",60007-REPAIR OF EQUIPMENT-EQUIPMENT,15.00,Revenue,05/12/2014,Regeneration
WC51-1293,COMMERCIAL & DOMESTIC,Supplies & Services,"Equip,Furniture & Materials",60007-REPAIR OF EQUIPMENT-EQUIPMENT,15.00,Revenue,05/12/2014,Regeneration
WC51-1294,COMMERCIAL & DOMESTIC,Supplies & Services,"Equip,Furniture & Materials",60007-REPAIR OF EQUIPMENT-EQUIPMENT,15.00,Revenue,05/12/2014,Regeneration
WC51-1295,COMMERCIAL & DOMESTIC,Supplies & Services,"Equip,Furniture & Materials",60007-REPAIR OF EQUIPMENT-EQUIPMENT,15.00,Revenue,05/12/2014,Regeneration
WC51-1296,COMMERCIAL & DOMESTIC,Supplies & Services,"Equip,Furniture & Materials",60007-REPAIR OF EQUIPMENT-EQUIPMENT,20.00,Revenue,05/12/2014,Regeneration
WC51-1297,COMMERCIAL & DOMESTIC,Supplies & Services,"Equip,Furniture & Materials",60007-REPAIR OF EQUIPMENT-EQUIPMENT,20.00,Revenue,05/12/2014,Regeneration
WC51-1298,COMMERCIAL & DOMESTIC,Supplies & Services,"Equip,Furniture & Materials",60007-REPAIR OF EQUIPMENT-EQUIPMENT,20.00,Revenue,05/12/2014,Regeneration
WC51-1299,COMMERCIAL & DOMESTIC,Supplies & Services,"Equip,Furniture & Materials",60007-REPAIR OF EQUIPMENT-EQUIPMENT,20.00,Revenue,05/12/2014,Regeneration
WC51-1300,COMMERCIAL & DOMESTIC,Supplies & Services,"Equip,Furniture & Materials",60007-REPAIR OF EQUIPMENT-EQUIPMENT,20.00,Revenue,05/12/2014,Regeneration
